Workbook

Sheet Model Tollway Case
A1: =_xlfn.SEQUENCE(,100) -> 1 | B1: 2 | C1: 3 | D1: 4 | E1: 5 | F1: 6 | G1: 7 | H1: 8 | I1: 9 | J1: 10 | K1: 11 | L1: 12 | M1: 13 | N1: 14 | O1: 15 | P1: 16 | Q1: 17 | R1: 18 | S1: 19 | T1: 20 | U1: 21 | V1: 22 | W1: 23 | X1: 24 | Y1: 25 | Z1: 26 | AA1: 27 | AB1: 28 | AC1: 29 | AD1: 30 | AE1: 31 | AF1: 32 | AG1: 33 | AH1: 34 | AI1: 35 | AJ1: 36 | AK1: 37 | AL1: 38 | AM1: 39 | AN1: 40 | AO1: 41 | AP1: 42 | AQ1: 43 | AR1: 44 | AS1: 45 | AT1: 46 | AU1: 47 | AV1: 48 | AW1: 49 | AX1: 50 | AY1: 51 | AZ1: 52 | BA1: 53 | BB1: 54 | BC1: 55 | BD1: 56 | BE1: 57 | BF1: 58 | BG1: 59 | BH1: 60 | BI1: 61 | BJ1: 62 | BK1: 63 | BL1: 64 | BM1: 65 | BN1: 66 | BO1: 67 | BP1: 68 | BQ1: 69 | BR1: 70 | BS1: 71 | BT1: 72 | BU1: 73 | BV1: 74 | BW1: 75 | BX1: 76 | BY1: 77 | BZ1: 78 | CA1: 79 | CB1: 80 | CC1: 81 | CD1: 82 | CE1: 83 | CF1: 84 | CG1: 85 | CH1: 86 | CI1: 87 | CJ1: 88 | CK1: 89 | CL1: 90 | CM1: 91 | CN1: 92 | CO1: 93 | CP1: 94 | CQ1: 95 | CR1: 96 | CS1: 97 | CT1: 98 | CU1: 99 | CV1: 100
A2: =A1-$I$1+1 -> -7 | B2: =B1-$I$1+1 -> -6 | C2: -5 | D2: -4 | E2: -3 | F2: -2 | G2: -1 | H2: 0 | I2: 1 | J2: 2 | K2: 3 | L2: 4 | M2: 5 | N2: 6 | O2: 7 | P2: 8 | Q2: 9 | R2: 10 | S2: 11 | T2: 12 | U2: 13 | V2: 14 | W2: 15 | X2: 16 | Y2: 17 | Z2: 18 | AA2: 19 | AB2: 20 | AC2: 21 | AD2: 22 | AE2: 23 | AF2: 24 | AG2: 25 | AH2: 26 | AI2: 27 | AJ2: 28 | AK2: 29 | AL2: 30 | AM2: 31 | AN2: 32 | AO2: 33 | AP2: 34 | AQ2: 35 | AR2: 36 | AS2: 37 | AT2: 38 | AU2: 39 | AV2: 40 | AW2: 41 | AX2: 42 | AY2: 43 | AZ2: 44 | BA2: 45 | BB2: 46 | BC2: 47 | BD2: 48 | BE2: 49 | BF2: 50 | BG2: 51 | BH2: 52 | BI2: 53 | BJ2: 54 | BK2: 55 | BL2: 56 | BM2: 57 | BN2: =BN1-$I$1+1 -> 58 | BO2: 59 | BP2: 60 | BQ2: 61 | BR2: 62 | BS2: 63 | BT2: 64 | BU2: 65 | BV2: 66 | BW2: 67 | BX2: 68 | BY2: 69 | BZ2: 70 | CA2: 71 | CB2: 72 | CC2: 73 | CD2: 74 | CE2: 75 | CF2: 76 | CG2: 77 | CH2: 78 | CI2: 79 | CJ2: 80 | CK2: 81 | CL2: 82 | CM2: 83 | CN2: 84 | CO2: 85 | CP2: 86 | CQ2: 87 | CR2: 88 | CS2: 89 | CT2: 90 | CU2: 91 | CV2: 92
B3: Timing
C4: Period | I4: =_xlfn.SEQUENCE(,120) -> 1 | J4: 2 | K4: 3 | L4: 4 | M4: 5 | N4: 6 | O4: 7 | P4: 8 | Q4: 9 | R4: 10 | S4: 11 | T4: 12 | U4: 13 | V4: 14 | W4: 15 | X4: 16 | Y4: 17 | Z4: 18 | AA4: 19 | AB4: 20 | AC4: 21 | AD4: 22 | AE4: 23 | AF4: 24 | AG4: 25 | AH4: 26 | AI4: 27 | AJ4: 28 | AK4: 29 | AL4: 30 | AM4: 31 | AN4: 32 | AO4: 33 | AP4: 34 | AQ4: 35 | AR4: 36 | AS4: 37 | AT4: 38 | AU4: 39 | AV4: 40 | AW4: 41 | AX4: 42 | AY4: 43 | AZ4: 44 | BA4: 45 | BB4: 46 | BC4: 47 | BD4: 48 | BE4: 49 | BF4: 50 | BG4: 51 | BH4: 52 | BI4: 53 | BJ4: 54 | BK4: 55 | BL4: 56 | BM4: 57 | BN4: 58 | BO4: 59 | BP4: 60 | BQ4: 61 | BR4: 62 | BS4: 63 | BT4: 64 | BU4: 65 | BV4: 66 | BW4: 67 | BX4: 68 | BY4: 69 | BZ4: 70 | CA4: 71 | CB4: 72 | CC4: 73 | CD4: 74 | CE4: 75 | CF4: 76 | CG4: 77 | CH4: 78 | CI4: 79 | CJ4: 80 | CK4: 81 | CL4: 82 | CM4: 83 | CN4: 84 | CO4: 85 | CP4: 86 | CQ4: 87 | CR4: 88 | CS4: 89 | CT4: 90 | CU4: 91 | CV4: 92 | CW4: 93 | CX4: 94 | CY4: 95 | CZ4: 96 | DA4: 97 | DB4: 98 | DC4: 99 | DD4: 100 | DE4: 101 | DF4: 102 | DG4: 103 | DH4: 104 | DI4: 105 | DJ4: 106 | DK4: 107 | DL4: 108 | DM4: 109 | DN4: 110 | DO4: 111 | DP4: 112 | DQ4: 113 | DR4: 114 | DS4: 115 | DT4: 116 | DU4: 117 | DV4: 118 | DW4: 119 | DX4: 120
C5: Construction Periods | E5: Years | F5: 1 | I5: =I4<=$F$5 -> TRUE | J5: =J4<=$F$5 -> FALSE | K5: FALSE | L5: FALSE | M5: FALSE | N5: FALSE | O5: FALSE | P5: FALSE | Q5: FALSE | R5: FALSE | S5: FALSE | T5: FALSE | U5: FALSE | V5: FALSE | W5: FALSE | X5: FALSE | Y5: FALSE | Z5: FALSE | AA5: FALSE | AB5: FALSE | AC5: FALSE | AD5: FALSE | AE5: FALSE | AF5: FALSE | AG5: FALSE | AH5: FALSE | AI5: FALSE | AJ5: FALSE | AK5: FALSE | AL5: FALSE | AM5: FALSE | AN5: FALSE | AO5: FALSE | AP5: FALSE | AQ5: FALSE | AR5: FALSE | AS5: FALSE | AT5: FALSE | AU5: FALSE | AV5: FALSE
C6: Operating Life | E6: Life | F6: 30 | G6: =F6+F5 -> 31 | I6: =AND(NOT(I5),I4<=$G$6) -> FALSE | J6: =AND(NOT(J5),J4<=$G$6) -> TRUE | K6: =AND(NOT(K5),K4<=$G$6) -> TRUE | L6: TRUE | M6: TRUE | N6: TRUE | O6: TRUE | P6: TRUE | Q6: TRUE | R6: TRUE | S6: TRUE | T6: TRUE | U6: TRUE | V6: TRUE | W6: TRUE | X6: TRUE | Y6: TRUE | Z6: TRUE | AA6: TRUE | AB6: TRUE | AC6: TRUE | AD6: TRUE | AE6: TRUE | AF6: TRUE | AG6: TRUE | AH6: TRUE | AI6: TRUE | AJ6: TRUE | AK6: TRUE | AL6: TRUE | AM6: TRUE | AN6: FALSE | AO6: FALSE | AP6: FALSE | AQ6: FALSE | AR6: FALSE | AS6: FALSE | AT6: FALSE | AU6: FALSE | AV6: FALSE
B8: Operating Cash Flow
C9: Inflation Index | E9: % | F9: 0.02 | G9: 1 | I9: =G9*(1+$F$9*I6) -> 1 | J9: =I9*(1+$F$9*J6) -> 1.02 | K9: 1.0404 | L9: 1.061208 | M9: 1.08243216 | N9: 1.104080803 | O9: 1.126162419 | P9: 1.148685668 | Q9: 1.171659381 | R9: 1.195092569 | S9: 1.21899442 | T9: 1.243374308 | U9: 1.268241795 | V9: 1.29360663 | W9: 1.319478763 | X9: 1.345868338 | Y9: 1.372785705 | Z9: 1.400241419 | AA9: 1.428246248 | AB9: 1.456811173 | AC9: 1.485947396 | AD9: 1.515666344 | AE9: 1.545979671 | AF9: 1.576899264 | AG9: 1.608437249 | AH9: 1.640605994 | AI9: 1.673418114 | AJ9: 1.706886477 | AK9: 1.741024206 | AL9: 1.77584469 | AM9: 1.811361584 | AN9: 1.811361584 | AO9: 1.811361584 | AP9: 1.811361584 | AQ9: 1.811361584 | AR9: 1.811361584 | AS9: 1.811361584 | AT9: 1.811361584 | AU9: 1.811361584 | AV9: 1.811361584
C11: Revenues (Minimum Traffic Case) | E11: Annual Euro | F11: 65 | H11: =SUM(I11:XFD11) -> 2689.663651 | I11: =$F$11*I9*I6 -> 0 | J11: =$F$11*J9*J6 -> 66.3 | K11: 67.626 | L11: 68.97852 | M11: 70.3580904 | N11: 71.76525221 | O11: 73.20055725 | P11: 74.6645684 | Q11: 76.15785977 | R11: 77.68101696 | S11: 79.2346373 | T11: 80.81933005 | U11: 82.43571665 | V11: 84.08443098 | W11: 85.7661196 | X11: 87.48144199 | Y11: 89.23107083 | Z11: 91.01569225 | AA11: 92.83600609 | AB11: 94.69272621 | AC11: 96.58658074 | AD11: 98.51831235 | AE11: 100.4886786 | AF11: 102.4984522 | AG11: 104.5484212 | AH11: 106.6393896 | AI11: 108.7721774 | AJ11: 110.947621 | AK11: 113.1665734 | AL11: 115.4299049 | AM11: 117.738503 | AN11: 0 | AO11: 0 | AP11: 0 | AQ11: 0 | AR11: 0 | AS11: 0 | AT11: 0 | AU11: 0 | AV11: 0
C12: Operating Expense | E12: Annual Euro | F12: 10 | H12: =SUM(I12:XFD12) -> 413.7944079 | I12: =$F$12*I9*I6 -> 0 | J12: =$F$12*J9*J6 -> 10.2 | K12: 10.404 | L12: 10.61208 | M12: 10.8243216 | N12: 11.04080803 | O12: 11.26162419 | P12: 11.48685668 | Q12: 11.71659381 | R12: 11.95092569 | S12: 12.1899442 | T12: 12.43374308 | U12: 12.68241795 | V12: 12.9360663 | W12: 13.19478763 | X12: 13.45868338 | Y12: 13.72785705 | Z12: 14.00241419 | AA12: 14.28246248 | AB12: 14.56811173 | AC12: 14.85947396 | AD12: 15.15666344 | AE12: 15.45979671 | AF12: 15.76899264 | AG12: 16.08437249 | AH12: 16.40605994 | AI12: 16.73418114 | AJ12: 17.06886477 | AK12: 17.41024206 | AL12: 17.7584469 | AM12: 18.11361584 | AN12: 0 | AO12: 0 | AP12: 0 | AQ12: 0 | AR12: 0 | AS12: 0 | AT12: 0 | AU12: 0 | AV12: 0
C13: Capital Expenditure | E13: One Time | F13: 1000 | G13: =F5 -> 1 | I13: =$F$13/$G$13*I5 -> 1000 | J13: =$F$13/$G$13*J5 -> 0 | K13: 0 | L13: 0 | M13: 0 | N13: 0 | O13: 0 | P13: 0 | Q13: 0 | R13: 0 | S13: 0 | T13: 0 | U13: 0 | V13: 0 | W13: 0 | X13: 0 | Y13: 0 | Z13: 0 | AA13: 0 | AB13: 0 | AC13: 0 | AD13: 0 | AE13: 0 | AF13: 0 | AG13: 0 | AH13: 0 | AI13: 0 | AJ13: 0 | AK13: 0 | AL13: 0 | AM13: 0 | AN13: 0 | AO13: 0 | AP13: 0 | AQ13: 0 | AR13: 0 | AS13: 0 | AT13: 0 | AU13: 0 | AV13: 0
C15: EBITDA | E15: Euro | H15: =SUM(I15:XFD15) -> 2275.869243 | I15: =I11-I12 -> 0 | J15: =J11-J12 -> 56.1 | K15: 57.222 | L15: 58.36644 | M15: 59.5337688 | N15: 60.72444418 | O15: 61.93893306 | P15: 63.17771172 | Q15: 64.44126596 | R15: 65.73009127 | S15: 67.0446931 | T15: 68.38558696 | U15: 69.7532987 | V15: 71.14836467 | W15: 72.57133197 | X15: 74.02275861 | Y15: 75.50321378 | Z15: 77.01327806 | AA15: 78.55354362 | AB15: 80.12461449 | AC15: 81.72710678 | AD15: 83.36164891 | AE15: 85.02888189 | AF15: 86.72945953 | AG15: 88.46404872 | AH15: 90.2333297 | AI15: 92.03799629 | AJ15: 93.87875622 | AK15: 95.75633134 | AL15: 97.67145797 | AM15: 99.62488713 | AN15: 0 | AO15: 0 | AP15: 0 | AQ15: 0 | AR15: 0 | AS15: 0 | AT15: 0 | AU15: 0 | AV15: 0
C16: Free Cash Flow | E16: Euro | H16: =SUM(I16:XFD16) -> 1275.869243 | I16: =I15-I13 -> -1000 | J16: =J15-J13 -> 56.1 | K16: 57.222 | L16: 58.36644 | M16: 59.5337688 | N16: 60.72444418 | O16: 61.93893306 | P16: 63.17771172 | Q16: 64.44126596 | R16: 65.73009127 | S16: 67.0446931 | T16: 68.38558696 | U16: 69.7532987 | V16: 71.14836467 | W16: 72.57133197 | X16: 74.02275861 | Y16: 75.50321378 | Z16: 77.01327806 | AA16: 78.55354362 | AB16: 80.12461449 | AC16: 81.72710678 | AD16: 83.36164891 | AE16: 85.02888189 | AF16: 86.72945953 | AG16: 88.46404872 | AH16: 90.2333297 | AI16: 92.03799629 | AJ16: 93.87875622 | AK16: 95.75633134 | AL16: 97.67145797 | AM16: 99.62488713 | AN16: 0 | AO16: 0 | AP16: 0 | AQ16: 0 | AR16: 0 | AS16: 0 | AT16: 0 | AU16: 0 | AV16: 0
C17: PIRR | E17: % p.a. | F17: =IRR(I16:AV16) -> 0.056638622
C19: Opening Balance | E19: Euro | I19: =H22 -> 0 | J19: =I22 -> 0 | K19: 56.1 | L19: 116.4994267 | M19: 181.4642337 | N19: 251.2758866 | O19: 326.2322508 | P19: 406.648529 | Q19: 492.858253 | R19: 585.2143312 | S19: 684.0901558 | T19: 789.8807727 | U19: 903.0041181 | V19: 1023.902326 | W19: 1153.043107 | X19: 1290.921212 | Y19: 1438.059969 | Z19: 1595.012918 | AA19: 1762.36553 | AB19: 1940.737028 | AC19: 2130.782314 | AD19: 2333.193995 | AE19: 2548.704536 | AF19: 2778.088531 | AG19: 3022.165097 | AH19: 3281.800412 | AI19: 3557.910395 | AJ19: 3851.463533 | AK19: 4163.483876 | AL19: 4495.054197 | AM19: 4847.31933 | AN19: 5221.489705 | AO19: 5221.489705 | AP19: 5221.489705 | AQ19: 5221.489705 | AR19: 5221.489705 | AS19: 5221.489705 | AT19: 5221.489705 | AU19: 5221.489705 | AV19: 5221.489705
C20: Add: Re-Investment | E20: Euro | F20: =F17 -> 0.056638622 | I20: =I19*$F$20*I6 -> 0 | J20: =J19*$F$20*J6 -> 0 | K20: 3.177426694 | L20: 6.598366992 | M20: 10.27788414 | N20: 14.23191996 | O20: 18.47734514 | P20: 23.03201232 | Q20: 27.91481229 | R20: 33.1457333 | S20: 38.74592375 | T20: 44.73775851 | U20: 51.14490891 | V20: 57.99241679 | W20: 65.3067727 | X20: 73.11599855 | Y20: 81.449735 | Z20: 90.33933374 | AA20: 99.81795506 | AB20: 109.9206709 | AC20: 120.684574 | AD20: 132.1488927 | AE20: 144.3551128 | AF20: 157.3471062 | AG20: 171.1712665 | AH20: 185.876653 | AI20: 201.5151419 | AJ20: 218.1415872 | AK20: 235.8139895 | AL20: 254.5936755 | AM20: 274.5454873 | AN20: 0 | AO20: 0 | AP20: 0 | AQ20: 0 | AR20: 0 | AS20: 0 | AT20: 0 | AU20: 0 | AV20: 0
C21: Add: Dividends | E21: Euro | I21: =I15 -> 0 | J21: =J15 -> 56.1 | K21: 57.222 | L21: 58.36644 | M21: 59.5337688 | N21: 60.72444418 | O21: 61.93893306 | P21: 63.17771172 | Q21: 64.44126596 | R21: 65.73009127 | S21: 67.0446931 | T21: 68.38558696 | U21: 69.7532987 | V21: 71.14836467 | W21: 72.57133197 | X21: 74.02275861 | Y21: 75.50321378 | Z21: 77.01327806 | AA21: 78.55354362 | AB21: 80.12461449 | AC21: 81.72710678 | AD21: 83.36164891 | AE21: 85.02888189 | AF21: 86.72945953 | AG21: 88.46404872 | AH21: 90.2333297 | AI21: 92.03799629 | AJ21: 93.87875622 | AK21: 95.75633134 | AL21: 97.67145797 | AM21: 99.62488713 | AN21: 0 | AO21: 0 | AP21: 0 | AQ21: 0 | AR21: 0 | AS21: 0 | AT21: 0 | AU21: 0 | AV21: 0
C22: Closing Balance | E22: Euro | I22: =SUM(I19:I21) -> 0 | J22: =SUM(J19:J21) -> 56.1 | K22: 116.4994267 | L22: 181.4642337 | M22: 251.2758866 | N22: 326.2322508 | O22: 406.648529 | P22: 492.858253 | Q22: 585.2143312 | R22: 684.0901558 | S22: 789.8807727 | T22: 903.0041181 | U22: 1023.902326 | V22: 1153.043107 | W22: 1290.921212 | X22: 1438.059969 | Y22: 1595.012918 | Z22: 1762.36553 | AA22: 1940.737028 | AB22: 2130.782314 | AC22: 2333.193995 | AD22: 2548.704536 | AE22: 2778.088531 | AF22: 3022.165097 | AG22: 3281.800412 | AH22: 3557.910395 | AI22: 3851.463533 | AJ22: 4163.483876 | AK22: 4495.054197 | AL22: 4847.31933 | AM22: 5221.489705 | AN22: 5221.489705 | AO22: 5221.489705 | AP22: 5221.489705 | AQ22: 5221.489705 | AR22: 5221.489705 | AS22: 5221.489705 | AT22: 5221.489705 | AU22: 5221.489705 | AV22: 5221.489705
C24: Ending Balance | E24: Euro
C25: Investment | E25: Euro
C26: Growth Ratio | E26: x
C27: Annual Growth | E27: % p.a.
B29: Debt Structuring
C30: Tenure of Debt | E30: Years | F30: 30
C31: Interest Rate | E31: % p.a. | F31: 0.045
C32: DSCR for Sizing | E32: x | F32: 1.3
C34: Flag for Tenure | E34: Flag | F34: =F30 -> 30 | I34: =AND(NOT(I5),I4<=$F$34) -> FALSE | J34: TRUE | K34: TRUE | L34: TRUE | M34: TRUE | N34: TRUE | O34: TRUE | P34: TRUE | Q34: TRUE | R34: TRUE | S34: TRUE | T34: TRUE | U34: TRUE | V34: TRUE | W34: TRUE | X34: TRUE | Y34: TRUE | Z34: TRUE | AA34: TRUE | AB34: TRUE | AC34: TRUE | AD34: TRUE | AE34: TRUE | AF34: TRUE | AG34: TRUE | AH34: TRUE | AI34: TRUE | AJ34: TRUE | AK34: TRUE | AL34: TRUE | AM34: FALSE | AN34: FALSE | AO34: FALSE | AP34: FALSE | AQ34: FALSE | AR34: FALSE | AS34: FALSE | AT34: FALSE | AU34: FALSE | AV34: FALSE
C35: CFADS for Tenure | E35: Euro | I35: =IF(I34,I15) -> FALSE | J35: 56.1 | K35: 57.222 | L35: 58.36644 | M35: 59.5337688 | N35: 60.72444418 | O35: 61.93893306 | P35: 63.17771172 | Q35: 64.44126596 | R35: 65.73009127 | S35: 67.0446931 | T35: 68.38558696 | U35: 69.7532987 | V35: 71.14836467 | W35: 72.57133197 | X35: 74.02275861 | Y35: 75.50321378 | Z35: 77.01327806 | AA35: 78.55354362 | AB35: 80.12461449 | AC35: 81.72710678 | AD35: 83.36164891 | AE35: 85.02888189 | AF35: 86.72945953 | AG35: 88.46404872 | AH35: 90.2333297 | AI35: 92.03799629 | AJ35: 93.87875622 | AK35: 95.75633134 | AL35: 97.67145797 | AM35: FALSE | AN35: FALSE | AO35: FALSE | AP35: FALSE | AQ35: FALSE | AR35: FALSE | AS35: FALSE | AT35: FALSE | AU35: FALSE | AV35: FALSE
C36: Target Debt Service =CFADS/DSCR | E36: Euro | F36: =F32 -> 1.3 | I36: =IF(I34,I35/$F$36) -> FALSE | J36: =IF(J34,J35/$F$36) -> 43.15384615 | K36: 44.01692308 | L36: 44.89726154 | M36: 45.79520677 | N36: 46.7111109 | O36: 47.64533312 | P36: 48.59823979 | Q36: 49.57020458 | R36: 50.56160867 | S36: 51.57284085 | T36: 52.60429766 | U36: 53.65638362 | V36: 54.72951129 | W36: 55.82410151 | X36: 56.94058354 | Y36: 58.07939522 | Z36: 59.24098312 | AA36: 60.42580278 | AB36: 61.63431884 | AC36: 62.86700521 | AD36: 64.12434532 | AE36: 65.40683223 | AF36: 66.71496887 | AG36: 68.04926825 | AH36: 69.41025361 | AI36: 70.79845868 | AJ36: 72.21442786 | AK36: 73.65871642 | AL36: 75.13189074 | AM36: FALSE | AN36: FALSE | AO36: FALSE | AP36: FALSE | AQ36: FALSE | AR36: FALSE | AS36: FALSE | AT36: FALSE | AU36: FALSE | AV36: FALSE
C37: PV of Debt =Debt | E37: Euro | F37: =NPV(F31,I36:AV36) -> 870.8664771 | G37: =F37/F13 -> 0.8708664771
C39: Opening Balance | E39: Euro | I39: =G42 -> 0 | J39: =I42 -> 870.8664771 | K39: 866.9016224 | L39: 861.8952723 | M39: 855.783298 | N39: 848.4983397 | O39: 839.969654 | P39: 830.1229553 | Q39: 818.8802485 | R39: 806.1596551 | S39: 791.875231 | T39: 775.9367755 | U39: 758.2496327 | V39: 738.7144826 | W39: 717.227123 | X39: 693.678242 | Y39: 667.9531794 | Z39: 639.9316773 | AA39: 609.4876196 | AB39: 576.4887597 | AC39: 540.7964351 | AD39: 502.2652694 | AE39: 460.7428612 | AF39: 416.0694578 | AG39: 368.0776145 | AH39: 316.5918389 | AI39: 261.428218 | AJ39: 202.3940292 | AK39: 139.2873326 | AL39: 71.89654617 | AM39: 3.296918294e-12 | AN39: 3.445279617e-12 | AO39: 3.6003172e-12 | AP39: 3.762331474e-12 | AQ39: 3.93163639e-12 | AR39: 4.108560028e-12 | AS39: 4.293445229e-12 | AT39: 4.486650264e-12 | AU39: 4.688549526e-12 | AV39: 4.899534255e-12
C40: Add: Debt Draws | E40: Euro | F40: =F37 -> 870.8664771 | I40: =$F$40*I5 -> 870.8664771 | J40: 0 | K40: 0 | L40: 0 | M40: 0 | N40: 0 | O40: 0 | P40: 0 | Q40: 0 | R40: 0 | S40: 0 | T40: 0 | U40: 0 | V40: 0 | W40: 0 | X40: 0 | Y40: 0 | Z40: 0 | AA40: 0 | AB40: 0 | AC40: 0 | AD40: 0 | AE40: 0 | AF40: 0 | AG40: 0 | AH40: 0 | AI40: 0 | AJ40: 0 | AK40: 0 | AL40: 0 | AM40: 0 | AN40: 0 | AO40: 0 | AP40: 0 | AQ40: 0 | AR40: 0 | AS40: 0 | AT40: 0 | AU40: 0 | AV40: 0
C41: Less: Debt Repayment =DS - Int | E41: Euro | I41: =I36-I43 -> 0 | J41: =J36-J43 -> 3.964854686 | K41: 5.00635007 | L41: 6.111974285 | M41: 7.284958359 | N41: 8.52868562 | O41: 9.846698691 | P41: 11.24270679 | Q41: 12.7205934 | R41: 14.28442419 | S41: 15.93845545 | T41: 17.68714277 | U41: 19.53515014 | V41: 21.48735957 | W41: 23.54888098 | X41: 25.72506265 | Y41: 28.02150214 | Z41: 30.44405764 | AA41: 32.9988599 | AB41: 35.69232465 | AC41: 38.53116564 | AD41: 41.52240819 | AE41: 44.67340347 | AF41: 47.99184327 | AG41: 51.4857756 | AH41: 55.16362086 | AI41: 59.03418887 | AJ41: 63.10669655 | AK41: 67.39078645 | AL41: 71.89654617 | AM41: -1.483613232e-13 | AN41: -1.550375828e-13 | AO41: -1.62014274e-13 | AP41: -1.693049163e-13 | AQ41: -1.769236376e-13 | AR41: -1.848852013e-13 | AS41: -1.932050353e-13 | AT41: -2.018992619e-13 | AU41: -2.109847287e-13 | AV41: -2.204790415e-13
C42: Closing Balance | E42: Euro | I42: =I39+I40-I41 -> 870.8664771 | J42: =J39+J40-J41 -> 866.9016224 | K42: 861.8952723 | L42: 855.783298 | M42: 848.4983397 | N42: 839.969654 | O42: 830.1229553 | P42: 818.8802485 | Q42: 806.1596551 | R42: 791.875231 | S42: 775.9367755 | T42: 758.2496327 | U42: 738.7144826 | V42: 717.227123 | W42: 693.678242 | X42: 667.9531794 | Y42: 639.9316773 | Z42: 609.4876196 | AA42: 576.4887597 | AB42: 540.7964351 | AC42: 502.2652694 | AD42: 460.7428612 | AE42: 416.0694578 | AF42: 368.0776145 | AG42: 316.5918389 | AH42: 261.428218 | AI42: 202.3940292 | AJ42: 139.2873326 | AK42: 71.89654617 | AL42: 3.296918294e-12 | AM42: 3.445279617e-12 | AN42: 3.6003172e-12 | AO42: 3.762331474e-12 | AP42: 3.93163639e-12 | AQ42: 4.108560028e-12 | AR42: 4.293445229e-12 | AS42: 4.486650264e-12 | AT42: 4.688549526e-12 | AU42: 4.899534255e-12 | AV42: 5.120013296e-12
C43: Interest Opening Balance x Int Rate | E43: Euro | F43: =F31 -> 0.045 | I43: =I39*$F$43 -> 0 | J43: =J39*$F$43 -> 39.18899147 | K43: 39.01057301 | L43: 38.78528725 | M43: 38.51024841 | N43: 38.18242528 | O43: 37.79863443 | P43: 37.35553299 | Q43: 36.84961118 | R43: 36.27718448 | S43: 35.63438539 | T43: 34.9171549 | U43: 34.12123347 | V43: 33.24215172 | W43: 32.27522054 | X43: 31.21552089 | Y43: 30.05789307 | Z43: 28.79692548 | AA43: 27.42694288 | AB43: 25.94199419 | AC43: 24.33583958 | AD43: 22.60193712 | AE43: 20.73342876 | AF43: 18.7231256 | AG43: 16.56349265 | AH43: 14.24663275 | AI43: 11.76426981 | AJ43: 9.107731312 | AK43: 6.267929968 | AL43: 3.235344577 | AM43: 1.483613232e-13 | AN43: 1.550375828e-13 | AO43: 1.62014274e-13 | AP43: 1.693049163e-13 | AQ43: 1.769236376e-13 | AR43: 1.848852013e-13 | AS43: 1.932050353e-13 | AT43: 2.018992619e-13 | AU43: 2.109847287e-13 | AV43: 2.204790415e-13
B45: Cash Flow Statements
C46: Cash Before COD - Uses and Source
D47: Uses
D48: Cap Exp | E48: Euro | I48: =I13 -> 1000 | J48: 0 | K48: 0 | L48: 0 | M48: 0 | N48: 0 | O48: 0 | P48: 0 | Q48: 0 | R48: 0 | S48: 0 | T48: 0 | U48: 0 | V48: 0 | W48: 0 | X48: 0 | Y48: 0 | Z48: 0 | AA48: 0 | AB48: 0 | AC48: 0 | AD48: 0 | AE48: 0 | AF48: 0 | AG48: 0 | AH48: 0 | AI48: 0 | AJ48: 0 | AK48: 0 | AL48: 0 | AM48: 0 | AN48: 0 | AO48: 0 | AP48: 0 | AQ48: 0 | AR48: 0 | AS48: 0 | AT48: 0 | AU48: 0 | AV48: 0
D50: Source
D51: Debt | E51: Euro | G51: =I51/I48 -> 0.8708664771 | I51: =I40 -> 870.8664771 | J51: =J40 -> 0 | K51: 0 | L51: 0 | M51: 0 | N51: 0 | O51: 0 | P51: 0 | Q51: 0 | R51: 0 | S51: 0 | T51: 0 | U51: 0 | V51: 0 | W51: 0 | X51: 0 | Y51: 0 | Z51: 0 | AA51: 0 | AB51: 0 | AC51: 0 | AD51: 0 | AE51: 0 | AF51: 0 | AG51: 0 | AH51: 0 | AI51: 0 | AJ51: 0 | AK51: 0 | AL51: 0 | AM51: 0 | AN51: 0 | AO51: 0 | AP51: 0 | AQ51: 0 | AR51: 0 | AS51: 0 | AT51: 0 | AU51: 0 | AV51: 0
D52: Equity Investment | E52: Euro | I52: =I48-I51 -> 129.1335229 | J52: =J48-J51 -> 0 | K52: 0 | L52: 0 | M52: 0 | N52: 0 | O52: 0 | P52: 0 | Q52: 0 | R52: 0 | S52: 0 | T52: 0 | U52: 0 | V52: 0 | W52: 0 | X52: 0 | Y52: 0 | Z52: 0 | AA52: 0 | AB52: 0 | AC52: 0 | AD52: 0 | AE52: 0 | AF52: 0 | AG52: 0 | AH52: 0 | AI52: 0 | AJ52: 0 | AK52: 0 | AL52: 0 | AM52: 0 | AN52: 0 | AO52: 0 | AP52: 0 | AQ52: 0 | AR52: 0 | AS52: 0 | AT52: 0 | AU52: 0 | AV52: 0
D53: Total | I53: =SUM(I51:I52) -> 1000 | J53: =SUM(J51:J52) -> 0 | K53: 0 | L53: 0 | M53: 0 | N53: 0 | O53: 0 | P53: 0 | Q53: 0 | R53: 0 | S53: 0 | T53: 0 | U53: 0 | V53: 0 | W53: 0 | X53: 0 | Y53: 0 | Z53: 0 | AA53: 0 | AB53: 0 | AC53: 0 | AD53: 0 | AE53: 0 | AF53: 0 | AG53: 0 | AH53: 0 | AI53: 0 | AJ53: 0 | AK53: 0 | AL53: 0 | AM53: 0 | AN53: 0 | AO53: 0 | AP53: 0 | AQ53: 0 | AR53: 0 | AS53: 0 | AT53: 0 | AU53: 0 | AV53: 0
C55: Cash Flow After
D56: EBITDA | E56: Euro | I56: =I15 -> 0 | J56: 56.1 | K56: 57.222 | L56: 58.36644 | M56: 59.5337688 | N56: 60.72444418 | O56: 61.93893306 | P56: 63.17771172 | Q56: 64.44126596 | R56: 65.73009127 | S56: 67.0446931 | T56: 68.38558696 | U56: 69.7532987 | V56: 71.14836467 | W56: 72.57133197 | X56: 74.02275861 | Y56: 75.50321378 | Z56: 77.01327806 | AA56: 78.55354362 | AB56: 80.12461449 | AC56: 81.72710678 | AD56: 83.36164891 | AE56: 85.02888189 | AF56: 86.72945953 | AG56: 88.46404872 | AH56: 90.2333297 | AI56: 92.03799629 | AJ56: 93.87875622 | AK56: 95.75633134 | AL56: 97.67145797 | AM56: 99.62488713 | AN56: 0 | AO56: 0 | AP56: 0 | AQ56: 0 | AR56: 0 | AS56: 0 | AT56: 0 | AU56: 0 | AV56: 0
D57: Less: Interest | E57: Euro | I57: =I43 -> 0 | J57: =J43 -> 39.18899147 | K57: 39.01057301 | L57: 38.78528725 | M57: 38.51024841 | N57: 38.18242528 | O57: 37.79863443 | P57: 37.35553299 | Q57: 36.84961118 | R57: 36.27718448 | S57: 35.63438539 | T57: 34.9171549 | U57: 34.12123347 | V57: 33.24215172 | W57: 32.27522054 | X57: 31.21552089 | Y57: 30.05789307 | Z57: 28.79692548 | AA57: 27.42694288 | AB57: 25.94199419 | AC57: 24.33583958 | AD57: 22.60193712 | AE57: 20.73342876 | AF57: 18.7231256 | AG57: 16.56349265 | AH57: 14.24663275 | AI57: 11.76426981 | AJ57: 9.107731312 | AK57: 6.267929968 | AL57: 3.235344577 | AM57: 1.483613232e-13 | AN57: 1.550375828e-13 | AO57: 1.62014274e-13 | AP57: 1.693049163e-13 | AQ57: 1.769236376e-13 | AR57: 1.848852013e-13 | AS57: 1.932050353e-13 | AT57: 2.018992619e-13 | AU57: 2.109847287e-13 | AV57: 2.204790415e-13
D58: Less: Repayment | E58: Euro | I58: =I41 -> 0 | J58: =J41 -> 3.964854686 | K58: 5.00635007 | L58: 6.111974285 | M58: 7.284958359 | N58: 8.52868562 | O58: 9.846698691 | P58: 11.24270679 | Q58: 12.7205934 | R58: 14.28442419 | S58: 15.93845545 | T58: 17.68714277 | U58: 19.53515014 | V58: 21.48735957 | W58: 23.54888098 | X58: 25.72506265 | Y58: 28.02150214 | Z58: 30.44405764 | AA58: 32.9988599 | AB58: 35.69232465 | AC58: 38.53116564 | AD58: 41.52240819 | AE58: 44.67340347 | AF58: 47.99184327 | AG58: 51.4857756 | AH58: 55.16362086 | AI58: 59.03418887 | AJ58: 63.10669655 | AK58: 67.39078645 | AL58: 71.89654617 | AM58: -1.483613232e-13 | AN58: -1.550375828e-13 | AO58: -1.62014274e-13 | AP58: -1.693049163e-13 | AQ58: -1.769236376e-13 | AR58: -1.848852013e-13 | AS58: -1.932050353e-13 | AT58: -2.018992619e-13 | AU58: -2.109847287e-13 | AV58: -2.204790415e-13
D59: Dividends | E59: Euro | I59: =I56-I57-I58 -> 0 | J59: =J56-J57-J58 -> 12.94615385 | K59: 13.20507692 | L59: 13.46917846 | M59: 13.73856203 | N59: 14.01333327 | O59: 14.29359994 | P59: 14.57947194 | Q59: 14.87106137 | R59: 15.1684826 | S59: 15.47185225 | T59: 15.7812893 | U59: 16.09691508 | V59: 16.41885339 | W59: 16.74723045 | X59: 17.08217506 | Y59: 17.42381856 | Z59: 17.77229494 | AA59: 18.12774083 | AB59: 18.49029565 | AC59: 18.86010156 | AD59: 19.2373036 | AE59: 19.62204967 | AF59: 20.01449066 | AG59: 20.41478047 | AH59: 20.82307608 | AI59: 21.23953761 | AJ59: 21.66432836 | AK59: 22.09761492 | AL59: 22.53956722 | AM59: 99.62488713 | AN59: 0 | AO59: 0 | AP59: 0 | AQ59: 0 | AR59: 0 | AS59: 0 | AT59: 0 | AU59: 0 | AV59: 0
B61: Summary Analysis - Structuring
D63: Equity Net Cash Flow | E63: Euro | I63: =-I52+I59 -> -129.1335229 | J63: 12.94615385 | K63: 13.20507692 | L63: 13.46917846 | M63: 13.73856203 | N63: 14.01333327 | O63: 14.29359994 | P63: 14.57947194 | Q63: 14.87106137 | R63: 15.1684826 | S63: 15.47185225 | T63: 15.7812893 | U63: 16.09691508 | V63: 16.41885339 | W63: 16.74723045 | X63: 17.08217506 | Y63: 17.42381856 | Z63: 17.77229494 | AA63: 18.12774083 | AB63: 18.49029565 | AC63: 18.86010156 | AD63: 19.2373036 | AE63: 19.62204967 | AF63: 20.01449066 | AG63: 20.41478047 | AH63: 20.82307608 | AI63: 21.23953761 | AJ63: 21.66432836 | AK63: 22.09761492 | AL63: 22.53956722 | AM63: 99.62488713 | AN63: 0 | AO63: 0 | AP63: 0 | AQ63: 0 | AR63: 0 | AS63: 0 | AT63: 0 | AU63: 0 | AV63: 0
D64: Equity IRR | E64: =IRR(I63:AV63) -> 0.1155576952
I66: =IF(I6,I4,NA()) ->  | J66: 2 | K66: 3 | L66: 4 | M66: 5 | N66: 6 | O66: 7 | P66: 8 | Q66: 9 | R66: 10 | S66: 11 | T66: 12 | U66: 13 | V66: 14 | W66: 15 | X66: 16 | Y66: 17 | Z66: 18 | AA66: 19 | AB66: 20 | AC66: 21 | AD66: 22 | AE66: 23 | AF66: 24 | AG66: 25 | AH66: 26 | AI66: 27 | AJ66: 28 | AK66: 29 | AL66: 30 | AM66: 31
D67: Cash Flow | E67: Euro | I67: =I56 -> 0 | J67: 56.1 | K67: 57.222 | L67: 58.36644 | M67: 59.5337688 | N67: 60.72444418 | O67: 61.93893306 | P67: 63.17771172 | Q67: 64.44126596 | R67: 65.73009127 | S67: 67.0446931 | T67: 68.38558696 | U67: 69.7532987 | V67: 71.14836467 | W67: 72.57133197 | X67: 74.02275861 | Y67: 75.50321378 | Z67: 77.01327806 | AA67: 78.55354362 | AB67: 80.12461449 | AC67: 81.72710678 | AD67: 83.36164891 | AE67: 85.02888189 | AF67: 86.72945953 | AG67: 88.46404872 | AH67: 90.2333297 | AI67: 92.03799629 | AJ67: 93.87875622 | AK67: 95.75633134 | AL67: 97.67145797 | AM67: 99.62488713 | AN67: 0 | AO67: 0 | AP67: 0 | AQ67: 0 | AR67: 0 | AS67: 0 | AT67: 0 | AU67: 0 | AV67: 0
D68: Debt Service | E68: Euro | I68: =I57+I58 -> 0 | J68: 43.15384615 | K68: 44.01692308 | L68: 44.89726154 | M68: 45.79520677 | N68: 46.7111109 | O68: 47.64533312 | P68: 48.59823979 | Q68: 49.57020458 | R68: 50.56160867 | S68: 51.57284085 | T68: 52.60429766 | U68: 53.65638362 | V68: 54.72951129 | W68: 55.82410151 | X68: 56.94058354 | Y68: 58.07939522 | Z68: 59.24098312 | AA68: 60.42580278 | AB68: 61.63431884 | AC68: 62.86700521 | AD68: 64.12434532 | AE68: 65.40683223 | AF68: 66.71496887 | AG68: 68.04926825 | AH68: 69.41025361 | AI68: 70.79845868 | AJ68: 72.21442786 | AK68: 73.65871642 | AL68: 75.13189074 | AM68: 0 | AN68: 0 | AO68: 0 | AP68: 0 | AQ68: 0 | AR68: 0 | AS68: 0 | AT68: 0 | AU68: 0 | AV68: 0
D70: Equity IRR | E70: =E64 -> 0.1155576952 | F70: DSCR | G70: =F36 -> 1.3 | I70: Tenure | J70: =F34 -> 30 | K70: Debt to Capital
D72: DSCR | I72: =IF(I68>0,I67/I68) -> FALSE | J72: =IF(J68>0,J67/J68) -> 1.3 | K72: 1.3 | L72: 1.3 | M72: 1.3 | N72: 1.3 | O72: 1.3 | P72: 1.3 | Q72: 1.3 | R72: 1.3 | S72: 1.3 | T72: 1.3 | U72: 1.3 | V72: 1.3 | W72: 1.3 | X72: 1.3 | Y72: 1.3 | Z72: 1.3 | AA72: 1.3 | AB72: 1.3 | AC72: 1.3 | AD72: 1.3 | AE72: 1.3 | AF72: 1.3 | AG72: 1.3 | AH72: 1.3 | AI72: 1.3 | AJ72: 1.3 | AK72: 1.3 | AL72: 1.3 | AM72: FALSE | AN72: FALSE | AO72: FALSE | AP72: FALSE | AQ72: FALSE | AR72: FALSE | AS72: FALSE | AT72: FALSE | AU72: FALSE | AV72: FALSE
B74: Risk Analysis
C75: Scheduled Debt Repayment | H75: =SUM(I75:XFD75) -> 870.8664771 | I75: =I41 -> 0 | J75: 3.964854686 | K75: 5.00635007 | L75: 6.111974285 | M75: 7.284958359 | N75: 8.52868562 | O75: 9.846698691 | P75: 11.24270679 | Q75: 12.7205934 | R75: 14.28442419 | S75: 15.93845545 | T75: 17.68714277 | U75: 19.53515014 | V75: 21.48735957 | W75: 23.54888098 | X75: 25.72506265 | Y75: 28.02150214 | Z75: 30.44405764 | AA75: 32.9988599 | AB75: 35.69232465 | AC75: 38.53116564 | AD75: 41.52240819 | AE75: 44.67340347 | AF75: 47.99184327 | AG75: 51.4857756 | AH75: 55.16362086 | AI75: 59.03418887 | AJ75: 63.10669655 | AK75: 67.39078645 | AL75: 71.89654617 | AM75: -1.483613232e-13 | AN75: -1.550375828e-13 | AO75: -1.62014274e-13 | AP75: -1.693049163e-13 | AQ75: -1.769236376e-13 | AR75: -1.848852013e-13 | AS75: -1.932050353e-13 | AT75: -2.018992619e-13 | AU75: -2.109847287e-13 | AV75: -2.204790415e-13
C77: Operating Period
C78: Target Tail | E78: Years | G78: 4
C79: Target Repayment | G79: =F6-G78 -> 26
C80: Closing Balance at Target Date | G80: =LOOKUP(G79,4:4,107:107) -> 0 | H80: End Debt
C81: Repayment in Final Year Scheduled | G81: =LOOKUP(G79,4:4,75:75) -> 55.16362086
C82: Opening Balance in Final Year | G82: =LOOKUP(G79,4:4,103:103) -> 51.6205267
C83: Difference | G83: =G81-G82 -> 3.543094165
C85: Initial Lower Case | E85: Euro | F85: =G85/100 -> 1 | G85: 100 | I85: =I11*$F$85 -> 0 | J85: 66.3 | K85: 67.626 | L85: 68.97852 | M85: 70.3580904 | N85: 71.76525221 | O85: 73.20055725 | P85: 74.6645684 | Q85: 76.15785977 | R85: 77.68101696 | S85: 79.2346373 | T85: 80.81933005 | U85: 82.43571665 | V85: 84.08443098 | W85: 85.7661196 | X85: 87.48144199 | Y85: 89.23107083 | Z85: 91.01569225 | AA85: 92.83600609 | AB85: 94.69272621 | AC85: 96.58658074 | AD85: 98.51831235 | AE85: 100.4886786 | AF85: 102.4984522 | AG85: 104.5484212 | AH85: 106.6393896 | AI85: 108.7721774 | AJ85: 110.947621 | AK85: 113.1665734 | AL85: 115.4299049 | AM85: 117.738503 | AN85: 0 | AO85: 0 | AP85: 0 | AQ85: 0 | AR85: 0 | AS85: 0 | AT85: 0 | AU85: 0 | AV85: 0
C86: Actual Case with Higher Traffic | E86: Euro | F86: =G86/100 -> 1.2 | G86: 120 | I86: =I$11*$F86 -> 0 | J86: =J$11*$F86 -> 79.56 | K86: 81.1512 | L86: 82.774224 | M86: 84.42970848 | N86: 86.11830265 | O86: 87.8406687 | P86: 89.59748208 | Q86: 91.38943172 | R86: 93.21722035 | S86: 95.08156476 | T86: 96.98319605 | U86: 98.92285998 | V86: 100.9013172 | W86: 102.9193435 | X86: 104.9777304 | Y86: 107.077285 | Z86: 109.2188307 | AA86: 111.4032073 | AB86: 113.6312715 | AC86: 115.9038969 | AD86: 118.2219748 | AE86: 120.5864143 | AF86: 122.9981426 | AG86: 125.4581055 | AH86: 127.9672676 | AI86: 130.5266129 | AJ86: 133.1371452 | AK86: 135.7998881 | AL86: 138.5158858 | AM86: 141.2862036 | AN86: 0 | AO86: 0 | AP86: 0 | AQ86: 0 | AR86: 0 | AS86: 0 | AT86: 0 | AU86: 0 | AV86: 0
C87: Actual Case with Very High Traffic | E87: Euro | F87: =G87/100 -> 1.31 | G87: 131 | I87: =I$11*$F87 -> 0 | J87: 86.853 | K87: 88.59006 | L87: 90.3618612 | M87: 92.16909842 | N87: 94.01248039 | O87: 95.89273 | P87: 97.8105846 | Q87: 99.76679629 | R87: 101.7621322 | S87: 103.7973749 | T87: 105.8733224 | U87: 107.9907888 | V87: 110.1506046 | W87: 112.3536167 | X87: 114.600689 | Y87: 116.8927028 | Z87: 119.2305568 | AA87: 121.615168 | AB87: 124.0474713 | AC87: 126.5284208 | AD87: 129.0589892 | AE87: 131.640169 | AF87: 134.2729723 | AG87: 136.9584318 | AH87: 139.6976004 | AI87: 142.4915524 | AJ87: 145.3413835 | AK87: 148.2482112 | AL87: 151.2131754 | AM87: 154.2374389 | AN87: 0 | AO87: 0 | AP87: 0 | AQ87: 0 | AR87: 0 | AS87: 0 | AT87: 0 | AU87: 0 | AV87: 0
C88: Actual Case with Low Traffic | E88: Euro | F88: =G88/100 -> 0.85 | G88: 85 | I88: =I$11*$F88 -> 0 | J88: 56.355 | K88: 57.4821 | L88: 58.631742 | M88: 59.80437684 | N88: 61.00046438 | O88: 62.22047366 | P88: 63.46488314 | Q88: 64.7341808 | R88: 66.02886442 | S88: 67.3494417 | T88: 68.69643054 | U88: 70.07035915 | V88: 71.47176633 | W88: 72.90120166 | X88: 74.35922569 | Y88: 75.84641021 | Z88: 77.36333841 | AA88: 78.91060518 | AB88: 80.48881728 | AC88: 82.09859363 | AD88: 83.7405655 | AE88: 85.41537681 | AF88: 87.12368435 | AG88: 88.86615803 | AH88: 90.64348119 | AI88: 92.45635082 | AJ88: 94.30547783 | AK88: 96.19158739 | AL88: 98.11541914 | AM88: 100.0777275 | AN88: 0 | AO88: 0 | AP88: 0 | AQ88: 0 | AR88: 0 | AS88: 0 | AT88: 0 | AU88: 0 | AV88: 0
C90: Scenario | E90: 3
C91: =INDEX(C85:C88,$E$90) -> Actual Case with Very High Traffic | I91: =INDEX(I85:I88,$E$90) -> 0 | J91: =INDEX(J85:J88,$E$90) -> 86.853 | K91: =INDEX(K85:K88,$E$90) -> 88.59006 | L91: =INDEX(L85:L88,$E$90) -> 90.3618612 | M91: =INDEX(M85:M88,$E$90) -> 92.16909842 | N91: =INDEX(N85:N88,$E$90) -> 94.01248039 | O91: =INDEX(O85:O88,$E$90) -> 95.89273 | P91: =INDEX(P85:P88,$E$90) -> 97.8105846 | Q91: =INDEX(Q85:Q88,$E$90) -> 99.76679629 | R91: =INDEX(R85:R88,$E$90) -> 101.7621322 | S91: =INDEX(S85:S88,$E$90) -> 103.7973749 | T91: =INDEX(T85:T88,$E$90) -> 105.8733224 | U91: =INDEX(U85:U88,$E$90) -> 107.9907888 | V91: =INDEX(V85:V88,$E$90) -> 110.1506046 | W91: =INDEX(W85:W88,$E$90) -> 112.3536167 | X91: =INDEX(X85:X88,$E$90) -> 114.600689 | Y91: =INDEX(Y85:Y88,$E$90) -> 116.8927028 | Z91: =INDEX(Z85:Z88,$E$90) -> 119.2305568 | AA91: =INDEX(AA85:AA88,$E$90) -> 121.615168 | AB91: =INDEX(AB85:AB88,$E$90) -> 124.0474713 | AC91: =INDEX(AC85:AC88,$E$90) -> 126.5284208 | AD91: =INDEX(AD85:AD88,$E$90) -> 129.0589892 | AE91: =INDEX(AE85:AE88,$E$90) -> 131.640169 | AF91: =INDEX(AF85:AF88,$E$90) -> 134.2729723 | AG91: =INDEX(AG85:AG88,$E$90) -> 136.9584318 | AH91: =INDEX(AH85:AH88,$E$90) -> 139.6976004 | AI91: =INDEX(AI85:AI88,$E$90) -> 142.4915524 | AJ91: =INDEX(AJ85:AJ88,$E$90) -> 145.3413835 | AK91: =INDEX(AK85:AK88,$E$90) -> 148.2482112 | AL91: =INDEX(AL85:AL88,$E$90) -> 151.2131754 | AM91: =INDEX(AM85:AM88,$E$90) -> 154.2374389 | AN91: =INDEX(AN85:AN88,$E$90) -> 0 | AO91: =INDEX(AO85:AO88,$E$90) -> 0 | AP91: =INDEX(AP85:AP88,$E$90) -> 0 | AQ91: =INDEX(AQ85:AQ88,$E$90) -> 0 | AR91: =INDEX(AR85:AR88,$E$90) -> 0 | AS91: =INDEX(AS85:AS88,$E$90) -> 0 | AT91: =INDEX(AT85:AT88,$E$90) -> 0 | AU91: =INDEX(AU85:AU88,$E$90) -> 0 | AV91: =INDEX(AV85:AV88,$E$90) -> 0
C93: Initial Sweep Percent | F93: 1 | I93: =$F$93 -> 1 | J93: =$F$93 -> 1 | K93: 1 | L93: 1 | M93: 1 | N93: 1 | O93: 1 | P93: 1 | Q93: 1 | R93: 1 | S93: 1 | T93: 1 | U93: 1 | V93: 1 | W93: 1 | X93: 1 | Y93: 1 | Z93: 1 | AA93: 1 | AB93: 1 | AC93: 1 | AD93: 1 | AE93: 1 | AF93: 1 | AG93: 1 | AH93: 1 | AI93: 1 | AJ93: 1 | AK93: 1 | AL93: 1 | AM93: 1 | AN93: 1 | AO93: 1 | AP93: 1 | AQ93: 1 | AR93: 1 | AS93: 1 | AT93: 1 | AU93: 1 | AV93: 1
C94: Years of Sweep | F94: 8 | G94: sweep yr | I94: =I4<$F$94 -> TRUE | J94: TRUE | K94: TRUE | L94: TRUE | M94: TRUE | N94: TRUE | O94: TRUE | P94: FALSE | Q94: FALSE | R94: FALSE | S94: FALSE | T94: FALSE | U94: FALSE | V94: FALSE | W94: FALSE | X94: FALSE | Y94: FALSE | Z94: FALSE | AA94: FALSE | AB94: FALSE | AC94: FALSE | AD94: FALSE | AE94: FALSE | AF94: FALSE | AG94: FALSE | AH94: FALSE | AI94: FALSE | AJ94: FALSE | AK94: FALSE | AL94: FALSE | AM94: FALSE | AN94: FALSE | AO94: FALSE | AP94: FALSE | AQ94: FALSE | AR94: FALSE | AS94: FALSE | AT94: FALSE | AU94: FALSE | AV94: FALSE
C95: Final Sweep Period | F95: =F94 -> 8 | I95: =I4=$F$95 -> FALSE | J95: FALSE | K95: FALSE | L95: FALSE | M95: FALSE | N95: FALSE | O95: FALSE | P95: TRUE | Q95: FALSE | R95: FALSE | S95: FALSE | T95: FALSE | U95: FALSE | V95: FALSE | W95: FALSE | X95: FALSE | Y95: FALSE | Z95: FALSE | AA95: FALSE | AB95: FALSE | AC95: FALSE | AD95: FALSE | AE95: FALSE | AF95: FALSE | AG95: FALSE | AH95: FALSE | AI95: FALSE | AJ95: FALSE | AK95: FALSE | AL95: FALSE | AM95: FALSE | AN95: FALSE | AO95: FALSE | AP95: FALSE | AQ95: FALSE | AR95: FALSE | AS95: FALSE | AT95: FALSE | AU95: FALSE | AV95: FALSE
C96: Sweep in Final Year | F96: 0.6 | G96: swep_applied | I96: =$F$96*I95 -> 0 | J96: =$F$96*J95 -> 0 | K96: 0 | L96: 0 | M96: 0 | N96: 0 | O96: 0 | P96: 0.6 | Q96: 0 | R96: 0 | S96: 0 | T96: 0 | U96: 0 | V96: 0 | W96: 0 | X96: 0 | Y96: 0 | Z96: 0 | AA96: 0 | AB96: 0 | AC96: 0 | AD96: 0 | AE96: 0 | AF96: 0 | AG96: 0 | AH96: 0 | AI96: 0 | AJ96: 0 | AK96: 0 | AL96: 0 | AM96: 0 | AN96: 0 | AO96: 0 | AP96: 0 | AQ96: 0 | AR96: 0 | AS96: 0 | AT96: 0 | AU96: 0 | AV96: 0
C97: Sweep Applied | I97: =I93*I94+I95*I96 -> 1 | J97: =J93*J94+J95*J96 -> 1 | K97: 1 | L97: 1 | M97: 1 | N97: 1 | O97: 1 | P97: 0.6 | Q97: 0 | R97: 0 | S97: 0 | T97: 0 | U97: 0 | V97: 0 | W97: 0 | X97: 0 | Y97: 0 | Z97: 0 | AA97: 0 | AB97: 0 | AC97: 0 | AD97: 0 | AE97: 0 | AF97: 0 | AG97: 0 | AH97: 0 | AI97: 0 | AJ97: 0 | AK97: 0 | AL97: 0 | AM97: 0 | AN97: 0 | AO97: 0 | AP97: 0 | AQ97: 0 | AR97: 0 | AS97: 0 | AT97: 0 | AU97: 0 | AV97: 0
B101: Adjusted Debt Schedule
C102: Base Debt
D103: Opening Debt | E103: Euro | I103: =H107 -> 0 | J103: =I107 -> 870.8664771 | K103: 833.4024685 | L103: 792.7195196 | M103: 748.6421168 | N103: 700.9862352 | O103: 649.5589434 | P103: 594.1579901 | Q103: 553.9089363 | R103: 541.188343 | S103: 526.9039188 | T103: 510.9654633 | U103: 493.2783205 | V103: 473.7431704 | W103: 452.2558108 | X103: 428.7069299 | Y103: 402.9818672 | Z103: 374.9603651 | AA103: 344.5163074 | AB103: 311.5174475 | AC103: 275.8251229 | AD103: 237.2939572 | AE103: 195.771549 | AF103: 151.0981456 | AG103: 103.1063023 | AH103: 51.6205267 | AI103: 0 | AJ103: 0 | AK103: 0 | AL103: 0 | AM103: 0 | AN103: 1.483613232e-13 | AO103: 3.03398906e-13 | AP103: 4.6541318e-13 | AQ103: 6.347180963e-13 | AR103: 8.116417339e-13 | AS103: 9.965269351e-13 | AT103: 1.18973197e-12 | AU103: 1.391631232e-12 | AV103: 1.602615961e-12
D104: Add: Debt Issue | E104: Euro | I104: =I40 -> 870.8664771 | J104: 0 | K104: 0 | L104: 0 | M104: 0 | N104: 0 | O104: 0 | P104: 0 | Q104: 0 | R104: 0 | S104: 0 | T104: 0 | U104: 0 | V104: 0 | W104: 0 | X104: 0 | Y104: 0 | Z104: 0 | AA104: 0 | AB104: 0 | AC104: 0 | AD104: 0 | AE104: 0 | AF104: 0 | AG104: 0 | AH104: 0 | AI104: 0 | AJ104: 0 | AK104: 0 | AL104: 0 | AM104: 0 | AN104: 0 | AO104: 0 | AP104: 0 | AQ104: 0 | AR104: 0 | AS104: 0 | AT104: 0 | AU104: 0 | AV104: 0
D105: Less: Scheduled | E105: Euro | I105: =MIN(I58,I103) -> 0 | J105: 3.964854686 | K105: 5.00635007 | L105: 6.111974285 | M105: 7.284958359 | N105: 8.52868562 | O105: 9.846698691 | P105: 11.24270679 | Q105: 12.7205934 | R105: 14.28442419 | S105: 15.93845545 | T105: 17.68714277 | U105: 19.53515014 | V105: 21.48735957 | W105: 23.54888098 | X105: 25.72506265 | Y105: 28.02150214 | Z105: 30.44405764 | AA105: 32.9988599 | AB105: 35.69232465 | AC105: 38.53116564 | AD105: 41.52240819 | AE105: 44.67340347 | AF105: 47.99184327 | AG105: 51.4857756 | AH105: 51.6205267 | AI105: 0 | AJ105: 0 | AK105: 0 | AL105: 0 | AM105: -1.483613232e-13 | AN105: -1.550375828e-13 | AO105: -1.62014274e-13 | AP105: -1.693049163e-13 | AQ105: -1.769236376e-13 | AR105: -1.848852013e-13 | AS105: -1.932050353e-13 | AT105: -2.018992619e-13 | AU105: -2.109847287e-13 | AV105: -2.204790415e-13
D106: Less: Cash Sweep | E106: Euro | I106: =I130 -> 0 | J106: =J130 -> 33.49915385 | K106: 35.67659885 | L106: 37.96542853 | M106: 40.37092321 | N106: 42.89860616 | O106: 45.55425466 | P106: 29.00634695 | Q106: 0 | R106: 0 | S106: 0 | T106: 0 | U106: 0 | V106: 0 | W106: 0 | X106: 0 | Y106: 0 | Z106: 0 | AA106: 0 | AB106: 0 | AC106: 0 | AD106: 0 | AE106: 0 | AF106: 0 | AG106: 0 | AH106: 0 | AI106: 0 | AJ106: 0 | AK106: 0 | AL106: 0 | AM106: 0 | AN106: 0 | AO106: 0 | AP106: 0 | AQ106: 0 | AR106: 0 | AS106: 0 | AT106: 0 | AU106: 0 | AV106: 0
D107: Closing Balance | E107: Euro | I107: =I103+I104-I105-I106 -> 870.8664771 | J107: =J103+J104-J105-J106 -> 833.4024685 | K107: 792.7195196 | L107: 748.6421168 | M107: 700.9862352 | N107: 649.5589434 | O107: 594.1579901 | P107: 553.9089363 | Q107: 541.188343 | R107: 526.9039188 | S107: 510.9654633 | T107: 493.2783205 | U107: 473.7431704 | V107: 452.2558108 | W107: 428.7069299 | X107: 402.9818672 | Y107: 374.9603651 | Z107: 344.5163074 | AA107: 311.5174475 | AB107: 275.8251229 | AC107: 237.2939572 | AD107: 195.771549 | AE107: 151.0981456 | AF107: 103.1063023 | AG107: 51.6205267 | AH107: 0 | AI107: 0 | AJ107: 0 | AK107: 0 | AL107: 0 | AM107: 1.483613232e-13 | AN107: 3.03398906e-13 | AO107: 4.6541318e-13 | AP107: 6.347180963e-13 | AQ107: 8.116417339e-13 | AR107: 9.965269351e-13 | AS107: 1.18973197e-12 | AT107: 1.391631232e-12 | AU107: 1.602615961e-12 | AV107: 1.823095002e-12
D108: Interest | E108: Euro | F108: =$F$43 -> 0.045 | I108: =I103*$F$108 -> 0 | J108: =J103*$F$108 -> 39.18899147 | K108: 37.50311108 | L108: 35.67237838 | M108: 33.68889526 | N108: 31.54438058 | O108: 29.23015245 | P108: 26.73710955 | Q108: 24.92590214 | R108: 24.35347543 | S108: 23.71067634 | T108: 22.99344585 | U108: 22.19752442 | V108: 21.31844267 | W108: 20.35151149 | X108: 19.29181184 | Y108: 18.13418402 | Z108: 16.87321643 | AA108: 15.50323383 | AB108: 14.01828514 | AC108: 12.41213053 | AD108: 10.67822808 | AE108: 8.809719706 | AF108: 6.79941655 | AG108: 4.639783603 | AH108: 2.322923701 | AI108: 0 | AJ108: 0 | AK108: 0 | AL108: 0 | AM108: 0 | AN108: 6.676259545e-15 | AO108: 1.365295077e-14 | AP108: 2.09435931e-14 | AQ108: 2.856231433e-14 | AR108: 3.652387802e-14 | AS108: 4.484371208e-14 | AT108: 5.353793867e-14 | AU108: 6.262340546e-14 | AV108: 7.211771825e-14
C110: Defaulted Debt
D111: Opening Balance | E111: Euro | I111: =H114 -> 0 | J111: =I114 -> 0 | K111: 0 | L111: 0 | M111: 0 | N111: 0 | O111: 0 | P111: 0 | Q111: 0 | R111: 0 | S111: 0 | T111: 0 | U111: 0 | V111: 0 | W111: 0 | X111: 0 | Y111: 0 | Z111: 0 | AA111: 0 | AB111: 0 | AC111: 0 | AD111: 0 | AE111: 0 | AF111: 0 | AG111: 0 | AH111: 0 | AI111: 0 | AJ111: 0 | AK111: 0 | AL111: 0 | AM111: 0 | AN111: 0 | AO111: 0 | AP111: 0 | AQ111: 0 | AR111: 0 | AS111: 0 | AT111: 0 | AU111: 0 | AV111: 0
D112: Add: Default | E112: Euro
D113: Less: Repayment of Default | E113: Euro
D114: Closing Balance | E114: Euro | I114: =I111+I112-I113 -> 0 | J114: =J111+J112-J113 -> 0 | K114: 0 | L114: 0 | M114: 0 | N114: 0 | O114: 0 | P114: 0 | Q114: 0 | R114: 0 | S114: 0 | T114: 0 | U114: 0 | V114: 0 | W114: 0 | X114: 0 | Y114: 0 | Z114: 0 | AA114: 0 | AB114: 0 | AC114: 0 | AD114: 0 | AE114: 0 | AF114: 0 | AG114: 0 | AH114: 0 | AI114: 0 | AJ114: 0 | AK114: 0 | AL114: 0 | AM114: 0 | AN114: 0 | AO114: 0 | AP114: 0 | AQ114: 0 | AR114: 0 | AS114: 0 | AT114: 0 | AU114: 0 | AV114: 0
D115: Interest | E115: Euro | F115: =$F$43 -> 0.045 | I115: =I111*$F$115 -> 0 | J115: =J111*$F$115 -> 0 | K115: 0 | L115: 0 | M115: 0 | N115: 0 | O115: 0 | P115: 0 | Q115: 0 | R115: 0 | S115: 0 | T115: 0 | U115: 0 | V115: 0 | W115: 0 | X115: 0 | Y115: 0 | Z115: 0 | AA115: 0 | AB115: 0 | AC115: 0 | AD115: 0 | AE115: 0 | AF115: 0 | AG115: 0 | AH115: 0 | AI115: 0 | AJ115: 0 | AK115: 0 | AL115: 0 | AM115: 0 | AN115: 0 | AO115: 0 | AP115: 0 | AQ115: 0 | AR115: 0 | AS115: 0 | AT115: 0 | AU115: 0 | AV115: 0
D117: Total Interest | E117: Euro | I117: =I115+I108 -> 0 | J117: =J115+J108 -> 39.18899147 | K117: 37.50311108 | L117: 35.67237838 | M117: 33.68889526 | N117: 31.54438058 | O117: 29.23015245 | P117: 26.73710955 | Q117: 24.92590214 | R117: 24.35347543 | S117: 23.71067634 | T117: 22.99344585 | U117: 22.19752442 | V117: 21.31844267 | W117: 20.35151149 | X117: 19.29181184 | Y117: 18.13418402 | Z117: 16.87321643 | AA117: 15.50323383 | AB117: 14.01828514 | AC117: 12.41213053 | AD117: 10.67822808 | AE117: 8.809719706 | AF117: 6.79941655 | AG117: 4.639783603 | AH117: 2.322923701 | AI117: 0 | AJ117: 0 | AK117: 0 | AL117: 0 | AM117: 0 | AN117: 6.676259545e-15 | AO117: 1.365295077e-14 | AP117: 2.09435931e-14 | AQ117: 2.856231433e-14 | AR117: 3.652387802e-14 | AS117: 4.484371208e-14 | AT117: 5.353793867e-14 | AU117: 6.262340546e-14 | AV117: 7.211771825e-14
B119: Adjusted Cash Waterfall
C120: Adjusted Revenues | E120: Euro | I120: =I91 -> 0 | J120: =J91 -> 86.853 | K120: 88.59006 | L120: 90.3618612 | M120: 92.16909842 | N120: 94.01248039 | O120: 95.89273 | P120: 97.8105846 | Q120: 99.76679629 | R120: 101.7621322 | S120: 103.7973749 | T120: 105.8733224 | U120: 107.9907888 | V120: 110.1506046 | W120: 112.3536167 | X120: 114.600689 | Y120: 116.8927028 | Z120: 119.2305568 | AA120: 121.615168 | AB120: 124.0474713 | AC120: 126.5284208 | AD120: 129.0589892 | AE120: 131.640169 | AF120: 134.2729723 | AG120: 136.9584318 | AH120: 139.6976004 | AI120: 142.4915524 | AJ120: 145.3413835 | AK120: 148.2482112 | AL120: 151.2131754 | AM120: 154.2374389 | AN120: 0 | AO120: 0 | AP120: 0 | AQ120: 0 | AR120: 0 | AS120: 0 | AT120: 0 | AU120: 0 | AV120: 0
C121: Less Operating Expense | E121: Euro | I121: =I12 -> 0 | J121: 10.2 | K121: 10.404 | L121: 10.61208 | M121: 10.8243216 | N121: 11.04080803 | O121: 11.26162419 | P121: 11.48685668 | Q121: 11.71659381 | R121: 11.95092569 | S121: 12.1899442 | T121: 12.43374308 | U121: 12.68241795 | V121: 12.9360663 | W121: 13.19478763 | X121: 13.45868338 | Y121: 13.72785705 | Z121: 14.00241419 | AA121: 14.28246248 | AB121: 14.56811173 | AC121: 14.85947396 | AD121: 15.15666344 | AE121: 15.45979671 | AF121: 15.76899264 | AG121: 16.08437249 | AH121: 16.40605994 | AI121: 16.73418114 | AJ121: 17.06886477 | AK121: 17.41024206 | AL121: 17.7584469 | AM121: 18.11361584 | AN121: 0 | AO121: 0 | AP121: 0 | AQ121: 0 | AR121: 0 | AS121: 0 | AT121: 0 | AU121: 0 | AV121: 0
C122: EBITDA | I122: =I120-I121 -> 0 | J122: =J120-J121 -> 76.653 | K122: 78.18606 | L122: 79.7497812 | M122: 81.34477682 | N122: 82.97167236 | O122: 84.63110581 | P122: 86.32372792 | Q122: 88.05020248 | R122: 89.81120653 | S122: 91.60743066 | T122: 93.43957928 | U122: 95.30837086 | V122: 97.21453828 | W122: 99.15882904 | X122: 101.1420056 | Y122: 103.1648457 | Z122: 105.2281427 | AA122: 107.3327055 | AB122: 109.4793596 | AC122: 111.6689468 | AD122: 113.9023257 | AE122: 116.1803723 | AF122: 118.5039797 | AG122: 120.8740593 | AH122: 123.2915405 | AI122: 125.7573713 | AJ122: 128.2725187 | AK122: 130.8379691 | AL122: 133.4547285 | AM122: 136.123823 | AN122: 0 | AO122: 0 | AP122: 0 | AQ122: 0 | AR122: 0 | AS122: 0 | AT122: 0 | AU122: 0 | AV122: 0
C124: Less: Interest | E124: Euro | I124: =I117 -> 0 | J124: =J117 -> 39.18899147 | K124: 37.50311108 | L124: 35.67237838 | M124: 33.68889526 | N124: 31.54438058 | O124: 29.23015245 | P124: 26.73710955 | Q124: 24.92590214 | R124: 24.35347543 | S124: 23.71067634 | T124: 22.99344585 | U124: 22.19752442 | V124: 21.31844267 | W124: 20.35151149 | X124: 19.29181184 | Y124: 18.13418402 | Z124: 16.87321643 | AA124: 15.50323383 | AB124: 14.01828514 | AC124: 12.41213053 | AD124: 10.67822808 | AE124: 8.809719706 | AF124: 6.79941655 | AG124: 4.639783603 | AH124: 2.322923701 | AI124: 0 | AJ124: 0 | AK124: 0 | AL124: 0 | AM124: 0 | AN124: 6.676259545e-15 | AO124: 1.365295077e-14 | AP124: 2.09435931e-14 | AQ124: 2.856231433e-14 | AR124: 3.652387802e-14 | AS124: 4.484371208e-14 | AT124: 5.353793867e-14 | AU124: 6.262340546e-14 | AV124: 7.211771825e-14
C125: Less: Debt Repayment Scheduled | E125: Euro | I125: =I105 -> 0 | J125: =J105 -> 3.964854686 | K125: 5.00635007 | L125: 6.111974285 | M125: 7.284958359 | N125: 8.52868562 | O125: 9.846698691 | P125: 11.24270679 | Q125: 12.7205934 | R125: 14.28442419 | S125: 15.93845545 | T125: 17.68714277 | U125: 19.53515014 | V125: 21.48735957 | W125: 23.54888098 | X125: 25.72506265 | Y125: 28.02150214 | Z125: 30.44405764 | AA125: 32.9988599 | AB125: 35.69232465 | AC125: 38.53116564 | AD125: 41.52240819 | AE125: 44.67340347 | AF125: 47.99184327 | AG125: 51.4857756 | AH125: 51.6205267 | AI125: 0 | AJ125: 0 | AK125: 0 | AL125: 0 | AM125: -1.483613232e-13 | AN125: -1.550375828e-13 | AO125: -1.62014274e-13 | AP125: -1.693049163e-13 | AQ125: -1.769236376e-13 | AR125: -1.848852013e-13 | AS125: -1.932050353e-13 | AT125: -2.018992619e-13 | AU125: -2.109847287e-13 | AV125: -2.204790415e-13
C126: Cash Flow After Scheduled Debt Service | E126: Euro | I126: =I122-I124-I125 -> 0 | J126: =J122-J124-J125 -> 33.49915385 | K126: 35.67659885 | L126: 37.96542853 | M126: 40.37092321 | N126: 42.89860616 | O126: 45.55425466 | P126: 48.34391158 | Q126: 50.40370695 | R126: 51.17330691 | S126: 51.95829887 | T126: 52.75899066 | U126: 53.57569629 | V126: 54.40873604 | W126: 55.25843658 | X126: 56.12513113 | Y126: 57.00915957 | Z126: 57.91086858 | AA126: 58.83061177 | AB126: 59.76874983 | AC126: 60.72565064 | AD126: 61.70168947 | AE126: 62.69724908 | AF126: 63.71271988 | AG126: 64.7485001 | AH126: 69.34809009 | AI126: 125.7573713 | AJ126: 128.2725187 | AK126: 130.8379691 | AL126: 133.4547285 | AM126: 136.123823 | AN126: 1.483613232e-13 | AO126: 1.483613232e-13 | AP126: 1.483613232e-13 | AQ126: 1.483613232e-13 | AR126: 1.483613232e-13 | AS126: 1.483613232e-13 | AT126: 1.483613232e-13 | AU126: 1.483613232e-13 | AV126: 1.483613232e-13
C128: Cash Sweep | E128: % | G128: 0 | I128: =I97 -> 1 | J128: =J97 -> 1 | K128: 1 | L128: 1 | M128: 1 | N128: 1 | O128: 1 | P128: 0.6 | Q128: 0 | R128: 0 | S128: 0 | T128: 0 | U128: 0 | V128: 0 | W128: 0 | X128: 0 | Y128: 0 | Z128: 0 | AA128: 0 | AB128: 0 | AC128: 0 | AD128: 0 | AE128: 0 | AF128: 0 | AG128: 0 | AH128: 0 | AI128: 0 | AJ128: 0 | AK128: 0 | AL128: 0 | AM128: 0 | AN128: 0 | AO128: 0 | AP128: 0 | AQ128: 0 | AR128: 0 | AS128: 0 | AT128: 0 | AU128: 0 | AV128: 0
C129: Cash Swept Before Constraint | E129: Euro | I129: =MAX(I126,0)*I128 -> 0 | J129: =MAX(J126,0)*J128 -> 33.49915385 | K129: 35.67659885 | L129: 37.96542853 | M129: 40.37092321 | N129: 42.89860616 | O129: 45.55425466 | P129: 29.00634695 | Q129: 0 | R129: 0 | S129: 0 | T129: 0 | U129: 0 | V129: 0 | W129: 0 | X129: 0 | Y129: 0 | Z129: 0 | AA129: 0 | AB129: 0 | AC129: 0 | AD129: 0 | AE129: 0 | AF129: 0 | AG129: 0 | AH129: 0 | AI129: 0 | AJ129: 0 | AK129: 0 | AL129: 0 | AM129: 0 | AN129: 0 | AO129: 0 | AP129: 0 | AQ129: 0 | AR129: 0 | AS129: 0 | AT129: 0 | AU129: 0 | AV129: 0
C130: Cash Swept After Constraint | I130: =MIN(I129,I103-I105) -> 0 | J130: =MIN(J129,J103-J105) -> 33.49915385 | K130: 35.67659885 | L130: 37.96542853 | M130: 40.37092321 | N130: 42.89860616 | O130: 45.55425466 | P130: 29.00634695 | Q130: 0 | R130: 0 | S130: 0 | T130: 0 | U130: 0 | V130: 0 | W130: 0 | X130: 0 | Y130: 0 | Z130: 0 | AA130: 0 | AB130: 0 | AC130: 0 | AD130: 0 | AE130: 0 | AF130: 0 | AG130: 0 | AH130: 0 | AI130: 0 | AJ130: 0 | AK130: 0 | AL130: 0 | AM130: 0 | AN130: 0 | AO130: 0 | AP130: 0 | AQ130: 0 | AR130: 0 | AS130: 0 | AT130: 0 | AU130: 0 | AV130: 0
C132: Cash Flow Before Default | E132: Euro | I132: =I126-I130 -> 0 | J132: =J126-J130 -> 0 | K132: 0 | L132: 0 | M132: 0 | N132: 0 | O132: 0 | P132: 19.33756463 | Q132: 50.40370695 | R132: 51.17330691 | S132: 51.95829887 | T132: 52.75899066 | U132: 53.57569629 | V132: 54.40873604 | W132: 55.25843658 | X132: 56.12513113 | Y132: 57.00915957 | Z132: 57.91086858 | AA132: 58.83061177 | AB132: 59.76874983 | AC132: 60.72565064 | AD132: 61.70168947 | AE132: 62.69724908 | AF132: 63.71271988 | AG132: 64.7485001 | AH132: 69.34809009 | AI132: 125.7573713 | AJ132: 128.2725187 | AK132: 130.8379691 | AL132: 133.4547285 | AM132: 136.123823 | AN132: 1.483613232e-13 | AO132: 1.483613232e-13 | AP132: 1.483613232e-13 | AQ132: 1.483613232e-13 | AR132: 1.483613232e-13 | AS132: 1.483613232e-13 | AT132: 1.483613232e-13 | AU132: 1.483613232e-13 | AV132: 1.483613232e-13
C133: Add: Repayment not Made from Default | E133: Euro | I133: =MAX(-I132,0) -> 0 | J133: =MAX(-J132,0) -> 0 | K133: 0 | L133: 0 | M133: 0 | N133: 0 | O133: 0 | P133: 0 | Q133: 0 | R133: 0 | S133: 0 | T133: 0 | U133: 0 | V133: 0 | W133: 0 | X133: 0 | Y133: 0 | Z133: 0 | AA133: 0 | AB133: 0 | AC133: 0 | AD133: 0 | AE133: 0 | AF133: 0 | AG133: 0 | AH133: 0 | AI133: 0 | AJ133: 0 | AK133: 0 | AL133: 0 | AM133: 0 | AN133: 0 | AO133: 0 | AP133: 0 | AQ133: 0 | AR133: 0 | AS133: 0 | AT133: 0 | AU133: 0 | AV133: 0
C134: Less: Repayment of Default | E134: Euro | I134: =MIN(MAX(I126,0),I111) -> 0 | J134: =MIN(MAX(J126,0),J111) -> 0 | K134: 0 | L134: 0 | M134: 0 | N134: 0 | O134: 0 | P134: 0 | Q134: 0 | R134: 0 | S134: 0 | T134: 0 | U134: 0 | V134: 0 | W134: 0 | X134: 0 | Y134: 0 | Z134: 0 | AA134: 0 | AB134: 0 | AC134: 0 | AD134: 0 | AE134: 0 | AF134: 0 | AG134: 0 | AH134: 0 | AI134: 0 | AJ134: 0 | AK134: 0 | AL134: 0 | AM134: 0 | AN134: 0 | AO134: 0 | AP134: 0 | AQ134: 0 | AR134: 0 | AS134: 0 | AT134: 0 | AU134: 0 | AV134: 0
C136: Cash Flow After Sweep | E136: Euro | I136: =I132+I133-I134 -> 0 | J136: =J132+J133-J134 -> 0 | K136: 0 | L136: 0 | M136: 0 | N136: 0 | O136: 0 | P136: 19.33756463 | Q136: 50.40370695 | R136: 51.17330691 | S136: 51.95829887 | T136: 52.75899066 | U136: 53.57569629 | V136: 54.40873604 | W136: 55.25843658 | X136: 56.12513113 | Y136: 57.00915957 | Z136: 57.91086858 | AA136: 58.83061177 | AB136: 59.76874983 | AC136: 60.72565064 | AD136: 61.70168947 | AE136: 62.69724908 | AF136: 63.71271988 | AG136: 64.7485001 | AH136: 69.34809009 | AI136: 125.7573713 | AJ136: 128.2725187 | AK136: 130.8379691 | AL136: 133.4547285 | AM136: 136.123823 | AN136: 1.483613232e-13 | AO136: 1.483613232e-13 | AP136: 1.483613232e-13 | AQ136: 1.483613232e-13 | AR136: 1.483613232e-13 | AS136: 1.483613232e-13 | AT136: 1.483613232e-13 | AU136: 1.483613232e-13 | AV136: 1.483613232e-13
C138: Dividends | I138: =I136 -> 0 | J138: =J136 -> 0 | K138: 0 | L138: 0 | M138: 0 | N138: 0 | O138: 0 | P138: 19.33756463 | Q138: 50.40370695 | R138: 51.17330691 | S138: 51.95829887 | T138: 52.75899066 | U138: 53.57569629 | V138: 54.40873604 | W138: 55.25843658 | X138: 56.12513113 | Y138: 57.00915957 | Z138: 57.91086858 | AA138: 58.83061177 | AB138: 59.76874983 | AC138: 60.72565064 | AD138: 61.70168947 | AE138: 62.69724908 | AF138: 63.71271988 | AG138: 64.7485001 | AH138: 69.34809009 | AI138: 125.7573713 | AJ138: 128.2725187 | AK138: 130.8379691 | AL138: 133.4547285 | AM138: 136.123823 | AN138: 1.483613232e-13 | AO138: 1.483613232e-13 | AP138: 1.483613232e-13 | AQ138: 1.483613232e-13 | AR138: 1.483613232e-13 | AS138: 1.483613232e-13 | AT138: 1.483613232e-13 | AU138: 1.483613232e-13 | AV138: 1.483613232e-13
B140: Ratios
C141: Equity Cash Flow | I141: =I138-I52 -> -129.1335229 | J141: 0 | K141: 0 | L141: 0 | M141: 0 | N141: 0 | O141: 0 | P141: 19.33756463 | Q141: 50.40370695 | R141: 51.17330691 | S141: 51.95829887 | T141: 52.75899066 | U141: 53.57569629 | V141: 54.40873604 | W141: 55.25843658 | X141: 56.12513113 | Y141: 57.00915957 | Z141: 57.91086858 | AA141: 58.83061177 | AB141: 59.76874983 | AC141: 60.72565064 | AD141: 61.70168947 | AE141: 62.69724908 | AF141: 63.71271988 | AG141: 64.7485001 | AH141: 69.34809009 | AI141: 125.7573713 | AJ141: 128.2725187 | AK141: 130.8379691 | AL141: 133.4547285 | AM141: 136.123823 | AN141: 1.483613232e-13 | AO141: 1.483613232e-13 | AP141: 1.483613232e-13 | AQ141: 1.483613232e-13 | AR141: 1.483613232e-13 | AS141: 1.483613232e-13 | AT141: 1.483613232e-13 | AU141: 1.483613232e-13 | AV141: 1.483613232e-13
C142: Equity IRR | F142: =IRR(I141:AV141) -> 0.1602633872
C144: DSCR | I144: =IFERROR(I122/(I124+I125),FALSE) -> FALSE | J144: =IFERROR(J122/(J124+J125),FALSE) -> 1.776272727 | K144: 1.839262552 | L144: 1.908603966 | M144: 1.985284996 | N144: 2.070509702 | O144: 2.165760631 | P144: 2.27288429 | Q144: 2.338868499 | R144: 2.324432938 | S144: 2.310452373 | T144: 2.296908242 | U144: 2.283782955 | V144: 2.271059838 | W144: 2.258723065 | X144: 2.246757616 | Y144: 2.235149216 | Z144: 2.223884294 | AA144: 2.212949942 | AB144: 2.20233387 | AC144: 2.192024372 | AD144: 2.182010295 | AE144: 2.172280999 | AF144: 2.162826336 | AG144: 2.153636614 | AH144: 2.285570159 | AI144: FALSE | AJ144: FALSE | AK144: FALSE | AL144: FALSE | AM144: -9.175155633e+14 | AN144: 0 | AO144: 0 | AP144: 0 | AQ144: 0 | AR144: 0 | AS144: 0 | AT144: 0 | AU144: 0 | AV144: 0
C146: CFADS for Loan Life | I146: =IF(I34,I122) -> FALSE | J146: 76.653 | K146: 78.18606 | L146: 79.7497812 | M146: 81.34477682 | N146: 82.97167236 | O146: 84.63110581 | P146: 86.32372792 | Q146: 88.05020248 | R146: 89.81120653 | S146: 91.60743066 | T146: 93.43957928 | U146: 95.30837086 | V146: 97.21453828 | W146: 99.15882904 | X146: 101.1420056 | Y146: 103.1648457 | Z146: 105.2281427 | AA146: 107.3327055 | AB146: 109.4793596 | AC146: 111.6689468 | AD146: 113.9023257 | AE146: 116.1803723 | AF146: 118.5039797 | AG146: 120.8740593 | AH146: 123.2915405 | AI146: 125.7573713 | AJ146: 128.2725187 | AK146: 130.8379691 | AL146: 133.4547285 | AM146: FALSE | AN146: FALSE | AO146: FALSE | AP146: FALSE | AQ146: FALSE | AR146: FALSE | AS146: FALSE | AT146: FALSE | AU146: FALSE | AV146: FALSE
C147: NPV of CFADS | F147: =F115 -> 0.045 | G147: =NPV(F147,I146:AV146) -> 1546.896372
C148: Debt Balance | G148: =F40 -> 870.8664771
C149: LLCR | G149: =G147/G148 -> 1.776272727
C151: CFADS for Life | F151: =F147 -> 0.045 | G151: =NPV(F151,I151:AV151) -> 1583.241435 | I151: =IF(I6,I122) -> FALSE | J151: 76.653 | K151: 78.18606 | L151: 79.7497812 | M151: 81.34477682 | N151: 82.97167236 | O151: 84.63110581 | P151: 86.32372792 | Q151: 88.05020248 | R151: 89.81120653 | S151: 91.60743066 | T151: 93.43957928 | U151: 95.30837086 | V151: 97.21453828 | W151: 99.15882904 | X151: 101.1420056 | Y151: 103.1648457 | Z151: 105.2281427 | AA151: 107.3327055 | AB151: 109.4793596 | AC151: 111.6689468 | AD151: 113.9023257 | AE151: 116.1803723 | AF151: 118.5039797 | AG151: 120.8740593 | AH151: 123.2915405 | AI151: 125.7573713 | AJ151: 128.2725187 | AK151: 130.8379691 | AL151: 133.4547285 | AM151: 136.123823 | AN151: FALSE | AO151: FALSE | AP151: FALSE | AQ151: FALSE | AR151: FALSE | AS151: FALSE | AT151: FALSE | AU151: FALSE | AV151: FALSE
C152: Debt Balance | G152: =G148 -> 870.8664771
C153: PLCR | G153: =G151/G152 -> 1.818007096
B155: Graphs
I156: =I66 ->  | J156: 2 | K156: 3 | L156: 4 | M156: 5 | N156: 6 | O156: 7 | P156: 8 | Q156: 9 | R156: 10 | S156: 11 | T156: 12 | U156: 13 | V156: 14 | W156: 15 | X156: 16 | Y156: 17 | Z156: 18 | AA156: 19 | AB156: 20 | AC156: 21 | AD156: 22 | AE156: 23 | AF156: 24 | AG156: 25 | AH156: 26 | AI156: 27 | AJ156: 28 | AK156: 29 | AL156: 30 | AM156: 31
D157: Scheduled Debt Service | I157: =I124+I125 -> 0 | J157: =J124+J125 -> 43.15384615 | K157: 42.50946115 | L157: 41.78435267 | M157: 40.97385361 | N157: 40.07306621 | O157: 39.07685115 | P157: 37.97981635 | Q157: 37.64649553 | R157: 38.63789962 | S157: 39.6491318 | T157: 40.68058861 | U157: 41.73267457 | V157: 42.80580224 | W157: 43.90039247 | X157: 45.0168745 | Y157: 46.15568617 | Z157: 47.31727407 | AA157: 48.50209373 | AB157: 49.71060979 | AC157: 50.94329617 | AD157: 52.20063627 | AE157: 53.48312318 | AF157: 54.79125982 | AG157: 56.1255592 | AH157: 53.9434504 | AI157: 0 | AJ157: 0 | AK157: 0 | AL157: 0 | AM157: -1.483613232e-13 | AN157: -1.483613232e-13 | AO157: -1.483613232e-13 | AP157: -1.483613232e-13 | AQ157: -1.483613232e-13 | AR157: -1.483613232e-13 | AS157: -1.483613232e-13 | AT157: -1.483613232e-13 | AU157: -1.483613232e-13 | AV157: -1.483613232e-13
D158: Sweep | I158: =I130 -> 0 | J158: =J130 -> 33.49915385 | K158: 35.67659885 | L158: 37.96542853 | M158: 40.37092321 | N158: 42.89860616 | O158: 45.55425466 | P158: 29.00634695 | Q158: 0 | R158: 0 | S158: 0 | T158: 0 | U158: 0 | V158: 0 | W158: 0 | X158: 0 | Y158: 0 | Z158: 0 | AA158: 0 | AB158: 0 | AC158: 0 | AD158: 0 | AE158: 0 | AF158: 0 | AG158: 0 | AH158: 0 | AI158: 0 | AJ158: 0 | AK158: 0 | AL158: 0 | AM158: 0 | AN158: 0 | AO158: 0 | AP158: 0 | AQ158: 0 | AR158: 0 | AS158: 0 | AT158: 0 | AU158: 0 | AV158: 0
D159: Repayment of Default | I159: =I134 -> 0 | J159: =J134 -> 0 | K159: 0 | L159: 0 | M159: 0 | N159: 0 | O159: 0 | P159: 0 | Q159: 0 | R159: 0 | S159: 0 | T159: 0 | U159: 0 | V159: 0 | W159: 0 | X159: 0 | Y159: 0 | Z159: 0 | AA159: 0 | AB159: 0 | AC159: 0 | AD159: 0 | AE159: 0 | AF159: 0 | AG159: 0 | AH159: 0 | AI159: 0 | AJ159: 0 | AK159: 0 | AL159: 0 | AM159: 0 | AN159: 0 | AO159: 0 | AP159: 0 | AQ159: 0 | AR159: 0 | AS159: 0 | AT159: 0 | AU159: 0 | AV159: 0
D160: Default | I160: =-I133 -> 0 | J160: =-J133 -> 0 | K160: 0 | L160: 0 | M160: 0 | N160: 0 | O160: 0 | P160: 0 | Q160: 0 | R160: 0 | S160: 0 | T160: 0 | U160: 0 | V160: 0 | W160: 0 | X160: 0 | Y160: 0 | Z160: 0 | AA160: 0 | AB160: 0 | AC160: 0 | AD160: 0 | AE160: 0 | AF160: 0 | AG160: 0 | AH160: 0 | AI160: 0 | AJ160: 0 | AK160: 0 | AL160: 0 | AM160: 0 | AN160: 0 | AO160: 0 | AP160: 0 | AQ160: 0 | AR160: 0 | AS160: 0 | AT160: 0 | AU160: 0 | AV160: 0
D161: Dividend | I161: =I138 -> 0 | J161: =J138 -> 0 | K161: 0 | L161: 0 | M161: 0 | N161: 0 | O161: 0 | P161: 19.33756463 | Q161: 50.40370695 | R161: 51.17330691 | S161: 51.95829887 | T161: 52.75899066 | U161: 53.57569629 | V161: 54.40873604 | W161: 55.25843658 | X161: 56.12513113 | Y161: 57.00915957 | Z161: 57.91086858 | AA161: 58.83061177 | AB161: 59.76874983 | AC161: 60.72565064 | AD161: 61.70168947 | AE161: 62.69724908 | AF161: 63.71271988 | AG161: 64.7485001 | AH161: 69.34809009 | AI161: 125.7573713 | AJ161: 128.2725187 | AK161: 130.8379691 | AL161: 133.4547285 | AM161: 136.123823 | AN161: 1.483613232e-13 | AO161: 1.483613232e-13 | AP161: 1.483613232e-13 | AQ161: 1.483613232e-13 | AR161: 1.483613232e-13 | AS161: 1.483613232e-13 | AT161: 1.483613232e-13 | AU161: 1.483613232e-13 | AV161: 1.483613232e-13
D163: Equity IRR with Sweep | F163: =F142 -> 0.1602633872 | G163: Equity IRR Before | H163: =E70 -> 0.1155576952 | I163: Year of Sweep End | J163: =F94 -> 8 | K163: =F85 -> 1 | L163: Cash Sweep Percent | N163: =F128 -> 0 | O163: Unpaid Debt at Project Life | R163: =#REF! ->  | S163: Unpaid Debt at Loan Life

Sheet Sub Debt
B2: Timing
C3: Period | I3: =_xlfn.SEQUENCE(,120) -> 1 | J3: 2 | K3: 3 | L3: 4 | M3: 5 | N3: 6 | O3: 7 | P3: 8 | Q3: 9 | R3: 10 | S3: 11 | T3: 12 | U3: 13 | V3: 14 | W3: 15 | X3: 16 | Y3: 17 | Z3: 18 | AA3: 19 | AB3: 20 | AC3: 21 | AD3: 22 | AE3: 23 | AF3: 24 | AG3: 25 | AH3: 26 | AI3: 27 | AJ3: 28 | AK3: 29 | AL3: 30 | AM3: 31 | AN3: 32 | AO3: 33 | AP3: 34 | AQ3: 35 | AR3: 36 | AS3: 37 | AT3: 38 | AU3: 39 | AV3: 40 | AW3: 41 | AX3: 42 | AY3: 43 | AZ3: 44 | BA3: 45 | BB3: 46 | BC3: 47 | BD3: 48 | BE3: 49 | BF3: 50 | BG3: 51 | BH3: 52 | BI3: 53 | BJ3: 54 | BK3: 55 | BL3: 56 | BM3: 57 | BN3: 58 | BO3: 59 | BP3: 60 | BQ3: 61 | BR3: 62 | BS3: 63 | BT3: 64 | BU3: 65 | BV3: 66 | BW3: 67 | BX3: 68 | BY3: 69 | BZ3: 70 | CA3: 71 | CB3: 72 | CC3: 73 | CD3: 74 | CE3: 75 | CF3: 76 | CG3: 77 | CH3: 78 | CI3: 79 | CJ3: 80 | CK3: 81 | CL3: 82 | CM3: 83 | CN3: 84 | CO3: 85 | CP3: 86 | CQ3: 87 | CR3: 88 | CS3: 89 | CT3: 90 | CU3: 91 | CV3: 92 | CW3: 93 | CX3: 94 | CY3: 95 | CZ3: 96 | DA3: 97 | DB3: 98 | DC3: 99 | DD3: 100 | DE3: 101 | DF3: 102 | DG3: 103 | DH3: 104 | DI3: 105 | DJ3: 106 | DK3: 107 | DL3: 108 | DM3: 109 | DN3: 110 | DO3: 111 | DP3: 112 | DQ3: 113 | DR3: 114 | DS3: 115 | DT3: 116 | DU3: 117 | DV3: 118 | DW3: 119 | DX3: 120
C4: Construction Periods | E4: Years | F4: 1 | I4: =I3<=$F$4 -> TRUE | J4: =J3<=$F$4 -> FALSE | K4: FALSE | L4: FALSE | M4: FALSE | N4: FALSE | O4: FALSE | P4: FALSE | Q4: FALSE | R4: FALSE | S4: FALSE | T4: FALSE | U4: FALSE | V4: FALSE | W4: FALSE | X4: FALSE | Y4: FALSE | Z4: FALSE | AA4: FALSE | AB4: FALSE | AC4: FALSE | AD4: FALSE | AE4: FALSE | AF4: FALSE | AG4: FALSE | AH4: FALSE | AI4: FALSE | AJ4: FALSE | AK4: FALSE | AL4: FALSE | AM4: FALSE | AN4: FALSE | AO4: FALSE | AP4: FALSE | AQ4: FALSE | AR4: FALSE | AS4: FALSE | AT4: FALSE | AU4: FALSE | AV4: FALSE | AW4: FALSE | AX4: FALSE | AY4: FALSE | AZ4: FALSE | BA4: FALSE | BB4: FALSE | BC4: FALSE | BD4: FALSE | BE4: FALSE | BF4: FALSE | BG4: FALSE | BH4: FALSE | BI4: FALSE | BJ4: FALSE | BK4: FALSE | BL4: FALSE | BM4: FALSE | BN4: FALSE | BO4: FALSE | BP4: FALSE | BQ4: FALSE | BR4: FALSE | BS4: FALSE | BT4: FALSE | BU4: FALSE | BV4: =BV3<=$F$4 -> FALSE | BW4: FALSE | BX4: FALSE | BY4: FALSE | BZ4: FALSE | CA4: FALSE | CB4: FALSE | CC4: FALSE | CD4: FALSE | CE4: FALSE | CF4: FALSE | CG4: FALSE | CH4: FALSE | CI4: FALSE | CJ4: FALSE | CK4: FALSE | CL4: FALSE | CM4: FALSE | CN4: FALSE | CO4: FALSE | CP4: FALSE | CQ4: FALSE | CR4: FALSE | CS4: FALSE | CT4: FALSE | CU4: FALSE | CV4: FALSE | CW4: FALSE | CX4: FALSE | CY4: FALSE | CZ4: FALSE | DA4: FALSE | DB4: FALSE | DC4: FALSE | DD4: FALSE | DE4: FALSE | DF4: FALSE | DG4: FALSE | DH4: FALSE | DI4: FALSE | DJ4: FALSE | DK4: FALSE | DL4: FALSE | DM4: FALSE | DN4: FALSE | DO4: FALSE | DP4: FALSE | DQ4: FALSE | DR4: FALSE | DS4: FALSE | DT4: FALSE | DU4: FALSE | DV4: FALSE | DW4: FALSE | DX4: FALSE
C5: Operating Life | E5: Life | F5: 30 | G5: =F5+F4 -> 31 | I5: =AND(NOT(I4),I3<=$G$5) -> FALSE | J5: =AND(NOT(J4),J3<=$G$5) -> TRUE | K5: =AND(NOT(K4),K3<=$G$5) -> TRUE | L5: TRUE | M5: TRUE | N5: TRUE | O5: TRUE | P5: TRUE | Q5: TRUE | R5: TRUE | S5: TRUE | T5: TRUE | U5: TRUE | V5: TRUE | W5: TRUE | X5: TRUE | Y5: TRUE | Z5: TRUE | AA5: TRUE | AB5: TRUE | AC5: TRUE | AD5: TRUE | AE5: TRUE | AF5: TRUE | AG5: TRUE | AH5: TRUE | AI5: TRUE | AJ5: TRUE | AK5: TRUE | AL5: TRUE | AM5: TRUE | AN5: FALSE | AO5: FALSE | AP5: FALSE | AQ5: FALSE | AR5: FALSE | AS5: FALSE | AT5: FALSE | AU5: FALSE | AV5: FALSE | AW5: FALSE | AX5: FALSE | AY5: FALSE | AZ5: FALSE | BA5: FALSE | BB5: FALSE | BC5: FALSE | BD5: FALSE | BE5: FALSE | BF5: FALSE | BG5: FALSE | BH5: FALSE | BI5: FALSE | BJ5: FALSE | BK5: FALSE | BL5: FALSE | BM5: FALSE | BN5: FALSE | BO5: FALSE | BP5: FALSE | BQ5: FALSE | BR5: FALSE | BS5: FALSE | BT5: FALSE | BU5: FALSE | BV5: FALSE | BW5: =AND(NOT(BW4),BW3<=$G$5) -> FALSE | BX5: FALSE | BY5: FALSE | BZ5: FALSE | CA5: FALSE | CB5: FALSE | CC5: FALSE | CD5: FALSE | CE5: FALSE | CF5: FALSE | CG5: FALSE | CH5: FALSE | CI5: FALSE | CJ5: FALSE | CK5: FALSE | CL5: FALSE | CM5: FALSE | CN5: FALSE | CO5: FALSE | CP5: FALSE | CQ5: FALSE | CR5: FALSE | CS5: FALSE | CT5: FALSE | CU5: FALSE | CV5: FALSE | CW5: FALSE | CX5: FALSE | CY5: FALSE | CZ5: FALSE | DA5: FALSE | DB5: FALSE | DC5: FALSE | DD5: FALSE | DE5: FALSE | DF5: FALSE | DG5: FALSE | DH5: FALSE | DI5: FALSE | DJ5: FALSE | DK5: FALSE | DL5: FALSE | DM5: FALSE | DN5: FALSE | DO5: FALSE | DP5: FALSE | DQ5: FALSE | DR5: FALSE | DS5: FALSE | DT5: FALSE | DU5: FALSE | DV5: FALSE | DW5: FALSE | DX5: FALSE
B7: Operating Cash Flow
C8: Inflation Index | E8: % | F8: 0.02 | G8: 1 | I8: =G8*(1+$F$8*I5) -> 1 | J8: =I8*(1+$F$8*J5) -> 1.02 | K8: 1.0404 | L8: 1.061208 | M8: 1.08243216 | N8: 1.104080803 | O8: 1.126162419 | P8: 1.148685668 | Q8: 1.171659381 | R8: 1.195092569 | S8: 1.21899442 | T8: 1.243374308 | U8: 1.268241795 | V8: 1.29360663 | W8: 1.319478763 | X8: 1.345868338 | Y8: 1.372785705 | Z8: 1.400241419 | AA8: 1.428246248 | AB8: 1.456811173 | AC8: 1.485947396 | AD8: 1.515666344 | AE8: 1.545979671 | AF8: 1.576899264 | AG8: 1.608437249 | AH8: 1.640605994 | AI8: 1.673418114 | AJ8: 1.706886477 | AK8: 1.741024206 | AL8: 1.77584469 | AM8: 1.811361584 | AN8: 1.811361584 | AO8: 1.811361584 | AP8: 1.811361584 | AQ8: 1.811361584 | AR8: 1.811361584 | AS8: 1.811361584 | AT8: 1.811361584 | AU8: 1.811361584 | AV8: 1.811361584 | AW8: 1.811361584 | AX8: 1.811361584 | AY8: 1.811361584 | AZ8: 1.811361584 | BA8: 1.811361584 | BB8: 1.811361584 | BC8: 1.811361584 | BD8: 1.811361584 | BE8: 1.811361584 | BF8: 1.811361584 | BG8: 1.811361584 | BH8: 1.811361584 | BI8: 1.811361584 | BJ8: 1.811361584 | BK8: 1.811361584 | BL8: 1.811361584 | BM8: 1.811361584 | BN8: 1.811361584 | BO8: 1.811361584 | BP8: 1.811361584 | BQ8: 1.811361584 | BR8: 1.811361584 | BS8: 1.811361584 | BT8: 1.811361584 | BU8: 1.811361584 | BV8: =BU8*(1+$F$8*BV5) -> 1.811361584 | BW8: 1.811361584 | BX8: 1.811361584 | BY8: 1.811361584 | BZ8: 1.811361584 | CA8: 1.811361584 | CB8: 1.811361584 | CC8: 1.811361584 | CD8: 1.811361584 | CE8: 1.811361584 | CF8: 1.811361584 | CG8: 1.811361584 | CH8: 1.811361584 | CI8: 1.811361584 | CJ8: 1.811361584 | CK8: 1.811361584 | CL8: 1.811361584 | CM8: 1.811361584 | CN8: 1.811361584 | CO8: 1.811361584 | CP8: 1.811361584 | CQ8: 1.811361584 | CR8: 1.811361584 | CS8: 1.811361584 | CT8: 1.811361584 | CU8: 1.811361584 | CV8: 1.811361584 | CW8: 1.811361584 | CX8: 1.811361584 | CY8: 1.811361584 | CZ8: 1.811361584 | DA8: 1.811361584 | DB8: 1.811361584 | DC8: 1.811361584 | DD8: 1.811361584 | DE8: 1.811361584 | DF8: 1.811361584 | DG8: 1.811361584 | DH8: 1.811361584 | DI8: 1.811361584 | DJ8: 1.811361584 | DK8: 1.811361584 | DL8: 1.811361584 | DM8: 1.811361584 | DN8: 1.811361584 | DO8: 1.811361584 | DP8: 1.811361584 | DQ8: 1.811361584 | DR8: 1.811361584 | DS8: 1.811361584 | DT8: 1.811361584 | DU8: 1.811361584 | DV8: 1.811361584 | DW8: 1.811361584 | DX8: 1.811361584
C10: Revenues (Minimum Traffic Case) | E10: Annual Euro | F10: 60 | H10: =SUM(I10:XFD10) -> 2482.766447 | I10: =$F$10*I8*I5 -> 0 | J10: =$F$10*J8*J5 -> 61.2 | K10: 62.424 | L10: 63.67248 | M10: 64.9459296 | N10: 66.24484819 | O10: 67.56974516 | P10: 68.92114006 | Q10: 70.29956286 | R10: 71.70555412 | S10: 73.1396652 | T10: 74.6024585 | U10: 76.09450767 | V10: 77.61639783 | W10: 79.16872578 | X10: 80.7521003 | Y10: 82.36714231 | Z10: 84.01448515 | AA10: 85.69477485 | AB10: 87.40867035 | AC10: 89.15684376 | AD10: 90.93998063 | AE10: 92.75878025 | AF10: 94.61395585 | AG10: 96.50623497 | AH10: 98.43635967 | AI10: 100.4050869 | AJ10: 102.4131886 | AK10: 104.4614524 | AL10: 106.5506814 | AM10: 108.681695 | AN10: 0 | AO10: 0 | AP10: 0 | AQ10: 0 | AR10: 0 | AS10: 0 | AT10: 0 | AU10: 0 | AV10: 0 | AW10: 0 | AX10: 0 | AY10: 0 | AZ10: 0 | BA10: 0 | BB10: 0 | BC10: 0 | BD10: 0 | BE10: 0 | BF10: 0 | BG10: 0 | BH10: 0 | BI10: 0 | BJ10: 0 | BK10: 0 | BL10: 0 | BM10: 0 | BN10: 0 | BO10: 0 | BP10: 0 | BQ10: 0 | BR10: 0 | BS10: 0 | BT10: 0 | BU10: 0 | BV10: =$F$10*BV8*BV5 -> 0 | BW10: 0 | BX10: 0 | BY10: 0 | BZ10: 0 | CA10: 0 | CB10: 0 | CC10: 0 | CD10: 0 | CE10: 0 | CF10: 0 | CG10: 0 | CH10: 0 | CI10: 0 | CJ10: 0 | CK10: 0 | CL10: 0 | CM10: 0 | CN10: 0 | CO10: 0 | CP10: 0 | CQ10: 0 | CR10: 0 | CS10: 0 | CT10: 0 | CU10: 0 | CV10: 0 | CW10: 0 | CX10: 0 | CY10: 0 | CZ10: 0 | DA10: 0 | DB10: 0 | DC10: 0 | DD10: 0 | DE10: 0 | DF10: 0 | DG10: 0 | DH10: 0 | DI10: 0 | DJ10: 0 | DK10: 0 | DL10: 0 | DM10: 0 | DN10: 0 | DO10: 0 | DP10: 0 | DQ10: 0 | DR10: 0 | DS10: 0 | DT10: 0 | DU10: 0 | DV10: 0 | DW10: 0 | DX10: 0
C11: Operating Expense | E11: Annual Euro | F11: 10 | H11: =SUM(I11:XFD11) -> 413.7944079 | I11: =$F$11*I8*I5 -> 0 | J11: =$F$11*J8*J5 -> 10.2 | K11: 10.404 | L11: 10.61208 | M11: 10.8243216 | N11: 11.04080803 | O11: 11.26162419 | P11: 11.48685668 | Q11: 11.71659381 | R11: 11.95092569 | S11: 12.1899442 | T11: 12.43374308 | U11: 12.68241795 | V11: 12.9360663 | W11: 13.19478763 | X11: 13.45868338 | Y11: 13.72785705 | Z11: 14.00241419 | AA11: 14.28246248 | AB11: 14.56811173 | AC11: 14.85947396 | AD11: 15.15666344 | AE11: 15.45979671 | AF11: 15.76899264 | AG11: 16.08437249 | AH11: 16.40605994 | AI11: 16.73418114 | AJ11: 17.06886477 | AK11: 17.41024206 | AL11: 17.7584469 | AM11: 18.11361584 | AN11: 0 | AO11: 0 | AP11: 0 | AQ11: 0 | AR11: 0 | AS11: 0 | AT11: 0 | AU11: 0 | AV11: 0 | AW11: 0 | AX11: 0 | AY11: 0 | AZ11: 0 | BA11: 0 | BB11: 0 | BC11: 0 | BD11: 0 | BE11: 0 | BF11: 0 | BG11: 0 | BH11: 0 | BI11: 0 | BJ11: 0 | BK11: 0 | BL11: 0 | BM11: 0 | BN11: 0 | BO11: 0 | BP11: 0 | BQ11: 0 | BR11: 0 | BS11: 0 | BT11: 0 | BU11: 0 | BV11: =$F$11*BV8*BV5 -> 0 | BW11: 0 | BX11: 0 | BY11: 0 | BZ11: 0 | CA11: 0 | CB11: 0 | CC11: 0 | CD11: 0 | CE11: 0 | CF11: 0 | CG11: 0 | CH11: 0 | CI11: 0 | CJ11: 0 | CK11: 0 | CL11: 0 | CM11: 0 | CN11: 0 | CO11: 0 | CP11: 0 | CQ11: 0 | CR11: 0 | CS11: 0 | CT11: 0 | CU11: 0 | CV11: 0 | CW11: 0 | CX11: 0 | CY11: 0 | CZ11: 0 | DA11: 0 | DB11: 0 | DC11: 0 | DD11: 0 | DE11: 0 | DF11: 0 | DG11: 0 | DH11: 0 | DI11: 0 | DJ11: 0 | DK11: 0 | DL11: 0 | DM11: 0 | DN11: 0 | DO11: 0 | DP11: 0 | DQ11: 0 | DR11: 0 | DS11: 0 | DT11: 0 | DU11: 0 | DV11: 0 | DW11: 0 | DX11: 0
C12: Capital Expenditure | E12: One Time | F12: 1000 | G12: =F4 -> 1 | I12: =$F$12/$G$12*I4 -> 1000 | J12: =$F$12/$G$12*J4 -> 0 | K12: 0 | L12: 0 | M12: 0 | N12: 0 | O12: 0 | P12: 0 | Q12: 0 | R12: 0 | S12: 0 | T12: 0 | U12: 0 | V12: 0 | W12: 0 | X12: 0 | Y12: 0 | Z12: 0 | AA12: 0 | AB12: 0 | AC12: 0 | AD12: 0 | AE12: 0 | AF12: 0 | AG12: 0 | AH12: 0 | AI12: 0 | AJ12: 0 | AK12: 0 | AL12: 0 | AM12: 0 | AN12: 0 | AO12: 0 | AP12: 0 | AQ12: 0 | AR12: 0 | AS12: 0 | AT12: 0 | AU12: 0 | AV12: 0 | AW12: 0 | AX12: 0 | AY12: 0 | AZ12: 0 | BA12: 0 | BB12: 0 | BC12: 0 | BD12: 0 | BE12: 0 | BF12: 0 | BG12: 0 | BH12: 0 | BI12: 0 | BJ12: 0 | BK12: 0 | BL12: 0 | BM12: 0 | BN12: 0 | BO12: 0 | BP12: 0 | BQ12: 0 | BR12: 0 | BS12: 0 | BT12: 0 | BU12: 0 | BV12: =$F$12/$G$12*BV4 -> 0 | BW12: 0 | BX12: 0 | BY12: 0 | BZ12: 0 | CA12: 0 | CB12: 0 | CC12: 0 | CD12: 0 | CE12: 0 | CF12: 0 | CG12: 0 | CH12: 0 | CI12: 0 | CJ12: 0 | CK12: 0 | CL12: 0 | CM12: 0 | CN12: 0 | CO12: 0 | CP12: 0 | CQ12: 0 | CR12: 0 | CS12: 0 | CT12: 0 | CU12: 0 | CV12: 0 | CW12: 0 | CX12: 0 | CY12: 0 | CZ12: 0 | DA12: 0 | DB12: 0 | DC12: 0 | DD12: 0 | DE12: 0 | DF12: 0 | DG12: 0 | DH12: 0 | DI12: 0 | DJ12: 0 | DK12: 0 | DL12: 0 | DM12: 0 | DN12: 0 | DO12: 0 | DP12: 0 | DQ12: 0 | DR12: 0 | DS12: 0 | DT12: 0 | DU12: 0 | DV12: 0 | DW12: 0 | DX12: 0
C14: EBITDA | E14: Euro | H14: =SUM(I14:XFD14) -> 2068.972039 | I14: =I10-I11 -> 0 | J14: =J10-J11 -> 51 | K14: 52.02 | L14: 53.0604 | M14: 54.121608 | N14: 55.20404016 | O14: 56.30812096 | P14: 57.43428338 | Q14: 58.58296905 | R14: 59.75462843 | S14: 60.949721 | T14: 62.16871542 | U14: 63.41208973 | V14: 64.68033152 | W14: 65.97393815 | X14: 67.29341692 | Y14: 68.63928525 | Z14: 70.01207096 | AA14: 71.41231238 | AB14: 72.84055863 | AC14: 74.2973698 | AD14: 75.78331719 | AE14: 77.29898354 | AF14: 78.84496321 | AG14: 80.42186247 | AH14: 82.03029972 | AI14: 83.67090572 | AJ14: 85.34432383 | AK14: 87.05121031 | AL14: 88.79223451 | AM14: 90.56807921 | AN14: 0 | AO14: 0 | AP14: 0 | AQ14: 0 | AR14: 0 | AS14: 0 | AT14: 0 | AU14: 0 | AV14: 0 | AW14: 0 | AX14: 0 | AY14: 0 | AZ14: 0 | BA14: 0 | BB14: 0 | BC14: 0 | BD14: 0 | BE14: 0 | BF14: 0 | BG14: 0 | BH14: 0 | BI14: 0 | BJ14: 0 | BK14: 0 | BL14: 0 | BM14: 0 | BN14: 0 | BO14: 0 | BP14: 0 | BQ14: 0 | BR14: 0 | BS14: 0 | BT14: 0 | BU14: 0 | BV14: =BV10-BV11 -> 0 | BW14: 0 | BX14: 0 | BY14: 0 | BZ14: 0 | CA14: 0 | CB14: 0 | CC14: 0 | CD14: 0 | CE14: 0 | CF14: 0 | CG14: 0 | CH14: 0 | CI14: 0 | CJ14: 0 | CK14: 0 | CL14: 0 | CM14: 0 | CN14: 0 | CO14: 0 | CP14: 0 | CQ14: 0 | CR14: 0 | CS14: 0 | CT14: 0 | CU14: 0 | CV14: 0 | CW14: 0 | CX14: 0 | CY14: 0 | CZ14: 0 | DA14: 0 | DB14: 0 | DC14: 0 | DD14: 0 | DE14: 0 | DF14: 0 | DG14: 0 | DH14: 0 | DI14: 0 | DJ14: 0 | DK14: 0 | DL14: 0 | DM14: 0 | DN14: 0 | DO14: 0 | DP14: 0 | DQ14: 0 | DR14: 0 | DS14: 0 | DT14: 0 | DU14: 0 | DV14: 0 | DW14: 0 | DX14: 0
C15: Free Cash Flow | E15: Euro | H15: =SUM(I15:XFD15) -> 1068.972039 | I15: =I14-I12 -> -1000 | J15: =J14-J12 -> 51 | K15: 52.02 | L15: 53.0604 | M15: 54.121608 | N15: 55.20404016 | O15: 56.30812096 | P15: 57.43428338 | Q15: 58.58296905 | R15: 59.75462843 | S15: 60.949721 | T15: 62.16871542 | U15: 63.41208973 | V15: 64.68033152 | W15: 65.97393815 | X15: 67.29341692 | Y15: 68.63928525 | Z15: 70.01207096 | AA15: 71.41231238 | AB15: 72.84055863 | AC15: 74.2973698 | AD15: 75.78331719 | AE15: 77.29898354 | AF15: 78.84496321 | AG15: 80.42186247 | AH15: 82.03029972 | AI15: 83.67090572 | AJ15: 85.34432383 | AK15: 87.05121031 | AL15: 88.79223451 | AM15: 90.56807921 | AN15: 0 | AO15: 0 | AP15: 0 | AQ15: 0 | AR15: 0 | AS15: 0 | AT15: 0 | AU15: 0 | AV15: 0 | AW15: 0 | AX15: 0 | AY15: 0 | AZ15: 0 | BA15: 0 | BB15: 0 | BC15: 0 | BD15: 0 | BE15: 0 | BF15: 0 | BG15: 0 | BH15: 0 | BI15: 0 | BJ15: 0 | BK15: 0 | BL15: 0 | BM15: 0 | BN15: 0 | BO15: 0 | BP15: 0 | BQ15: 0 | BR15: 0 | BS15: 0 | BT15: 0 | BU15: 0 | BV15: =BV14-BV12 -> 0 | BW15: 0 | BX15: 0 | BY15: 0 | BZ15: 0 | CA15: 0 | CB15: 0 | CC15: 0 | CD15: 0 | CE15: 0 | CF15: 0 | CG15: 0 | CH15: 0 | CI15: 0 | CJ15: 0 | CK15: 0 | CL15: 0 | CM15: 0 | CN15: 0 | CO15: 0 | CP15: 0 | CQ15: 0 | CR15: 0 | CS15: 0 | CT15: 0 | CU15: 0 | CV15: 0 | CW15: 0 | CX15: 0 | CY15: 0 | CZ15: 0 | DA15: 0 | DB15: 0 | DC15: 0 | DD15: 0 | DE15: 0 | DF15: 0 | DG15: 0 | DH15: 0 | DI15: 0 | DJ15: 0 | DK15: 0 | DL15: 0 | DM15: 0 | DN15: 0 | DO15: 0 | DP15: 0 | DQ15: 0 | DR15: 0 | DS15: 0 | DT15: 0 | DU15: 0 | DV15: 0 | DW15: 0 | DX15: 0
C16: PIRR | E16: % p.a. | F16: =IRR(I15:DX15) -> 0.04901528485
C18: Opening Balance | E18: Euro | I18: =H21 -> 0 | J18: =I21 -> 0 | K18: 51 | L18: 105.5197795 | M18: 163.7522616 | N18: 225.9002333 | O18: 292.1768378 | P18: 362.8060897 | Q18: 438.0234169 | R18: 518.0762285 | S18: 603.2245108 | T18: 693.741453 | U18: 789.9141034 | V18: 892.0440579 | W18: 1000.448183 | X18: 1115.459374 | Y18: 1237.42735 | Z18: 1366.719489 | AA18: 1503.721705 | AB18: 1648.839365 | AC18: 1802.498255 | AD18: 1965.14559 | AE18: 2137.251078 | AF18: 2319.308032 | AG18: 2511.834539 | AH18: 2715.374687 | AI18: 2930.49985 | AJ18: 3157.810041 | AK18: 3397.935323 | AL18: 3651.537302 | AM18: 3919.310677 | AN18: 4201.984885 | AO18: 4201.984885 | AP18: 4201.984885 | AQ18: 4201.984885 | AR18: 4201.984885 | AS18: 4201.984885 | AT18: 4201.984885 | AU18: 4201.984885 | AV18: 4201.984885 | AW18: 4201.984885 | AX18: 4201.984885 | AY18: 4201.984885 | AZ18: 4201.984885 | BA18: 4201.984885 | BB18: 4201.984885 | BC18: 4201.984885 | BD18: 4201.984885 | BE18: 4201.984885 | BF18: 4201.984885 | BG18: 4201.984885 | BH18: 4201.984885 | BI18: 4201.984885 | BJ18: 4201.984885 | BK18: 4201.984885 | BL18: 4201.984885 | BM18: 4201.984885 | BN18: 4201.984885 | BO18: 4201.984885 | BP18: 4201.984885 | BQ18: 4201.984885 | BR18: 4201.984885 | BS18: 4201.984885 | BT18: 4201.984885 | BU18: 4201.984885 | BV18: =BU21 -> 4201.984885 | BW18: 4201.984885 | BX18: 4201.984885 | BY18: 4201.984885 | BZ18: 4201.984885 | CA18: 4201.984885 | CB18: 4201.984885 | CC18: 4201.984885 | CD18: 4201.984885 | CE18: 4201.984885 | CF18: 4201.984885 | CG18: 4201.984885 | CH18: 4201.984885 | CI18: 4201.984885 | CJ18: 4201.984885 | CK18: 4201.984885 | CL18: 4201.984885 | CM18: 4201.984885 | CN18: 4201.984885 | CO18: 4201.984885 | CP18: 4201.984885 | CQ18: 4201.984885 | CR18: 4201.984885 | CS18: 4201.984885 | CT18: 4201.984885 | CU18: 4201.984885 | CV18: 4201.984885 | CW18: 4201.984885 | CX18: 4201.984885 | CY18: 4201.984885 | CZ18: 4201.984885 | DA18: 4201.984885 | DB18: 4201.984885 | DC18: 4201.984885 | DD18: 4201.984885 | DE18: 4201.984885 | DF18: 4201.984885 | DG18: 4201.984885 | DH18: 4201.984885 | DI18: 4201.984885 | DJ18: 4201.984885 | DK18: 4201.984885 | DL18: 4201.984885 | DM18: 4201.984885 | DN18: 4201.984885 | DO18: 4201.984885 | DP18: 4201.984885 | DQ18: 4201.984885 | DR18: 4201.984885 | DS18: 4201.984885 | DT18: 4201.984885 | DU18: 4201.984885 | DV18: 4201.984885 | DW18: 4201.984885 | DX18: 4201.984885
C19: Add: Re-Investment | E19: Euro | F19: =F16 -> 0.04901528485 | I19: =I18*$F$19*I5 -> 0 | J19: =J18*$F$19*J5 -> 0 | K19: 2.499779527 | L19: 5.17208205 | M19: 8.026363745 | N19: 11.07256428 | O19: 14.32113093 | P19: 17.78304383 | Q19: 21.46984255 | R19: 25.39365391 | S19: 29.56722122 | T19: 34.00393493 | U19: 38.71786478 | V19: 43.72379359 | W19: 49.03725266 | X19: 54.67455894 | Y19: 60.65285402 | Z19: 66.99014505 | AA19: 73.7053477 | AB19: 80.81833114 | AC19: 88.34996539 | AD19: 96.32217086 | AE19: 104.7579704 | AF19: 113.6815438 | AG19: 123.1182854 | AH19: 133.0948637 | AI19: 143.6392849 | AJ19: 154.7809586 | AK19: 166.5507678 | AL19: 178.981141 | AM19: 192.1061292 | AN19: 0 | AO19: 0 | AP19: 0 | AQ19: 0 | AR19: 0 | AS19: 0 | AT19: 0 | AU19: 0 | AV19: 0 | AW19: 0 | AX19: 0 | AY19: 0 | AZ19: 0 | BA19: 0 | BB19: 0 | BC19: 0 | BD19: 0 | BE19: 0 | BF19: 0 | BG19: 0 | BH19: 0 | BI19: 0 | BJ19: 0 | BK19: 0 | BL19: 0 | BM19: 0 | BN19: 0 | BO19: 0 | BP19: 0 | BQ19: 0 | BR19: 0 | BS19: 0 | BT19: 0 | BU19: 0 | BV19: =BV18*$F$19*BV5 -> 0 | BW19: 0 | BX19: 0 | BY19: 0 | BZ19: 0 | CA19: 0 | CB19: 0 | CC19: 0 | CD19: 0 | CE19: 0 | CF19: 0 | CG19: 0 | CH19: 0 | CI19: 0 | CJ19: 0 | CK19: 0 | CL19: 0 | CM19: 0 | CN19: 0 | CO19: 0 | CP19: 0 | CQ19: 0 | CR19: 0 | CS19: 0 | CT19: 0 | CU19: 0 | CV19: 0 | CW19: 0 | CX19: 0 | CY19: 0 | CZ19: 0 | DA19: 0 | DB19: 0 | DC19: 0 | DD19: 0 | DE19: 0 | DF19: 0 | DG19: 0 | DH19: 0 | DI19: 0 | DJ19: 0 | DK19: 0 | DL19: 0 | DM19: 0 | DN19: 0 | DO19: 0 | DP19: 0 | DQ19: 0 | DR19: 0 | DS19: 0 | DT19: 0 | DU19: 0 | DV19: 0 | DW19: 0 | DX19: 0
C20: Add: Dividends | E20: Euro | I20: =I14 -> 0 | J20: =J14 -> 51 | K20: 52.02 | L20: 53.0604 | M20: 54.121608 | N20: 55.20404016 | O20: 56.30812096 | P20: 57.43428338 | Q20: 58.58296905 | R20: 59.75462843 | S20: 60.949721 | T20: 62.16871542 | U20: 63.41208973 | V20: 64.68033152 | W20: 65.97393815 | X20: 67.29341692 | Y20: 68.63928525 | Z20: 70.01207096 | AA20: 71.41231238 | AB20: 72.84055863 | AC20: 74.2973698 | AD20: 75.78331719 | AE20: 77.29898354 | AF20: 78.84496321 | AG20: 80.42186247 | AH20: 82.03029972 | AI20: 83.67090572 | AJ20: 85.34432383 | AK20: 87.05121031 | AL20: 88.79223451 | AM20: 90.56807921 | AN20: 0 | AO20: 0 | AP20: 0 | AQ20: 0 | AR20: 0 | AS20: 0 | AT20: 0 | AU20: 0 | AV20: 0 | AW20: 0 | AX20: 0 | AY20: 0 | AZ20: 0 | BA20: 0 | BB20: 0 | BC20: 0 | BD20: 0 | BE20: 0 | BF20: 0 | BG20: 0 | BH20: 0 | BI20: 0 | BJ20: 0 | BK20: 0 | BL20: 0 | BM20: 0 | BN20: 0 | BO20: 0 | BP20: 0 | BQ20: 0 | BR20: 0 | BS20: 0 | BT20: 0 | BU20: 0 | BV20: =BV14 -> 0 | BW20: 0 | BX20: 0 | BY20: 0 | BZ20: 0 | CA20: 0 | CB20: 0 | CC20: 0 | CD20: 0 | CE20: 0 | CF20: 0 | CG20: 0 | CH20: 0 | CI20: 0 | CJ20: 0 | CK20: 0 | CL20: 0 | CM20: 0 | CN20: 0 | CO20: 0 | CP20: 0 | CQ20: 0 | CR20: 0 | CS20: 0 | CT20: 0 | CU20: 0 | CV20: 0 | CW20: 0 | CX20: 0 | CY20: 0 | CZ20: 0 | DA20: 0 | DB20: 0 | DC20: 0 | DD20: 0 | DE20: 0 | DF20: 0 | DG20: 0 | DH20: 0 | DI20: 0 | DJ20: 0 | DK20: 0 | DL20: 0 | DM20: 0 | DN20: 0 | DO20: 0 | DP20: 0 | DQ20: 0 | DR20: 0 | DS20: 0 | DT20: 0 | DU20: 0 | DV20: 0 | DW20: 0 | DX20: 0
C21: Closing Balance | E21: Euro | I21: =SUM(I18:I20) -> 0 | J21: =SUM(J18:J20) -> 51 | K21: 105.5197795 | L21: 163.7522616 | M21: 225.9002333 | N21: 292.1768378 | O21: 362.8060897 | P21: 438.0234169 | Q21: 518.0762285 | R21: 603.2245108 | S21: 693.741453 | T21: 789.9141034 | U21: 892.0440579 | V21: 1000.448183 | W21: 1115.459374 | X21: 1237.42735 | Y21: 1366.719489 | Z21: 1503.721705 | AA21: 1648.839365 | AB21: 1802.498255 | AC21: 1965.14559 | AD21: 2137.251078 | AE21: 2319.308032 | AF21: 2511.834539 | AG21: 2715.374687 | AH21: 2930.49985 | AI21: 3157.810041 | AJ21: 3397.935323 | AK21: 3651.537302 | AL21: 3919.310677 | AM21: 4201.984885 | AN21: 4201.984885 | AO21: 4201.984885 | AP21: 4201.984885 | AQ21: 4201.984885 | AR21: 4201.984885 | AS21: 4201.984885 | AT21: 4201.984885 | AU21: 4201.984885 | AV21: 4201.984885 | AW21: 4201.984885 | AX21: 4201.984885 | AY21: 4201.984885 | AZ21: 4201.984885 | BA21: 4201.984885 | BB21: 4201.984885 | BC21: 4201.984885 | BD21: 4201.984885 | BE21: 4201.984885 | BF21: 4201.984885 | BG21: 4201.984885 | BH21: 4201.984885 | BI21: 4201.984885 | BJ21: 4201.984885 | BK21: 4201.984885 | BL21: 4201.984885 | BM21: 4201.984885 | BN21: 4201.984885 | BO21: 4201.984885 | BP21: 4201.984885 | BQ21: 4201.984885 | BR21: 4201.984885 | BS21: 4201.984885 | BT21: 4201.984885 | BU21: 4201.984885 | BV21: =SUM(BV18:BV20) -> 4201.984885 | BW21: 4201.984885 | BX21: 4201.984885 | BY21: 4201.984885 | BZ21: 4201.984885 | CA21: 4201.984885 | CB21: 4201.984885 | CC21: 4201.984885 | CD21: 4201.984885 | CE21: 4201.984885 | CF21: 4201.984885 | CG21: 4201.984885 | CH21: 4201.984885 | CI21: 4201.984885 | CJ21: 4201.984885 | CK21: 4201.984885 | CL21: 4201.984885 | CM21: 4201.984885 | CN21: 4201.984885 | CO21: 4201.984885 | CP21: 4201.984885 | CQ21: 4201.984885 | CR21: 4201.984885 | CS21: 4201.984885 | CT21: 4201.984885 | CU21: 4201.984885 | CV21: 4201.984885 | CW21: 4201.984885 | CX21: 4201.984885 | CY21: 4201.984885 | CZ21: 4201.984885 | DA21: 4201.984885 | DB21: 4201.984885 | DC21: 4201.984885 | DD21: 4201.984885 | DE21: 4201.984885 | DF21: 4201.984885 | DG21: 4201.984885 | DH21: 4201.984885 | DI21: 4201.984885 | DJ21: 4201.984885 | DK21: 4201.984885 | DL21: 4201.984885 | DM21: 4201.984885 | DN21: 4201.984885 | DO21: 4201.984885 | DP21: 4201.984885 | DQ21: 4201.984885 | DR21: 4201.984885 | DS21: 4201.984885 | DT21: 4201.984885 | DU21: 4201.984885 | DV21: 4201.984885 | DW21: 4201.984885 | DX21: 4201.984885
C23: Ending Balance | E23: Euro
C24: Investment | E24: Euro
C25: Growth Ratio | E25: x
C26: Annual Growth | E26: % p.a.
B28: Debt Structuring
C30: Senior Debt
D31: Tenure of Debt | E31: Years | F31: 22
D32: Interest Rate | E32: % p.a. | F32: 0.045
D33: DSCR for Sizing | E33: x | F33: 1.75
D35: Flag for Tenure | E35: Flag | F35: =F31 -> 22 | I35: =AND(NOT(I4),I3<=$F$35) -> FALSE | J35: TRUE | K35: TRUE | L35: TRUE | M35: TRUE | N35: TRUE | O35: TRUE | P35: TRUE | Q35: TRUE | R35: TRUE | S35: TRUE | T35: TRUE | U35: TRUE | V35: TRUE | W35: TRUE | X35: TRUE | Y35: TRUE | Z35: TRUE | AA35: TRUE | AB35: TRUE | AC35: TRUE | AD35: TRUE | AE35: FALSE | AF35: FALSE | AG35: FALSE | AH35: FALSE | AI35: FALSE | AJ35: FALSE | AK35: FALSE | AL35: FALSE | AM35: FALSE | AN35: FALSE | AO35: =AND(NOT(AO4),AO3<=$F$35) -> FALSE | AP35: FALSE | AQ35: FALSE | AR35: FALSE | AS35: FALSE | AT35: FALSE | AU35: FALSE | AV35: FALSE | AW35: FALSE | AX35: FALSE | AY35: FALSE | AZ35: FALSE | BA35: FALSE | BB35: FALSE | BC35: FALSE | BD35: FALSE | BE35: FALSE | BF35: FALSE | BG35: FALSE | BH35: FALSE | BI35: FALSE | BJ35: FALSE | BK35: FALSE | BL35: FALSE | BM35: FALSE | BN35: FALSE | BO35: FALSE | BP35: FALSE | BQ35: FALSE | BR35: FALSE | BS35: FALSE | BT35: FALSE | BU35: =AND(NOT(BU4),BU3<=$F$35) -> FALSE | BV35: FALSE | BW35: FALSE | BX35: FALSE | BY35: FALSE | BZ35: FALSE | CA35: FALSE | CB35: FALSE | CC35: FALSE | CD35: FALSE | CE35: FALSE | CF35: FALSE | CG35: FALSE | CH35: FALSE | CI35: FALSE | CJ35: FALSE | CK35: FALSE | CL35: FALSE | CM35: FALSE | CN35: FALSE | CO35: FALSE | CP35: FALSE | CQ35: FALSE | CR35: FALSE | CS35: FALSE | CT35: FALSE | CU35: FALSE | CV35: FALSE | CW35: FALSE | CX35: FALSE | CY35: FALSE | CZ35: FALSE | DA35: =AND(NOT(DA4),DA3<=$F$35) -> FALSE | DB35: FALSE | DC35: FALSE | DD35: FALSE | DE35: FALSE | DF35: FALSE | DG35: FALSE | DH35: FALSE | DI35: FALSE | DJ35: FALSE | DK35: FALSE | DL35: FALSE | DM35: FALSE | DN35: FALSE | DO35: FALSE | DP35: FALSE | DQ35: FALSE | DR35: FALSE | DS35: FALSE | DT35: FALSE | DU35: FALSE | DV35: FALSE | DW35: FALSE | DX35: FALSE
D36: CFADS for Tenure | E36: Euro | I36: =IF(I35,I14) -> FALSE | J36: 51 | K36: 52.02 | L36: 53.0604 | M36: 54.121608 | N36: 55.20404016 | O36: 56.30812096 | P36: 57.43428338 | Q36: 58.58296905 | R36: 59.75462843 | S36: 60.949721 | T36: 62.16871542 | U36: 63.41208973 | V36: 64.68033152 | W36: 65.97393815 | X36: 67.29341692 | Y36: 68.63928525 | Z36: 70.01207096 | AA36: 71.41231238 | AB36: 72.84055863 | AC36: 74.2973698 | AD36: 75.78331719 | AE36: FALSE | AF36: FALSE | AG36: FALSE | AH36: FALSE | AI36: FALSE | AJ36: FALSE | AK36: FALSE | AL36: FALSE | AM36: FALSE | AN36: FALSE | AO36: =IF(AO35,AO14) -> FALSE | AP36: FALSE | AQ36: FALSE | AR36: FALSE | AS36: FALSE | AT36: FALSE | AU36: FALSE | AV36: FALSE | AW36: FALSE | AX36: FALSE | AY36: FALSE | AZ36: FALSE | BA36: FALSE | BB36: FALSE | BC36: FALSE | BD36: FALSE | BE36: FALSE | BF36: FALSE | BG36: FALSE | BH36: FALSE | BI36: FALSE | BJ36: FALSE | BK36: FALSE | BL36: FALSE | BM36: FALSE | BN36: FALSE | BO36: FALSE | BP36: FALSE | BQ36: FALSE | BR36: FALSE | BS36: FALSE | BT36: FALSE | BU36: =IF(BU35,BU14) -> FALSE | BV36: FALSE | BW36: FALSE | BX36: FALSE | BY36: FALSE | BZ36: FALSE | CA36: FALSE | CB36: FALSE | CC36: FALSE | CD36: FALSE | CE36: FALSE | CF36: FALSE | CG36: FALSE | CH36: FALSE | CI36: FALSE | CJ36: FALSE | CK36: FALSE | CL36: FALSE | CM36: FALSE | CN36: FALSE | CO36: FALSE | CP36: FALSE | CQ36: FALSE | CR36: FALSE | CS36: FALSE | CT36: FALSE | CU36: FALSE | CV36: FALSE | CW36: FALSE | CX36: FALSE | CY36: FALSE | CZ36: FALSE | DA36: =IF(DA35,DA14) -> FALSE | DB36: FALSE | DC36: FALSE | DD36: FALSE | DE36: FALSE | DF36: FALSE | DG36: FALSE | DH36: FALSE | DI36: FALSE | DJ36: FALSE | DK36: FALSE | DL36: FALSE | DM36: FALSE | DN36: FALSE | DO36: FALSE | DP36: FALSE | DQ36: FALSE | DR36: FALSE | DS36: FALSE | DT36: FALSE | DU36: FALSE | DV36: FALSE | DW36: FALSE | DX36: FALSE
D37: Target Debt Service =CFADS/DSCR | E37: Euro | F37: =F33 -> 1.75 | I37: =IF(I35,I36/$F$37) -> FALSE | J37: =IF(J35,J36/$F$37) -> 29.14285714 | K37: 29.72571429 | L37: 30.32022857 | M37: 30.92663314 | N37: 31.54516581 | O37: 32.17606912 | P37: 32.8195905 | Q37: 33.47598231 | R37: 34.14550196 | S37: 34.828412 | T37: 35.52498024 | U37: 36.23547984 | V37: 36.96018944 | W37: 37.69939323 | X37: 38.45338109 | Y37: 39.22244872 | Z37: 40.00689769 | AA37: 40.80703565 | AB37: 41.62317636 | AC37: 42.45563989 | AD37: 43.30475268 | AE37: FALSE | AF37: FALSE | AG37: FALSE | AH37: FALSE | AI37: FALSE | AJ37: FALSE | AK37: FALSE | AL37: FALSE | AM37: FALSE | AN37: FALSE | AO37: FALSE | AP37: FALSE | AQ37: FALSE | AR37: FALSE | AS37: FALSE | AT37: FALSE | AU37: FALSE | AV37: FALSE | AW37: FALSE | AX37: FALSE | AY37: FALSE | AZ37: FALSE | BA37: FALSE | BB37: FALSE | BC37: FALSE | BD37: FALSE | BE37: FALSE | BF37: FALSE | BG37: FALSE | BH37: FALSE | BI37: FALSE | BJ37: FALSE | BK37: FALSE | BL37: FALSE | BM37: FALSE | BN37: FALSE | BO37: FALSE | BP37: FALSE | BQ37: FALSE | BR37: FALSE | BS37: FALSE | BT37: FALSE | BU37: FALSE | BV37: =IF(BV35,BV36/$F$37) -> FALSE | BW37: FALSE | BX37: FALSE | BY37: FALSE | BZ37: FALSE | CA37: FALSE | CB37: FALSE | CC37: FALSE | CD37: FALSE | CE37: FALSE | CF37: FALSE | CG37: FALSE | CH37: FALSE | CI37: FALSE | CJ37: FALSE | CK37: FALSE | CL37: FALSE | CM37: FALSE | CN37: FALSE | CO37: FALSE | CP37: FALSE | CQ37: FALSE | CR37: FALSE | CS37: FALSE | CT37: FALSE | CU37: FALSE | CV37: FALSE | CW37: FALSE | CX37: FALSE | CY37: FALSE | CZ37: FALSE | DA37: FALSE | DB37: FALSE | DC37: FALSE | DD37: FALSE | DE37: FALSE | DF37: FALSE | DG37: FALSE | DH37: FALSE | DI37: FALSE | DJ37: FALSE | DK37: FALSE | DL37: FALSE | DM37: FALSE | DN37: FALSE | DO37: FALSE | DP37: FALSE | DQ37: FALSE | DR37: FALSE | DS37: FALSE | DT37: FALSE | DU37: FALSE | DV37: FALSE | DW37: FALSE | DX37: FALSE
D38: PV of Debt =Debt | E38: Euro | F38: =NPV(F32,I37:DX37) -> 464.6568074 | G38: =F38/F12 -> 0.4646568074
D40: Opening Balance | E40: Euro | I40: =G43 -> 0 | J40: =I43 -> 464.6568074 | K40: 456.4235066 | L40: 447.2368501 | M40: 437.0422798 | N40: 425.7825493 | O40: 413.3975982 | P40: 399.824421 | Q40: 384.9969294 | R40: 368.8458089 | S40: 351.2983684 | T40: 332.2783829 | U40: 311.7059299 | V40: 289.4972169 | W40: 265.5644023 | X40: 239.8154071 | Y40: 212.1537194 | Z40: 182.478188 | AA40: 150.6828088 | AB40: 116.6564995 | AC40: 80.28286565 | AD40: 41.43995472 | AE40: 7.602807273e-13 | AF40: 7.9449336e-13 | AG40: 8.302455612e-13 | AH40: 8.676066114e-13 | AI40: 9.06648909e-13 | AJ40: 9.474481099e-13 | AK40: 9.900832748e-13 | AL40: 1.034637022e-12 | AM40: 1.081195688e-12 | AN40: 1.129849494e-12 | AO40: 1.180692721e-12 | AP40: 1.233823894e-12 | AQ40: 1.289345969e-12 | AR40: 1.347366538e-12 | AS40: 1.407998032e-12 | AT40: 1.471357943e-12 | AU40: 1.537569051e-12 | AV40: 1.606759658e-12 | AW40: 1.679063843e-12 | AX40: 1.754621716e-12 | AY40: 1.833579693e-12 | AZ40: 1.916090779e-12 | BA40: 2.002314864e-12 | BB40: 2.092419033e-12 | BC40: 2.186577889e-12 | BD40: 2.284973894e-12 | BE40: 2.38779772e-12 | BF40: 2.495248617e-12 | BG40: 2.607534805e-12 | BH40: 2.724873871e-12 | BI40: 2.847493195e-12 | BJ40: 2.975630389e-12 | BK40: 3.109533756e-12 | BL40: 3.249462775e-12 | BM40: 3.3956886e-12 | BN40: 3.548494587e-12 | BO40: 3.708176844e-12 | BP40: 3.875044802e-12 | BQ40: 4.049421818e-12 | BR40: 4.2316458e-12 | BS40: 4.422069861e-12 | BT40: 4.621063004e-12 | BU40: 4.82901084e-12 | BV40: =BU43 -> 5.046316327e-12 | BW40: 5.273400562e-12 | BX40: 5.510703587e-12 | BY40: 5.758685249e-12 | BZ40: 6.017826085e-12 | CA40: 6.288628259e-12 | CB40: 6.571616531e-12 | CC40: 6.867339274e-12 | CD40: 7.176369542e-12 | CE40: 7.499306171e-12 | CF40: 7.836774949e-12 | CG40: 8.189429822e-12 | CH40: 8.557954163e-12 | CI40: 8.943062101e-12 | CJ40: 9.345499895e-12 | CK40: 9.766047391e-12 | CL40: 1.020551952e-11 | CM40: 1.06647679e-11 | CN40: 1.114468246e-11 | CO40: 1.164619317e-11 | CP40: 1.217027186e-11 | CQ40: 1.271793409e-11 | CR40: 1.329024113e-11 | CS40: 1.388830198e-11 | CT40: 1.451327557e-11 | CU40: 1.516637297e-11 | CV40: 1.584885975e-11 | CW40: 1.656205844e-11 | CX40: 1.730735107e-11 | CY40: 1.808618187e-11 | CZ40: 1.890006005e-11 | DA40: 1.975056276e-11 | DB40: 2.063933808e-11 | DC40: 2.156810829e-11 | DD40: 2.253867317e-11 | DE40: 2.355291346e-11 | DF40: 2.461279456e-11 | DG40: 2.572037032e-11 | DH40: 2.687778698e-11 | DI40: 2.80872874e-11 | DJ40: 2.935121533e-11 | DK40: 3.067202002e-11 | DL40: 3.205226092e-11 | DM40: 3.349461266e-11 | DN40: 3.500187023e-11 | DO40: 3.65769544e-11 | DP40: 3.822291734e-11 | DQ40: 3.994294862e-11 | DR40: 4.174038131e-11 | DS40: 4.361869847e-11 | DT40: 4.55815399e-11 | DU40: 4.76327092e-11 | DV40: 4.977618111e-11 | DW40: 5.201610926e-11 | DX40: 5.435683418e-11
D41: Add: Debt Draws | E41: Euro | F41: =F38 -> 464.6568074 | I41: =$F$41*I4 -> 464.6568074 | J41: 0 | K41: 0 | L41: 0 | M41: 0 | N41: 0 | O41: 0 | P41: 0 | Q41: 0 | R41: 0 | S41: 0 | T41: 0 | U41: 0 | V41: 0 | W41: 0 | X41: 0 | Y41: 0 | Z41: 0 | AA41: 0 | AB41: 0 | AC41: 0 | AD41: 0 | AE41: 0 | AF41: 0 | AG41: 0 | AH41: 0 | AI41: 0 | AJ41: 0 | AK41: 0 | AL41: 0 | AM41: 0 | AN41: 0 | AO41: =$F$41*AO4 -> 0 | AP41: 0 | AQ41: 0 | AR41: 0 | AS41: 0 | AT41: 0 | AU41: 0 | AV41: 0 | AW41: 0 | AX41: 0 | AY41: 0 | AZ41: 0 | BA41: 0 | BB41: 0 | BC41: 0 | BD41: 0 | BE41: 0 | BF41: 0 | BG41: 0 | BH41: 0 | BI41: 0 | BJ41: 0 | BK41: 0 | BL41: 0 | BM41: 0 | BN41: 0 | BO41: 0 | BP41: 0 | BQ41: 0 | BR41: 0 | BS41: 0 | BT41: 0 | BU41: =$F$41*BU4 -> 0 | BV41: 0 | BW41: 0 | BX41: 0 | BY41: 0 | BZ41: 0 | CA41: 0 | CB41: 0 | CC41: 0 | CD41: 0 | CE41: 0 | CF41: 0 | CG41: 0 | CH41: 0 | CI41: 0 | CJ41: 0 | CK41: 0 | CL41: 0 | CM41: 0 | CN41: 0 | CO41: 0 | CP41: 0 | CQ41: 0 | CR41: 0 | CS41: 0 | CT41: 0 | CU41: 0 | CV41: 0 | CW41: 0 | CX41: 0 | CY41: 0 | CZ41: 0 | DA41: =$F$41*DA4 -> 0 | DB41: 0 | DC41: 0 | DD41: 0 | DE41: 0 | DF41: 0 | DG41: 0 | DH41: 0 | DI41: 0 | DJ41: 0 | DK41: 0 | DL41: 0 | DM41: 0 | DN41: 0 | DO41: 0 | DP41: 0 | DQ41: 0 | DR41: 0 | DS41: 0 | DT41: 0 | DU41: 0 | DV41: 0 | DW41: 0 | DX41: 0
D42: Less: Debt Repayment =DS - Int | E42: Euro | I42: =I37-I44 -> 0 | J42: =J37-J44 -> 8.233300808 | K42: 9.186656488 | L42: 10.19457032 | M42: 11.25973055 | N42: 12.38495109 | O42: 13.5731772 | P42: 14.82749156 | Q42: 16.15112049 | R42: 17.54744056 | S42: 19.01998542 | T42: 20.57245301 | U42: 22.208713 | V42: 23.93281468 | W42: 25.74899513 | X42: 27.66168777 | Y42: 29.67553135 | Z42: 31.79537923 | AA42: 34.02630925 | AB42: 36.37363388 | AC42: 38.84291093 | AD42: 41.43995472 | AE42: -3.421263273e-14 | AF42: -3.57522012e-14 | AG42: -3.736105025e-14 | AH42: -3.904229751e-14 | AI42: -4.07992009e-14 | AJ42: -4.263516494e-14 | AK42: -4.455374737e-14 | AL42: -4.6558666e-14 | AM42: -4.865380597e-14 | AN42: -5.084322724e-14 | AO42: -5.313117246e-14 | AP42: -5.552207522e-14 | AQ42: -5.802056861e-14 | AR42: -6.063149419e-14 | AS42: -6.335991143e-14 | AT42: -6.621110745e-14 | AU42: -6.919060728e-14 | AV42: -7.230418461e-14 | AW42: -7.555787292e-14 | AX42: -7.89579772e-14 | AY42: -8.251108617e-14 | AZ42: -8.622408505e-14 | BA42: -9.010416888e-14 | BB42: -9.415885648e-14 | BC42: -9.839600502e-14 | BD42: -1.028238252e-13 | BE42: -1.074508974e-13 | BF42: -1.122861878e-13 | BG42: -1.173390662e-13 | BH42: -1.226193242e-13 | BI42: -1.281371938e-13 | BJ42: -1.339033675e-13 | BK42: -1.39929019e-13 | BL42: -1.462258249e-13 | BM42: -1.52805987e-13 | BN42: -1.596822564e-13 | BO42: -1.66867958e-13 | BP42: -1.743770161e-13 | BQ42: -1.822239818e-13 | BR42: -1.90424061e-13 | BS42: -1.989931437e-13 | BT42: -2.079478352e-13 | BU42: -2.173054878e-13 | BV42: =BV37-BV44 -> -2.270842347e-13 | BW42: -2.373030253e-13 | BX42: -2.479816614e-13 | BY42: -2.591408362e-13 | BZ42: -2.708021738e-13 | CA42: -2.829882716e-13 | CB42: -2.957227439e-13 | CC42: -3.090302673e-13 | CD42: -3.229366294e-13 | CE42: -3.374687777e-13 | CF42: -3.526548727e-13 | CG42: -3.68524342e-13 | CH42: -3.851079374e-13 | CI42: -4.024377945e-13 | CJ42: -4.205474953e-13 | CK42: -4.394721326e-13 | CL42: -4.592483785e-13 | CM42: -4.799145556e-13 | CN42: -5.015107106e-13 | CO42: -5.240786926e-13 | CP42: -5.476622337e-13 | CQ42: -5.723070342e-13 | CR42: -5.980608508e-13 | CS42: -6.249735891e-13 | CT42: -6.530974006e-13 | CU42: -6.824867836e-13 | CV42: -7.131986889e-13 | CW42: -7.452926299e-13 | CX42: -7.788307982e-13 | CY42: -8.138781841e-13 | CZ42: -8.505027024e-13 | DA42: -8.88775324e-13 | DB42: -9.287702136e-13 | DC42: -9.705648732e-13 | DD42: -1.014240293e-12 | DE42: -1.059881106e-12 | DF42: -1.107575755e-12 | DG42: -1.157416664e-12 | DH42: -1.209500414e-12 | DI42: -1.263927933e-12 | DJ42: -1.32080469e-12 | DK42: -1.380240901e-12 | DL42: -1.442351742e-12 | DM42: -1.50725757e-12 | DN42: -1.575084161e-12 | DO42: -1.645962948e-12 | DP42: -1.72003128e-12 | DQ42: -1.797432688e-12 | DR42: -1.878317159e-12 | DS42: -1.962841431e-12 | DT42: -2.051169296e-12 | DU42: -2.143471914e-12 | DV42: -2.23992815e-12 | DW42: -2.340724917e-12 | DX42: -2.446057538e-12
D43: Closing Balance | E43: Euro | I43: =I40+I41-I42 -> 464.6568074 | J43: =J40+J41-J42 -> 456.4235066 | K43: 447.2368501 | L43: 437.0422798 | M43: 425.7825493 | N43: 413.3975982 | O43: 399.824421 | P43: 384.9969294 | Q43: 368.8458089 | R43: 351.2983684 | S43: 332.2783829 | T43: 311.7059299 | U43: 289.4972169 | V43: 265.5644023 | W43: 239.8154071 | X43: 212.1537194 | Y43: 182.478188 | Z43: 150.6828088 | AA43: 116.6564995 | AB43: 80.28286565 | AC43: 41.43995472 | AD43: 7.602807273e-13 | AE43: 7.9449336e-13 | AF43: 8.302455612e-13 | AG43: 8.676066114e-13 | AH43: 9.06648909e-13 | AI43: 9.474481099e-13 | AJ43: 9.900832748e-13 | AK43: 1.034637022e-12 | AL43: 1.081195688e-12 | AM43: 1.129849494e-12 | AN43: 1.180692721e-12 | AO43: 1.233823894e-12 | AP43: 1.289345969e-12 | AQ43: 1.347366538e-12 | AR43: 1.407998032e-12 | AS43: 1.471357943e-12 | AT43: 1.537569051e-12 | AU43: 1.606759658e-12 | AV43: 1.679063843e-12 | AW43: 1.754621716e-12 | AX43: 1.833579693e-12 | AY43: 1.916090779e-12 | AZ43: 2.002314864e-12 | BA43: 2.092419033e-12 | BB43: 2.186577889e-12 | BC43: 2.284973894e-12 | BD43: 2.38779772e-12 | BE43: 2.495248617e-12 | BF43: 2.607534805e-12 | BG43: 2.724873871e-12 | BH43: 2.847493195e-12 | BI43: 2.975630389e-12 | BJ43: 3.109533756e-12 | BK43: 3.249462775e-12 | BL43: 3.3956886e-12 | BM43: 3.548494587e-12 | BN43: 3.708176844e-12 | BO43: 3.875044802e-12 | BP43: 4.049421818e-12 | BQ43: 4.2316458e-12 | BR43: 4.422069861e-12 | BS43: 4.621063004e-12 | BT43: 4.82901084e-12 | BU43: 5.046316327e-12 | BV43: =BV40+BV41-BV42 -> 5.273400562e-12 | BW43: 5.510703587e-12 | BX43: 5.758685249e-12 | BY43: 6.017826085e-12 | BZ43: 6.288628259e-12 | CA43: 6.571616531e-12 | CB43: 6.867339274e-12 | CC43: 7.176369542e-12 | CD43: 7.499306171e-12 | CE43: 7.836774949e-12 | CF43: 8.189429822e-12 | CG43: 8.557954163e-12 | CH43: 8.943062101e-12 | CI43: 9.345499895e-12 | CJ43: 9.766047391e-12 | CK43: 1.020551952e-11 | CL43: 1.06647679e-11 | CM43: 1.114468246e-11 | CN43: 1.164619317e-11 | CO43: 1.217027186e-11 | CP43: 1.271793409e-11 | CQ43: 1.329024113e-11 | CR43: 1.388830198e-11 | CS43: 1.451327557e-11 | CT43: 1.516637297e-11 | CU43: 1.584885975e-11 | CV43: 1.656205844e-11 | CW43: 1.730735107e-11 | CX43: 1.808618187e-11 | CY43: 1.890006005e-11 | CZ43: 1.975056276e-11 | DA43: 2.063933808e-11 | DB43: 2.156810829e-11 | DC43: 2.253867317e-11 | DD43: 2.355291346e-11 | DE43: 2.461279456e-11 | DF43: 2.572037032e-11 | DG43: 2.687778698e-11 | DH43: 2.80872874e-11 | DI43: 2.935121533e-11 | DJ43: 3.067202002e-11 | DK43: 3.205226092e-11 | DL43: 3.349461266e-11 | DM43: 3.500187023e-11 | DN43: 3.65769544e-11 | DO43: 3.822291734e-11 | DP43: 3.994294862e-11 | DQ43: 4.174038131e-11 | DR43: 4.361869847e-11 | DS43: 4.55815399e-11 | DT43: 4.76327092e-11 | DU43: 4.977618111e-11 | DV43: 5.201610926e-11 | DW43: 5.435683418e-11 | DX43: 5.680289172e-11
D44: Interest Opening Balance x Int Rate | E44: Euro | F44: =F32 -> 0.045 | I44: =I40*$F$44 -> 0 | J44: =J40*$F$44 -> 20.90955633 | K44: 20.5390578 | L44: 20.12565826 | M44: 19.66690259 | N44: 19.16021472 | O44: 18.60289192 | P44: 17.99209894 | Q44: 17.32486182 | R44: 16.5980614 | S44: 15.80842658 | T44: 14.95252723 | U44: 14.02676685 | V44: 13.02737476 | W44: 11.9503981 | X44: 10.79169332 | Y44: 9.546917371 | Z44: 8.21151846 | AA44: 6.780726395 | AB44: 5.249542479 | AC44: 3.612728954 | AD44: 1.864797962 | AE44: 3.421263273e-14 | AF44: 3.57522012e-14 | AG44: 3.736105025e-14 | AH44: 3.904229751e-14 | AI44: 4.07992009e-14 | AJ44: 4.263516494e-14 | AK44: 4.455374737e-14 | AL44: 4.6558666e-14 | AM44: 4.865380597e-14 | AN44: 5.084322724e-14 | AO44: 5.313117246e-14 | AP44: 5.552207522e-14 | AQ44: 5.802056861e-14 | AR44: 6.063149419e-14 | AS44: 6.335991143e-14 | AT44: 6.621110745e-14 | AU44: 6.919060728e-14 | AV44: 7.230418461e-14 | AW44: 7.555787292e-14 | AX44: 7.89579772e-14 | AY44: 8.251108617e-14 | AZ44: 8.622408505e-14 | BA44: 9.010416888e-14 | BB44: 9.415885648e-14 | BC44: 9.839600502e-14 | BD44: 1.028238252e-13 | BE44: 1.074508974e-13 | BF44: 1.122861878e-13 | BG44: 1.173390662e-13 | BH44: 1.226193242e-13 | BI44: 1.281371938e-13 | BJ44: 1.339033675e-13 | BK44: 1.39929019e-13 | BL44: 1.462258249e-13 | BM44: 1.52805987e-13 | BN44: 1.596822564e-13 | BO44: 1.66867958e-13 | BP44: 1.743770161e-13 | BQ44: 1.822239818e-13 | BR44: 1.90424061e-13 | BS44: 1.989931437e-13 | BT44: 2.079478352e-13 | BU44: 2.173054878e-13 | BV44: =BV40*$F$44 -> 2.270842347e-13 | BW44: 2.373030253e-13 | BX44: 2.479816614e-13 | BY44: 2.591408362e-13 | BZ44: 2.708021738e-13 | CA44: 2.829882716e-13 | CB44: 2.957227439e-13 | CC44: 3.090302673e-13 | CD44: 3.229366294e-13 | CE44: 3.374687777e-13 | CF44: 3.526548727e-13 | CG44: 3.68524342e-13 | CH44: 3.851079374e-13 | CI44: 4.024377945e-13 | CJ44: 4.205474953e-13 | CK44: 4.394721326e-13 | CL44: 4.592483785e-13 | CM44: 4.799145556e-13 | CN44: 5.015107106e-13 | CO44: 5.240786926e-13 | CP44: 5.476622337e-13 | CQ44: 5.723070342e-13 | CR44: 5.980608508e-13 | CS44: 6.249735891e-13 | CT44: 6.530974006e-13 | CU44: 6.824867836e-13 | CV44: 7.131986889e-13 | CW44: 7.452926299e-13 | CX44: 7.788307982e-13 | CY44: 8.138781841e-13 | CZ44: 8.505027024e-13 | DA44: 8.88775324e-13 | DB44: 9.287702136e-13 | DC44: 9.705648732e-13 | DD44: 1.014240293e-12 | DE44: 1.059881106e-12 | DF44: 1.107575755e-12 | DG44: 1.157416664e-12 | DH44: 1.209500414e-12 | DI44: 1.263927933e-12 | DJ44: 1.32080469e-12 | DK44: 1.380240901e-12 | DL44: 1.442351742e-12 | DM44: 1.50725757e-12 | DN44: 1.575084161e-12 | DO44: 1.645962948e-12 | DP44: 1.72003128e-12 | DQ44: 1.797432688e-12 | DR44: 1.878317159e-12 | DS44: 1.962841431e-12 | DT44: 2.051169296e-12 | DU44: 2.143471914e-12 | DV44: 2.23992815e-12 | DW44: 2.340724917e-12 | DX44: 2.446057538e-12
C47: Subordinated Debt
D48: Aggregate DSCR =CFADS/(DSsen + DSsub)
D49: Aggregate DSCR * (DSsen + DSsub) =CFADS
D50: (DSsen + DSsub) =CFADS/Aggregate DSCR
D51: DSsub =CFADS/Aggregate DSCR - Dssen
D53: Tenure | E53: Years | F53: 27
D54: Aggregate DSCR | E54: x | F54: 1.5
D55: Interest Rate | E55: % | F55: 0.065
D56: Flag for Tenure
D57: CFADS for Tenure | E57: Euro
D58: Target Debt Service - Above Formula | E58: Euro
D60: Subordinated Debt - Opening | E60: Euro
D61: Add: Debt Draws | E61: Euro
D62: Less: Debt Service | E62: Euro
D63: Closing Balance | E63: Euro
D64: Interest | E64: Euro | F64: =F55 -> 0.065
B67: Cash Flow Statement
C68: Cash Before COD - Uses and Source
D69: Uses
D70: Cap Exp | E70: Euro | I70: =I12 -> 1000 | J70: 0 | K70: 0 | L70: 0 | M70: 0 | N70: 0 | O70: 0 | P70: 0 | Q70: 0 | R70: 0 | S70: 0 | T70: 0 | U70: 0 | V70: 0 | W70: 0 | X70: 0 | Y70: 0 | Z70: 0 | AA70: 0 | AB70: 0 | AC70: 0 | AD70: 0 | AE70: 0 | AF70: 0 | AG70: 0 | AH70: 0 | AI70: 0 | AJ70: 0 | AK70: 0 | AL70: 0 | AM70: 0 | AN70: 0 | AO70: =AO12 -> 0 | AP70: 0 | AQ70: 0 | AR70: 0 | AS70: 0 | AT70: 0 | AU70: 0 | AV70: 0 | AW70: 0 | AX70: 0 | AY70: 0 | AZ70: 0 | BA70: 0 | BB70: 0 | BC70: 0 | BD70: 0 | BE70: 0 | BF70: 0 | BG70: 0 | BH70: 0 | BI70: 0 | BJ70: 0 | BK70: 0 | BL70: 0 | BM70: 0 | BN70: 0 | BO70: 0 | BP70: 0 | BQ70: 0 | BR70: 0 | BS70: 0 | BT70: 0 | BU70: =BU12 -> 0 | BV70: 0 | BW70: 0 | BX70: 0 | BY70: 0 | BZ70: 0 | CA70: 0 | CB70: 0 | CC70: 0 | CD70: 0 | CE70: 0 | CF70: 0 | CG70: 0 | CH70: 0 | CI70: 0 | CJ70: 0 | CK70: 0 | CL70: 0 | CM70: 0 | CN70: 0 | CO70: 0 | CP70: 0 | CQ70: 0 | CR70: 0 | CS70: 0 | CT70: 0 | CU70: 0 | CV70: 0 | CW70: 0 | CX70: 0 | CY70: 0 | CZ70: 0 | DA70: =DA12 -> 0 | DB70: 0 | DC70: 0 | DD70: 0 | DE70: 0 | DF70: 0 | DG70: 0 | DH70: 0 | DI70: 0 | DJ70: 0 | DK70: 0 | DL70: 0 | DM70: 0 | DN70: 0 | DO70: 0 | DP70: 0 | DQ70: 0 | DR70: 0 | DS70: 0 | DT70: 0 | DU70: 0 | DV70: 0 | DW70: 0 | DX70: 0
D72: Source
D73: Debt | E73: Euro | G73: =I73/I70 -> 0.4646568074 | I73: =I41 -> 464.6568074 | J73: =J41 -> 0 | K73: 0 | L73: 0 | M73: 0 | N73: 0 | O73: 0 | P73: 0 | Q73: 0 | R73: 0 | S73: 0 | T73: 0 | U73: 0 | V73: 0 | W73: 0 | X73: 0 | Y73: 0 | Z73: 0 | AA73: 0 | AB73: 0 | AC73: 0 | AD73: 0 | AE73: 0 | AF73: 0 | AG73: 0 | AH73: 0 | AI73: 0 | AJ73: 0 | AK73: 0 | AL73: 0 | AM73: 0 | AN73: 0 | AO73: 0 | AP73: 0 | AQ73: 0 | AR73: 0 | AS73: 0 | AT73: 0 | AU73: 0 | AV73: 0 | AW73: 0 | AX73: 0 | AY73: 0 | AZ73: 0 | BA73: 0 | BB73: 0 | BC73: 0 | BD73: 0 | BE73: 0 | BF73: 0 | BG73: 0 | BH73: 0 | BI73: 0 | BJ73: 0 | BK73: 0 | BL73: 0 | BM73: 0 | BN73: 0 | BO73: 0 | BP73: 0 | BQ73: 0 | BR73: 0 | BS73: 0 | BT73: 0 | BU73: 0 | BV73: =BV41 -> 0 | BW73: 0 | BX73: 0 | BY73: 0 | BZ73: 0 | CA73: 0 | CB73: 0 | CC73: 0 | CD73: 0 | CE73: 0 | CF73: 0 | CG73: 0 | CH73: 0 | CI73: 0 | CJ73: 0 | CK73: 0 | CL73: 0 | CM73: 0 | CN73: 0 | CO73: 0 | CP73: 0 | CQ73: 0 | CR73: 0 | CS73: 0 | CT73: 0 | CU73: 0 | CV73: 0 | CW73: 0 | CX73: 0 | CY73: 0 | CZ73: 0 | DA73: 0 | DB73: 0 | DC73: 0 | DD73: 0 | DE73: 0 | DF73: 0 | DG73: 0 | DH73: 0 | DI73: 0 | DJ73: 0 | DK73: 0 | DL73: 0 | DM73: 0 | DN73: 0 | DO73: 0 | DP73: 0 | DQ73: 0 | DR73: 0 | DS73: 0 | DT73: 0 | DU73: 0 | DV73: 0 | DW73: 0 | DX73: 0
D74: Subordinated Debt | E74: Euro
D75: Equity Investment | E75: Euro | I75: =I70-I73 -> 535.3431926 | J75: =J70-J73 -> 0 | K75: 0 | L75: 0 | M75: 0 | N75: 0 | O75: 0 | P75: 0 | Q75: 0 | R75: 0 | S75: 0 | T75: 0 | U75: 0 | V75: 0 | W75: 0 | X75: 0 | Y75: 0 | Z75: 0 | AA75: 0 | AB75: 0 | AC75: 0 | AD75: 0 | AE75: 0 | AF75: 0 | AG75: 0 | AH75: 0 | AI75: 0 | AJ75: 0 | AK75: 0 | AL75: 0 | AM75: 0 | AN75: 0 | AO75: 0 | AP75: 0 | AQ75: 0 | AR75: 0 | AS75: 0 | AT75: 0 | AU75: 0 | AV75: 0 | AW75: 0 | AX75: 0 | AY75: 0 | AZ75: 0 | BA75: 0 | BB75: 0 | BC75: 0 | BD75: 0 | BE75: 0 | BF75: 0 | BG75: 0 | BH75: 0 | BI75: 0 | BJ75: 0 | BK75: 0 | BL75: 0 | BM75: 0 | BN75: 0 | BO75: 0 | BP75: 0 | BQ75: 0 | BR75: 0 | BS75: 0 | BT75: 0 | BU75: 0 | BV75: =BV70-BV73 -> 0 | BW75: 0 | BX75: 0 | BY75: 0 | BZ75: 0 | CA75: 0 | CB75: 0 | CC75: 0 | CD75: 0 | CE75: 0 | CF75: 0 | CG75: 0 | CH75: 0 | CI75: 0 | CJ75: 0 | CK75: 0 | CL75: 0 | CM75: 0 | CN75: 0 | CO75: 0 | CP75: 0 | CQ75: 0 | CR75: 0 | CS75: 0 | CT75: 0 | CU75: 0 | CV75: 0 | CW75: 0 | CX75: 0 | CY75: 0 | CZ75: 0 | DA75: 0 | DB75: 0 | DC75: 0 | DD75: 0 | DE75: 0 | DF75: 0 | DG75: 0 | DH75: 0 | DI75: 0 | DJ75: 0 | DK75: 0 | DL75: 0 | DM75: 0 | DN75: 0 | DO75: 0 | DP75: 0 | DQ75: 0 | DR75: 0 | DS75: 0 | DT75: 0 | DU75: 0 | DV75: 0 | DW75: 0 | DX75: 0
D76: Total | I76: =SUM(I73:I75) -> 1000 | J76: =SUM(J73:J75) -> 0 | K76: 0 | L76: 0 | M76: 0 | N76: 0 | O76: 0 | P76: 0 | Q76: 0 | R76: 0 | S76: 0 | T76: 0 | U76: 0 | V76: 0 | W76: 0 | X76: 0 | Y76: 0 | Z76: 0 | AA76: 0 | AB76: 0 | AC76: 0 | AD76: 0 | AE76: 0 | AF76: 0 | AG76: 0 | AH76: 0 | AI76: 0 | AJ76: 0 | AK76: 0 | AL76: 0 | AM76: 0 | AN76: 0 | AO76: 0 | AP76: 0 | AQ76: 0 | AR76: 0 | AS76: 0 | AT76: 0 | AU76: 0 | AV76: 0 | AW76: 0 | AX76: 0 | AY76: 0 | AZ76: 0 | BA76: 0 | BB76: 0 | BC76: 0 | BD76: 0 | BE76: 0 | BF76: 0 | BG76: 0 | BH76: 0 | BI76: 0 | BJ76: 0 | BK76: 0 | BL76: 0 | BM76: 0 | BN76: 0 | BO76: 0 | BP76: 0 | BQ76: 0 | BR76: 0 | BS76: 0 | BT76: 0 | BU76: 0 | BV76: =SUM(BV73:BV75) -> 0 | BW76: 0 | BX76: 0 | BY76: 0 | BZ76: 0 | CA76: 0 | CB76: 0 | CC76: 0 | CD76: 0 | CE76: 0 | CF76: 0 | CG76: 0 | CH76: 0 | CI76: 0 | CJ76: 0 | CK76: 0 | CL76: 0 | CM76: 0 | CN76: 0 | CO76: 0 | CP76: 0 | CQ76: 0 | CR76: 0 | CS76: 0 | CT76: 0 | CU76: 0 | CV76: 0 | CW76: 0 | CX76: 0 | CY76: 0 | CZ76: 0 | DA76: 0 | DB76: 0 | DC76: 0 | DD76: 0 | DE76: 0 | DF76: 0 | DG76: 0 | DH76: 0 | DI76: 0 | DJ76: 0 | DK76: 0 | DL76: 0 | DM76: 0 | DN76: 0 | DO76: 0 | DP76: 0 | DQ76: 0 | DR76: 0 | DS76: 0 | DT76: 0 | DU76: 0 | DV76: 0 | DW76: 0 | DX76: 0
C78: Cash Flow After
D79: EBITDA | E79: Euro | I79: =I14 -> 0 | J79: 51 | K79: 52.02 | L79: 53.0604 | M79: 54.121608 | N79: 55.20404016 | O79: 56.30812096 | P79: 57.43428338 | Q79: 58.58296905 | R79: 59.75462843 | S79: 60.949721 | T79: 62.16871542 | U79: 63.41208973 | V79: 64.68033152 | W79: 65.97393815 | X79: 67.29341692 | Y79: 68.63928525 | Z79: 70.01207096 | AA79: 71.41231238 | AB79: 72.84055863 | AC79: 74.2973698 | AD79: 75.78331719 | AE79: 77.29898354 | AF79: 78.84496321 | AG79: 80.42186247 | AH79: 82.03029972 | AI79: 83.67090572 | AJ79: 85.34432383 | AK79: 87.05121031 | AL79: 88.79223451 | AM79: 90.56807921 | AN79: 0 | AO79: =AO14 -> 0 | AP79: 0 | AQ79: 0 | AR79: 0 | AS79: 0 | AT79: 0 | AU79: 0 | AV79: 0 | AW79: 0 | AX79: 0 | AY79: 0 | AZ79: 0 | BA79: 0 | BB79: 0 | BC79: 0 | BD79: 0 | BE79: 0 | BF79: 0 | BG79: 0 | BH79: 0 | BI79: 0 | BJ79: 0 | BK79: 0 | BL79: 0 | BM79: 0 | BN79: 0 | BO79: 0 | BP79: 0 | BQ79: 0 | BR79: 0 | BS79: 0 | BT79: 0 | BU79: =BU14 -> 0 | BV79: 0 | BW79: 0 | BX79: 0 | BY79: 0 | BZ79: 0 | CA79: 0 | CB79: 0 | CC79: 0 | CD79: 0 | CE79: 0 | CF79: 0 | CG79: 0 | CH79: 0 | CI79: 0 | CJ79: 0 | CK79: 0 | CL79: 0 | CM79: 0 | CN79: 0 | CO79: 0 | CP79: 0 | CQ79: 0 | CR79: 0 | CS79: 0 | CT79: 0 | CU79: 0 | CV79: 0 | CW79: 0 | CX79: 0 | CY79: 0 | CZ79: 0 | DA79: =DA14 -> 0 | DB79: 0 | DC79: 0 | DD79: 0 | DE79: 0 | DF79: 0 | DG79: 0 | DH79: 0 | DI79: 0 | DJ79: 0 | DK79: 0 | DL79: 0 | DM79: 0 | DN79: 0 | DO79: 0 | DP79: 0 | DQ79: 0 | DR79: 0 | DS79: 0 | DT79: 0 | DU79: 0 | DV79: 0 | DW79: 0 | DX79: 0
D80: Less: Interest - Senior | E80: Euro | I80: =I44 -> 0 | J80: =J44 -> 20.90955633 | K80: 20.5390578 | L80: 20.12565826 | M80: 19.66690259 | N80: 19.16021472 | O80: 18.60289192 | P80: 17.99209894 | Q80: 17.32486182 | R80: 16.5980614 | S80: 15.80842658 | T80: 14.95252723 | U80: 14.02676685 | V80: 13.02737476 | W80: 11.9503981 | X80: 10.79169332 | Y80: 9.546917371 | Z80: 8.21151846 | AA80: 6.780726395 | AB80: 5.249542479 | AC80: 3.612728954 | AD80: 1.864797962 | AE80: 3.421263273e-14 | AF80: 3.57522012e-14 | AG80: 3.736105025e-14 | AH80: 3.904229751e-14 | AI80: 4.07992009e-14 | AJ80: 4.263516494e-14 | AK80: 4.455374737e-14 | AL80: 4.6558666e-14 | AM80: 4.865380597e-14 | AN80: 5.084322724e-14 | AO80: 5.313117246e-14 | AP80: 5.552207522e-14 | AQ80: 5.802056861e-14 | AR80: 6.063149419e-14 | AS80: 6.335991143e-14 | AT80: 6.621110745e-14 | AU80: 6.919060728e-14 | AV80: 7.230418461e-14 | AW80: 7.555787292e-14 | AX80: 7.89579772e-14 | AY80: 8.251108617e-14 | AZ80: 8.622408505e-14 | BA80: 9.010416888e-14 | BB80: 9.415885648e-14 | BC80: 9.839600502e-14 | BD80: 1.028238252e-13 | BE80: 1.074508974e-13 | BF80: 1.122861878e-13 | BG80: 1.173390662e-13 | BH80: 1.226193242e-13 | BI80: 1.281371938e-13 | BJ80: 1.339033675e-13 | BK80: 1.39929019e-13 | BL80: 1.462258249e-13 | BM80: 1.52805987e-13 | BN80: 1.596822564e-13 | BO80: 1.66867958e-13 | BP80: 1.743770161e-13 | BQ80: 1.822239818e-13 | BR80: 1.90424061e-13 | BS80: 1.989931437e-13 | BT80: 2.079478352e-13 | BU80: 2.173054878e-13 | BV80: =BV44 -> 2.270842347e-13 | BW80: 2.373030253e-13 | BX80: 2.479816614e-13 | BY80: 2.591408362e-13 | BZ80: 2.708021738e-13 | CA80: 2.829882716e-13 | CB80: 2.957227439e-13 | CC80: 3.090302673e-13 | CD80: 3.229366294e-13 | CE80: 3.374687777e-13 | CF80: 3.526548727e-13 | CG80: 3.68524342e-13 | CH80: 3.851079374e-13 | CI80: 4.024377945e-13 | CJ80: 4.205474953e-13 | CK80: 4.394721326e-13 | CL80: 4.592483785e-13 | CM80: 4.799145556e-13 | CN80: 5.015107106e-13 | CO80: 5.240786926e-13 | CP80: 5.476622337e-13 | CQ80: 5.723070342e-13 | CR80: 5.980608508e-13 | CS80: 6.249735891e-13 | CT80: 6.530974006e-13 | CU80: 6.824867836e-13 | CV80: 7.131986889e-13 | CW80: 7.452926299e-13 | CX80: 7.788307982e-13 | CY80: 8.138781841e-13 | CZ80: 8.505027024e-13 | DA80: 8.88775324e-13 | DB80: 9.287702136e-13 | DC80: 9.705648732e-13 | DD80: 1.014240293e-12 | DE80: 1.059881106e-12 | DF80: 1.107575755e-12 | DG80: 1.157416664e-12 | DH80: 1.209500414e-12 | DI80: 1.263927933e-12 | DJ80: 1.32080469e-12 | DK80: 1.380240901e-12 | DL80: 1.442351742e-12 | DM80: 1.50725757e-12 | DN80: 1.575084161e-12 | DO80: 1.645962948e-12 | DP80: 1.72003128e-12 | DQ80: 1.797432688e-12 | DR80: 1.878317159e-12 | DS80: 1.962841431e-12 | DT80: 2.051169296e-12 | DU80: 2.143471914e-12 | DV80: 2.23992815e-12 | DW80: 2.340724917e-12 | DX80: 2.446057538e-12
D81: Less: Repayment - Senior | E81: Euro | I81: =I42 -> 0 | J81: =J42 -> 8.233300808 | K81: 9.186656488 | L81: 10.19457032 | M81: 11.25973055 | N81: 12.38495109 | O81: 13.5731772 | P81: 14.82749156 | Q81: 16.15112049 | R81: 17.54744056 | S81: 19.01998542 | T81: 20.57245301 | U81: 22.208713 | V81: 23.93281468 | W81: 25.74899513 | X81: 27.66168777 | Y81: 29.67553135 | Z81: 31.79537923 | AA81: 34.02630925 | AB81: 36.37363388 | AC81: 38.84291093 | AD81: 41.43995472 | AE81: -3.421263273e-14 | AF81: -3.57522012e-14 | AG81: -3.736105025e-14 | AH81: -3.904229751e-14 | AI81: -4.07992009e-14 | AJ81: -4.263516494e-14 | AK81: -4.455374737e-14 | AL81: -4.6558666e-14 | AM81: -4.865380597e-14 | AN81: -5.084322724e-14 | AO81: -5.313117246e-14 | AP81: -5.552207522e-14 | AQ81: -5.802056861e-14 | AR81: -6.063149419e-14 | AS81: -6.335991143e-14 | AT81: -6.621110745e-14 | AU81: -6.919060728e-14 | AV81: -7.230418461e-14 | AW81: -7.555787292e-14 | AX81: -7.89579772e-14 | AY81: -8.251108617e-14 | AZ81: -8.622408505e-14 | BA81: -9.010416888e-14 | BB81: -9.415885648e-14 | BC81: -9.839600502e-14 | BD81: -1.028238252e-13 | BE81: -1.074508974e-13 | BF81: -1.122861878e-13 | BG81: -1.173390662e-13 | BH81: -1.226193242e-13 | BI81: -1.281371938e-13 | BJ81: -1.339033675e-13 | BK81: -1.39929019e-13 | BL81: -1.462258249e-13 | BM81: -1.52805987e-13 | BN81: -1.596822564e-13 | BO81: -1.66867958e-13 | BP81: -1.743770161e-13 | BQ81: -1.822239818e-13 | BR81: -1.90424061e-13 | BS81: -1.989931437e-13 | BT81: -2.079478352e-13 | BU81: -2.173054878e-13 | BV81: =BV42 -> -2.270842347e-13 | BW81: -2.373030253e-13 | BX81: -2.479816614e-13 | BY81: -2.591408362e-13 | BZ81: -2.708021738e-13 | CA81: -2.829882716e-13 | CB81: -2.957227439e-13 | CC81: -3.090302673e-13 | CD81: -3.229366294e-13 | CE81: -3.374687777e-13 | CF81: -3.526548727e-13 | CG81: -3.68524342e-13 | CH81: -3.851079374e-13 | CI81: -4.024377945e-13 | CJ81: -4.205474953e-13 | CK81: -4.394721326e-13 | CL81: -4.592483785e-13 | CM81: -4.799145556e-13 | CN81: -5.015107106e-13 | CO81: -5.240786926e-13 | CP81: -5.476622337e-13 | CQ81: -5.723070342e-13 | CR81: -5.980608508e-13 | CS81: -6.249735891e-13 | CT81: -6.530974006e-13 | CU81: -6.824867836e-13 | CV81: -7.131986889e-13 | CW81: -7.452926299e-13 | CX81: -7.788307982e-13 | CY81: -8.138781841e-13 | CZ81: -8.505027024e-13 | DA81: -8.88775324e-13 | DB81: -9.287702136e-13 | DC81: -9.705648732e-13 | DD81: -1.014240293e-12 | DE81: -1.059881106e-12 | DF81: -1.107575755e-12 | DG81: -1.157416664e-12 | DH81: -1.209500414e-12 | DI81: -1.263927933e-12 | DJ81: -1.32080469e-12 | DK81: -1.380240901e-12 | DL81: -1.442351742e-12 | DM81: -1.50725757e-12 | DN81: -1.575084161e-12 | DO81: -1.645962948e-12 | DP81: -1.72003128e-12 | DQ81: -1.797432688e-12 | DR81: -1.878317159e-12 | DS81: -1.962841431e-12 | DT81: -2.051169296e-12 | DU81: -2.143471914e-12 | DV81: -2.23992815e-12 | DW81: -2.340724917e-12 | DX81: -2.446057538e-12
D82: Net Cash Flow | E82: Euro
D83: Sub Debt Interest | E83: Euro
D84: Sub Debt Repayment | E84: Euro
D86: Dividends | E86: Euro | I86: =I79-I80-I81 -> 0 | J86: =J79-J80-J81 -> 21.85714286 | K86: 22.29428571 | L86: 22.74017143 | M86: 23.19497486 | N86: 23.65887435 | O86: 24.13205184 | P86: 24.61469288 | Q86: 25.10698674 | R86: 25.60912647 | S86: 26.121309 | T86: 26.64373518 | U86: 27.17660988 | V86: 27.72014208 | W86: 28.27454492 | X86: 28.84003582 | Y86: 29.41683654 | Z86: 30.00517327 | AA86: 30.60527673 | AB86: 31.21738227 | AC86: 31.84172991 | AD86: 32.47856451 | AE86: 77.29898354 | AF86: 78.84496321 | AG86: 80.42186247 | AH86: 82.03029972 | AI86: 83.67090572 | AJ86: 85.34432383 | AK86: 87.05121031 | AL86: 88.79223451 | AM86: 90.56807921 | AN86: 0 | AO86: 0 | AP86: 0 | AQ86: 0 | AR86: 0 | AS86: 0 | AT86: 0 | AU86: 0 | AV86: 0 | AW86: 0 | AX86: 0 | AY86: 0 | AZ86: 0 | BA86: 0 | BB86: 0 | BC86: 0 | BD86: 0 | BE86: 0 | BF86: 0 | BG86: 0 | BH86: 0 | BI86: 0 | BJ86: 0 | BK86: 0 | BL86: 0 | BM86: 0 | BN86: 0 | BO86: 0 | BP86: 0 | BQ86: 0 | BR86: 0 | BS86: 0 | BT86: 0 | BU86: 0 | BV86: =BV79-BV80-BV81 -> 0 | BW86: 0 | BX86: 0 | BY86: 0 | BZ86: 0 | CA86: 0 | CB86: 0 | CC86: 0 | CD86: 0 | CE86: 0 | CF86: 0 | CG86: 0 | CH86: 0 | CI86: 0 | CJ86: 0 | CK86: 0 | CL86: 0 | CM86: 0 | CN86: 0 | CO86: 0 | CP86: 0 | CQ86: 0 | CR86: 0 | CS86: 0 | CT86: 0 | CU86: 0 | CV86: 0 | CW86: 0 | CX86: 0 | CY86: 0 | CZ86: 0 | DA86: 0 | DB86: 0 | DC86: 0 | DD86: 0 | DE86: 0 | DF86: 0 | DG86: 0 | DH86: 0 | DI86: 0 | DJ86: 0 | DK86: 0 | DL86: 0 | DM86: 0 | DN86: 0 | DO86: 0 | DP86: 0 | DQ86: 0 | DR86: 0 | DS86: 0 | DT86: 0 | DU86: 0 | DV86: 0 | DW86: 0 | DX86: 0
B88: Summary Analysis - Structuring
D90: Equity Net Cash Flow | E90: Euro | I90: =-I75+I86 -> -535.3431926 | J90: 21.85714286 | K90: 22.29428571 | L90: 22.74017143 | M90: 23.19497486 | N90: 23.65887435 | O90: 24.13205184 | P90: 24.61469288 | Q90: 25.10698674 | R90: 25.60912647 | S90: 26.121309 | T90: 26.64373518 | U90: 27.17660988 | V90: 27.72014208 | W90: 28.27454492 | X90: 28.84003582 | Y90: 29.41683654 | Z90: 30.00517327 | AA90: 30.60527673 | AB90: 31.21738227 | AC90: 31.84172991 | AD90: 32.47856451 | AE90: 77.29898354 | AF90: 78.84496321 | AG90: 80.42186247 | AH90: 82.03029972 | AI90: 83.67090572 | AJ90: 85.34432383 | AK90: 87.05121031 | AL90: 88.79223451 | AM90: 90.56807921 | AN90: 0 | AO90: =-AO75+AO86 -> 0 | AP90: 0 | AQ90: 0 | AR90: 0 | AS90: 0 | AT90: 0 | AU90: 0 | AV90: 0 | AW90: 0 | AX90: 0 | AY90: 0 | AZ90: 0 | BA90: 0 | BB90: 0 | BC90: 0 | BD90: 0 | BE90: 0 | BF90: 0 | BG90: 0 | BH90: 0 | BI90: 0 | BJ90: 0 | BK90: 0 | BL90: 0 | BM90: 0 | BN90: 0 | BO90: 0 | BP90: 0 | BQ90: 0 | BR90: 0 | BS90: 0 | BT90: 0 | BU90: =-BU75+BU86 -> 0 | BV90: 0 | BW90: 0 | BX90: 0 | BY90: 0 | BZ90: 0 | CA90: 0 | CB90: 0 | CC90: 0 | CD90: 0 | CE90: 0 | CF90: 0 | CG90: 0 | CH90: 0 | CI90: 0 | CJ90: 0 | CK90: 0 | CL90: 0 | CM90: 0 | CN90: 0 | CO90: 0 | CP90: 0 | CQ90: 0 | CR90: 0 | CS90: 0 | CT90: 0 | CU90: 0 | CV90: 0 | CW90: 0 | CX90: 0 | CY90: 0 | CZ90: 0 | DA90: =-DA75+DA86 -> 0 | DB90: 0 | DC90: 0 | DD90: 0 | DE90: 0 | DF90: 0 | DG90: 0 | DH90: 0 | DI90: 0 | DJ90: 0 | DK90: 0 | DL90: 0 | DM90: 0 | DN90: 0 | DO90: 0 | DP90: 0 | DQ90: 0 | DR90: 0 | DS90: 0 | DT90: 0 | DU90: 0 | DV90: 0 | DW90: 0 | DX90: 0
D91: Equity IRR | E91: =IRR(I90:DX90) -> 0.05111733101
I93: =IF(I5,I3,NA()) ->  | J93: 2 | K93: 3 | L93: 4 | M93: 5 | N93: 6 | O93: 7 | P93: 8 | Q93: 9 | R93: 10 | S93: 11 | T93: 12 | U93: 13 | V93: 14 | W93: 15 | X93: 16 | Y93: 17 | Z93: 18 | AA93: 19 | AB93: 20 | AC93: 21 | AD93: 22 | AE93: 23 | AF93: 24 | AG93: 25 | AH93: 26 | AI93: 27 | AJ93: 28 | AK93: 29 | AL93: 30 | AM93: 31 | AO93: =IF(AO5,AO3,NA()) ->  | BU93: =IF(BU5,BU3,NA()) ->  | DA93: =IF(DA5,DA3,NA()) -> 
D94: Cash Flow | E94: Euro | I94: =I79 -> 0 | J94: 51 | K94: 52.02 | L94: 53.0604 | M94: 54.121608 | N94: 55.20404016 | O94: 56.30812096 | P94: 57.43428338 | Q94: 58.58296905 | R94: 59.75462843 | S94: 60.949721 | T94: 62.16871542 | U94: 63.41208973 | V94: 64.68033152 | W94: 65.97393815 | X94: 67.29341692 | Y94: 68.63928525 | Z94: 70.01207096 | AA94: 71.41231238 | AB94: 72.84055863 | AC94: 74.2973698 | AD94: 75.78331719 | AE94: 77.29898354 | AF94: 78.84496321 | AG94: 80.42186247 | AH94: 82.03029972 | AI94: 83.67090572 | AJ94: 85.34432383 | AK94: 87.05121031 | AL94: 88.79223451 | AM94: 90.56807921 | AN94: 0 | AO94: =AO79 -> 0 | AP94: 0 | AQ94: 0 | AR94: 0 | AS94: 0 | AT94: 0 | AU94: 0 | AV94: 0 | AW94: 0 | AX94: 0 | AY94: 0 | AZ94: 0 | BA94: 0 | BB94: 0 | BC94: 0 | BD94: 0 | BE94: 0 | BF94: 0 | BG94: 0 | BH94: 0 | BI94: 0 | BJ94: 0 | BK94: 0 | BL94: 0 | BM94: 0 | BN94: 0 | BO94: 0 | BP94: 0 | BQ94: 0 | BR94: 0 | BS94: 0 | BT94: 0 | BU94: =BU79 -> 0 | BV94: 0 | BW94: 0 | BX94: 0 | BY94: 0 | BZ94: 0 | CA94: 0 | CB94: 0 | CC94: 0 | CD94: 0 | CE94: 0 | CF94: 0 | CG94: 0 | CH94: 0 | CI94: 0 | CJ94: 0 | CK94: 0 | CL94: 0 | CM94: 0 | CN94: 0 | CO94: 0 | CP94: 0 | CQ94: 0 | CR94: 0 | CS94: 0 | CT94: 0 | CU94: 0 | CV94: 0 | CW94: 0 | CX94: 0 | CY94: 0 | CZ94: 0 | DA94: =DA79 -> 0 | DB94: 0 | DC94: 0 | DD94: 0 | DE94: 0 | DF94: 0 | DG94: 0 | DH94: 0 | DI94: 0 | DJ94: 0 | DK94: 0 | DL94: 0 | DM94: 0 | DN94: 0 | DO94: 0 | DP94: 0 | DQ94: 0 | DR94: 0 | DS94: 0 | DT94: 0 | DU94: 0 | DV94: 0 | DW94: 0 | DX94: 0
D95: Debt Service | E95: Euro | I95: =I80+I81 -> 0 | J95: 29.14285714 | K95: 29.72571429 | L95: 30.32022857 | M95: 30.92663314 | N95: 31.54516581 | O95: 32.17606912 | P95: 32.8195905 | Q95: 33.47598231 | R95: 34.14550196 | S95: 34.828412 | T95: 35.52498024 | U95: 36.23547984 | V95: 36.96018944 | W95: 37.69939323 | X95: 38.45338109 | Y95: 39.22244872 | Z95: 40.00689769 | AA95: 40.80703565 | AB95: 41.62317636 | AC95: 42.45563989 | AD95: 43.30475268 | AE95: 0 | AF95: 0 | AG95: 0 | AH95: 0 | AI95: 0 | AJ95: 0 | AK95: 0 | AL95: 0 | AM95: 0 | AN95: 0 | AO95: =AO80+AO81 -> 0 | AP95: 0 | AQ95: 0 | AR95: 0 | AS95: 0 | AT95: 0 | AU95: 0 | AV95: 0 | AW95: 0 | AX95: 0 | AY95: 0 | AZ95: 0 | BA95: 0 | BB95: 0 | BC95: 0 | BD95: 0 | BE95: 0 | BF95: 0 | BG95: 0 | BH95: 0 | BI95: 0 | BJ95: 0 | BK95: 0 | BL95: 0 | BM95: 0 | BN95: 0 | BO95: 0 | BP95: 0 | BQ95: 0 | BR95: 0 | BS95: 0 | BT95: 0 | BU95: =BU80+BU81 -> 0 | BV95: 0 | BW95: 0 | BX95: 0 | BY95: 0 | BZ95: 0 | CA95: 0 | CB95: 0 | CC95: 0 | CD95: 0 | CE95: 0 | CF95: 0 | CG95: 0 | CH95: 0 | CI95: 0 | CJ95: 0 | CK95: 0 | CL95: 0 | CM95: 0 | CN95: 0 | CO95: 0 | CP95: 0 | CQ95: 0 | CR95: 0 | CS95: 0 | CT95: 0 | CU95: 0 | CV95: 0 | CW95: 0 | CX95: 0 | CY95: 0 | CZ95: 0 | DA95: =DA80+DA81 -> 0 | DB95: 0 | DC95: 0 | DD95: 0 | DE95: 0 | DF95: 0 | DG95: 0 | DH95: 0 | DI95: 0 | DJ95: 0 | DK95: 0 | DL95: 0 | DM95: 0 | DN95: 0 | DO95: 0 | DP95: 0 | DQ95: 0 | DR95: 0 | DS95: 0 | DT95: 0 | DU95: 0 | DV95: 0 | DW95: 0 | DX95: 0
D97: Equity IRR | E97: =E91 -> 0.05111733101 | F97: DSCR | G97: =F37 -> 1.75 | I97: Tenure | J97: =F35 -> 22 | K97: Debt to Capital
D99: DSCR | I99: =IF(I95>0,I94/I95) -> FALSE | J99: =IF(J95>0,J94/J95) -> 1.75 | K99: 1.75 | L99: 1.75 | M99: 1.75 | N99: 1.75 | O99: 1.75 | P99: 1.75 | Q99: 1.75 | R99: 1.75 | S99: 1.75 | T99: 1.75 | U99: 1.75 | V99: 1.75 | W99: 1.75 | X99: 1.75 | Y99: 1.75 | Z99: 1.75 | AA99: 1.75 | AB99: 1.75 | AC99: 1.75 | AD99: 1.75 | AE99: FALSE | AF99: FALSE | AG99: FALSE | AH99: FALSE | AI99: FALSE | AJ99: FALSE | AK99: FALSE | AL99: FALSE | AM99: FALSE | AN99: FALSE | AO99: FALSE | AP99: FALSE | AQ99: FALSE | AR99: FALSE | AS99: FALSE | AT99: FALSE | AU99: FALSE | AV99: FALSE | AW99: FALSE | AX99: FALSE | AY99: FALSE | AZ99: FALSE | BA99: FALSE | BB99: FALSE | BC99: FALSE | BD99: FALSE | BE99: FALSE | BF99: FALSE | BG99: FALSE | BH99: FALSE | BI99: FALSE | BJ99: FALSE | BK99: FALSE | BL99: FALSE | BM99: FALSE | BN99: FALSE | BO99: FALSE | BP99: FALSE | BQ99: FALSE | BR99: FALSE | BS99: FALSE | BT99: FALSE | BU99: FALSE | BV99: =IF(BV95>0,BV94/BV95) -> FALSE | BW99: FALSE | BX99: FALSE | BY99: FALSE | BZ99: FALSE | CA99: FALSE | CB99: FALSE | CC99: FALSE | CD99: FALSE | CE99: FALSE | CF99: FALSE | CG99: FALSE | CH99: FALSE | CI99: FALSE | CJ99: FALSE | CK99: FALSE | CL99: FALSE | CM99: FALSE | CN99: FALSE | CO99: FALSE | CP99: FALSE | CQ99: FALSE | CR99: FALSE | CS99: FALSE | CT99: FALSE | CU99: FALSE | CV99: FALSE | CW99: FALSE | CX99: FALSE | CY99: FALSE | CZ99: FALSE | DA99: FALSE | DB99: FALSE | DC99: FALSE | DD99: FALSE | DE99: FALSE | DF99: FALSE | DG99: FALSE | DH99: FALSE | DI99: FALSE | DJ99: FALSE | DK99: FALSE | DL99: FALSE | DM99: FALSE | DN99: FALSE | DO99: FALSE | DP99: FALSE | DQ99: FALSE | DR99: FALSE | DS99: FALSE | DT99: FALSE | DU99: FALSE | DV99: FALSE | DW99: FALSE | DX99: FALSE
B102: Risk Analysis
C103: Scheduled Senior Debt Repayment | H103: =SUM(I103:XFD103) -> 464.6568074 | I103: =I42 -> 0 | J103: 8.233300808 | K103: 9.186656488 | L103: 10.19457032 | M103: 11.25973055 | N103: 12.38495109 | O103: 13.5731772 | P103: 14.82749156 | Q103: 16.15112049 | R103: 17.54744056 | S103: 19.01998542 | T103: 20.57245301 | U103: 22.208713 | V103: 23.93281468 | W103: 25.74899513 | X103: 27.66168777 | Y103: 29.67553135 | Z103: 31.79537923 | AA103: 34.02630925 | AB103: 36.37363388 | AC103: 38.84291093 | AD103: 41.43995472 | AE103: -3.421263273e-14 | AF103: -3.57522012e-14 | AG103: -3.736105025e-14 | AH103: -3.904229751e-14 | AI103: -4.07992009e-14 | AJ103: -4.263516494e-14 | AK103: -4.455374737e-14 | AL103: -4.6558666e-14 | AM103: -4.865380597e-14 | AN103: -5.084322724e-14 | AO103: =AO42 -> -5.313117246e-14 | AP103: -5.552207522e-14 | AQ103: -5.802056861e-14 | AR103: -6.063149419e-14 | AS103: -6.335991143e-14 | AT103: -6.621110745e-14 | AU103: -6.919060728e-14 | AV103: -7.230418461e-14 | AW103: -7.555787292e-14 | AX103: -7.89579772e-14 | AY103: -8.251108617e-14 | AZ103: -8.622408505e-14 | BA103: -9.010416888e-14 | BB103: -9.415885648e-14 | BC103: -9.839600502e-14 | BD103: -1.028238252e-13 | BE103: -1.074508974e-13 | BF103: -1.122861878e-13 | BG103: -1.173390662e-13 | BH103: -1.226193242e-13 | BI103: -1.281371938e-13 | BJ103: -1.339033675e-13 | BK103: -1.39929019e-13 | BL103: -1.462258249e-13 | BM103: -1.52805987e-13 | BN103: -1.596822564e-13 | BO103: -1.66867958e-13 | BP103: -1.743770161e-13 | BQ103: -1.822239818e-13 | BR103: -1.90424061e-13 | BS103: -1.989931437e-13 | BT103: -2.079478352e-13 | BU103: =BU42 -> -2.173054878e-13 | BV103: -2.270842347e-13 | BW103: -2.373030253e-13 | BX103: -2.479816614e-13 | BY103: -2.591408362e-13 | BZ103: -2.708021738e-13 | CA103: -2.829882716e-13 | CB103: -2.957227439e-13 | CC103: -3.090302673e-13 | CD103: -3.229366294e-13 | CE103: -3.374687777e-13 | CF103: -3.526548727e-13 | CG103: -3.68524342e-13 | CH103: -3.851079374e-13 | CI103: -4.024377945e-13 | CJ103: -4.205474953e-13 | CK103: -4.394721326e-13 | CL103: -4.592483785e-13 | CM103: -4.799145556e-13 | CN103: -5.015107106e-13 | CO103: -5.240786926e-13 | CP103: -5.476622337e-13 | CQ103: -5.723070342e-13 | CR103: -5.980608508e-13 | CS103: -6.249735891e-13 | CT103: -6.530974006e-13 | CU103: -6.824867836e-13 | CV103: -7.131986889e-13 | CW103: -7.452926299e-13 | CX103: -7.788307982e-13 | CY103: -8.138781841e-13 | CZ103: -8.505027024e-13 | DA103: =DA42 -> -8.88775324e-13 | DB103: -9.287702136e-13 | DC103: -9.705648732e-13 | DD103: -1.014240293e-12 | DE103: -1.059881106e-12 | DF103: -1.107575755e-12 | DG103: -1.157416664e-12 | DH103: -1.209500414e-12 | DI103: -1.263927933e-12 | DJ103: -1.32080469e-12 | DK103: -1.380240901e-12 | DL103: -1.442351742e-12 | DM103: -1.50725757e-12 | DN103: -1.575084161e-12 | DO103: -1.645962948e-12 | DP103: -1.72003128e-12 | DQ103: -1.797432688e-12 | DR103: -1.878317159e-12 | DS103: -1.962841431e-12 | DT103: -2.051169296e-12 | DU103: -2.143471914e-12 | DV103: -2.23992815e-12 | DW103: -2.340724917e-12 | DX103: -2.446057538e-12
C104: Scheduled Subordinated Debt Repayment
C106: Volatility | E106: % | F106: 0
C107: Mean Reversion | E107: % | F107: 0
C109: Base Revenue Estimate | E109: Euro | F109: =G109/100 -> 1 | G109: 100 | I109: =I10*$F$109 -> 0 | J109: 61.2 | K109: 62.424 | L109: 63.67248 | M109: 64.9459296 | N109: 66.24484819 | O109: 67.56974516 | P109: 68.92114006 | Q109: 70.29956286 | R109: 71.70555412 | S109: 73.1396652 | T109: 74.6024585 | U109: 76.09450767 | V109: 77.61639783 | W109: 79.16872578 | X109: 80.7521003 | Y109: 82.36714231 | Z109: 84.01448515 | AA109: 85.69477485 | AB109: 87.40867035 | AC109: 89.15684376 | AD109: 90.93998063 | AE109: 92.75878025 | AF109: 94.61395585 | AG109: 96.50623497 | AH109: 98.43635967 | AI109: 100.4050869 | AJ109: 102.4131886 | AK109: 104.4614524 | AL109: 106.5506814 | AM109: 108.681695 | AN109: 0 | AO109: =AO10*$F$109 -> 0 | AP109: 0 | AQ109: 0 | AR109: 0 | AS109: 0 | AT109: 0 | AU109: 0 | AV109: 0 | AW109: 0 | AX109: 0 | AY109: 0 | AZ109: 0 | BA109: 0 | BB109: 0 | BC109: 0 | BD109: 0 | BE109: 0 | BF109: 0 | BG109: 0 | BH109: 0 | BI109: 0 | BJ109: 0 | BK109: 0 | BL109: 0 | BM109: 0 | BN109: 0 | BO109: 0 | BP109: 0 | BQ109: 0 | BR109: 0 | BS109: 0 | BT109: 0 | BU109: =BU10*$F$109 -> 0 | BV109: 0 | BW109: 0 | BX109: 0 | BY109: 0 | BZ109: 0 | CA109: 0 | CB109: 0 | CC109: 0 | CD109: 0 | CE109: 0 | CF109: 0 | CG109: 0 | CH109: 0 | CI109: 0 | CJ109: 0 | CK109: 0 | CL109: 0 | CM109: 0 | CN109: 0 | CO109: 0 | CP109: 0 | CQ109: 0 | CR109: 0 | CS109: 0 | CT109: 0 | CU109: 0 | CV109: 0 | CW109: 0 | CX109: 0 | CY109: 0 | CZ109: 0 | DA109: =DA10*$F$109 -> 0 | DB109: 0 | DC109: 0 | DD109: 0 | DE109: 0 | DF109: 0 | DG109: 0 | DH109: 0 | DI109: 0 | DJ109: 0 | DK109: 0 | DL109: 0 | DM109: 0 | DN109: 0 | DO109: 0 | DP109: 0 | DQ109: 0 | DR109: 0 | DS109: 0 | DT109: 0 | DU109: 0 | DV109: 0 | DW109: 0 | DX109: 0
C111: Random Number - Probability | E111: % | I111: =RAND() -> 0.9869881618 | J111: =RAND() -> 0.7645984381 | K111: =RAND() -> 0.3841757684 | L111: 0.2474918062 | M111: 0.3309582571 | N111: 0.9873233462 | O111: 0.4736326826 | P111: 0.6476299164 | Q111: 0.8257430709 | R111: 0.5660981198 | S111: 0.4296292652 | T111: 0.8254498426 | U111: 0.6530232996 | V111: 0.604668172 | W111: 0.4407495795 | X111: 0.2279307262 | Y111: 0.7704194371 | Z111: 0.5663605643 | AA111: 0.3652122053 | AB111: 0.08753575133 | AC111: 0.1670991078 | AD111: 0.1492176046 | AE111: 0.6039762387 | AF111: 0.7685230087 | AG111: 0.459319994 | AH111: 0.3523940246 | AI111: 0.5228778603 | AJ111: 0.632456124 | AK111: 0.2891627193 | AL111: 0.02493470491 | AM111: 0.03419283392 | AN111: 0.9197222652 | AO111: 0.6689048308 | AP111: 0.2927491757 | AQ111: 0.8006879407 | AR111: 0.2006743979 | AS111: 0.7200566769 | AT111: 0.8317402116 | AU111: 0.5609819513 | AV111: 0.8606619391 | AW111: 0.8983611338 | AX111: 0.4700853224 | AY111: 0.1311563341 | AZ111: 0.9146085953 | BA111: 0.1280208817 | BB111: 0.4469266968 | BC111: 0.4472595448 | BD111: 0.9806455205 | BE111: 0.6672200961 | BF111: 0.3940153994 | BG111: 0.5823678777 | BH111: 0.8221880368 | BI111: 0.4479337984 | BJ111: 0.5214575476 | BK111: 0.2249425652 | BL111: 0.8055436597 | BM111: 0.1976588869 | BN111: 0.1766979374 | BO111: 0.1912165646 | BP111: 0.6537941796 | BQ111: 0.5056538382 | BR111: 0.839628285 | BS111: 0.9779644688 | BT111: 0.9440008721 | BU111: 0.7269170365 | BV111: =RAND() -> 0.6168578806 | BW111: 0.7530166112 | BX111: 0.220703102 | BY111: 0.768669983 | BZ111: 0.7530123354 | CA111: 0.5955198858 | CB111: 0.9278787812 | CC111: 0.2596516035 | CD111: 0.01468764286 | CE111: 0.09882221707 | CF111: 0.3501257317 | CG111: 0.1902059429 | CH111: 0.4111714227 | CI111: 0.8572299394 | CJ111: 0.9340767915 | CK111: 0.384882972 | CL111: 0.4001563305 | CM111: 0.2214744715 | CN111: 0.102686582 | CO111: 0.4524797961 | CP111: 0.1583277813 | CQ111: 0.373448011 | CR111: 0.6614108117 | CS111: 0.03422186628 | CT111: 0.06261498117 | CU111: 0.6458623263 | CV111: 0.6720491944 | CW111: 0.6181606583 | CX111: 0.4119830694 | CY111: 0.1465263244 | CZ111: 0.9689852318 | DA111: 0.783751713 | DB111: 0.2694280679 | DC111: 0.2487558904 | DD111: 0.1330357916 | DE111: 0.8729233426 | DF111: 0.1116198008 | DG111: 0.9427918891 | DH111: 0.9356413582 | DI111: 0.2493372309 | DJ111: 0.05174647367 | DK111: 0.5311053124 | DL111: 0.430438055 | DM111: 0.8828799775 | DN111: 0.4878906305 | DO111: 0.3782723461 | DP111: 0.5610473966 | DQ111: 0.08779165251 | DR111: 0.6021903707 | DS111: 0.8012349847 | DT111: 0.5157633627 | DU111: 0.3310548078 | DV111: 0.09337106628 | DW111: 0.110587502 | DX111: 0.6545306216
C112: Cash Flow Change from Normal Distribution | E112: Factor | I112: =NORMSINV(I111) -> 2.225858267 | J112: =NORMSINV(J111) -> 0.7211729314 | K112: -0.2945318402 | L112: -0.6824038652 | M112: -0.4372686695 | N112: 2.235976544 | O112: -0.06614125603 | P112: 0.3789295673 | Q112: 0.9374758158 | R112: 0.1664488157 | S112: -0.1773181049 | T112: 0.9363358125 | U112: 0.3934956979 | V112: 0.2654489182 | W112: -0.1490690355 | X112: -0.7456788269 | Y112: 0.7402288815 | Z112: 0.1671158799 | AA112: -0.3445610254 | AB112: -1.356086956 | AC112: -0.9656922163 | AD112: -1.039794878 | AE112: 0.2636527306 | AF112: 0.7339913949 | AG112: -0.1021470093 | AH112: -0.37886509 | AI112: 0.05737775919 | AJ112: 0.3383655231 | AK112: -0.5558323934 | AL112: -1.961082414 | AM112: -1.822457031 | AN112: 1.40320583 | AO112: 0.436891084 | AP112: -0.5453710439 | AQ112: 0.8440810456 | AR112: -0.8392147783 | AS112: 0.5830098843 | AT112: 0.9610648204 | AU112: 0.1534592831 | AV112: 1.083298115 | AW112: 1.272268512 | AX112: -0.07505538567 | AY112: -1.120941726 | AZ112: 1.369692825 | BA112: -1.13579645 | BB112: -0.1334299081 | BC112: -0.1325881689 | BD112: 2.067267456 | BE112: 0.4322498831 | BF112: -0.2688686031 | BG112: 0.2079548199 | BH112: 0.9237357262 | BI112: -0.1308833364 | BJ112: 0.05381205519 | BK112: -0.7556065453 | BL112: 0.8615908997 | BM112: -0.8500131528 | BN112: -0.9280225457 | BO112: -0.8734219537 | BP112: 0.3955844089 | BQ112: 0.01417254506 | BR112: 0.9929313105 | BS112: 2.013414301 | BT112: 1.589275286 | BU112: 0.60351532 | BV112: =NORMSINV(BV111) -> 0.2972387512 | BW112: 0.6840132839 | BX112: -0.7698207924 | BY112: 0.734473781 | BZ112: 0.6839997414 | CA112: 0.2417676223 | CB112: 1.46017335 | CC112: -0.6444198641 | CD112: -2.178413231 | CE112: -1.288291721 | CF112: -0.3849810394 | CG112: -0.8771376336 | CH112: -0.2245326745 | CI112: 1.067956529 | CJ112: 1.506860504 | CK112: -0.2926810655 | CL112: -0.2529424817 | CM112: -0.7672229953 | CN112: -1.266390909 | CO112: -0.1193985724 | CP112: -1.001354273 | CQ112: -0.3227348959 | CR112: 0.4163165596 | CS112: -1.822074169 | CT112: -1.533186286 | CU112: 0.3741733534 | CV112: 0.4455786837 | CW112: 0.3006535619 | CX112: -0.2224467286 | CY112: -1.051448504 | CZ112: 1.866084556 | DA112: 0.7849266531 | DB112: -0.6145436534 | DC112: -0.6784099836 | DD112: -1.112154835 | DE112: 1.140319265 | DF112: -1.217958874 | DG112: 1.578650599 | DH112: 1.519179644 | DI112: -0.6765768649 | DJ112: -1.628150643 | DK112: 0.0780486231 | DL112: -0.1752590209 | DM112: 1.18950744 | DN112: -0.0303583506 | DO112: -0.3100213876 | DP112: 0.1536252751 | DQ112: -1.354479953 | DR112: 0.2590207136 | DS112: 0.8460407165 | DT112: 0.03952317808 | DU112: -0.4370023889 | DV112: -1.320278256 | DW112: -1.223409667 | DX112: 0.3975814223
C113: Cash Flow Change After Volatilty | E113: Factor | F113: =F106 -> 0 | I113: =I112*$F$113 -> 0 | J113: =J112*$F$113 -> 0 | K113: 0 | L113: 0 | M113: 0 | N113: 0 | O113: 0 | P113: 0 | Q113: 0 | R113: 0 | S113: 0 | T113: 0 | U113: 0 | V113: 0 | W113: 0 | X113: 0 | Y113: 0 | Z113: 0 | AA113: 0 | AB113: 0 | AC113: 0 | AD113: 0 | AE113: 0 | AF113: 0 | AG113: 0 | AH113: 0 | AI113: 0 | AJ113: 0 | AK113: 0 | AL113: 0 | AM113: 0 | AN113: 0 | AO113: 0 | AP113: 0 | AQ113: 0 | AR113: 0 | AS113: 0 | AT113: 0 | AU113: 0 | AV113: 0 | AW113: 0 | AX113: 0 | AY113: 0 | AZ113: 0 | BA113: 0 | BB113: 0 | BC113: 0 | BD113: 0 | BE113: 0 | BF113: 0 | BG113: 0 | BH113: 0 | BI113: 0 | BJ113: 0 | BK113: 0 | BL113: 0 | BM113: 0 | BN113: 0 | BO113: 0 | BP113: 0 | BQ113: 0 | BR113: 0 | BS113: 0 | BT113: 0 | BU113: 0 | BV113: =BV112*$F$113 -> 0 | BW113: 0 | BX113: 0 | BY113: 0 | BZ113: 0 | CA113: 0 | CB113: 0 | CC113: 0 | CD113: 0 | CE113: 0 | CF113: 0 | CG113: 0 | CH113: 0 | CI113: 0 | CJ113: 0 | CK113: 0 | CL113: 0 | CM113: 0 | CN113: 0 | CO113: 0 | CP113: 0 | CQ113: 0 | CR113: 0 | CS113: 0 | CT113: 0 | CU113: 0 | CV113: 0 | CW113: 0 | CX113: 0 | CY113: 0 | CZ113: 0 | DA113: 0 | DB113: 0 | DC113: 0 | DD113: 0 | DE113: 0 | DF113: 0 | DG113: 0 | DH113: 0 | DI113: 0 | DJ113: 0 | DK113: 0 | DL113: 0 | DM113: 0 | DN113: 0 | DO113: 0 | DP113: 0 | DQ113: 0 | DR113: 0 | DS113: 0 | DT113: 0 | DU113: 0 | DV113: 0 | DW113: 0 | DX113: 0
C115: Last Period | E115: Index | I115: =H118 -> 1 | J115: =I118 -> 1 | K115: 1 | L115: 1 | M115: 1 | N115: 1 | O115: 1 | P115: 1 | Q115: 1 | R115: 1 | S115: 1 | T115: 1 | U115: 1 | V115: 1 | W115: 1 | X115: 1 | Y115: 1 | Z115: 1 | AA115: 1 | AB115: 1 | AC115: 1 | AD115: 1 | AE115: 1 | AF115: 1 | AG115: 1 | AH115: 1 | AI115: 1 | AJ115: 1 | AK115: 1 | AL115: 1 | AM115: 1 | AN115: 1 | AO115: 1 | AP115: 1 | AQ115: 1 | AR115: 1 | AS115: 1 | AT115: 1 | AU115: 1 | AV115: 1 | AW115: 1 | AX115: 1 | AY115: 1 | AZ115: 1 | BA115: 1 | BB115: 1 | BC115: 1 | BD115: 1 | BE115: 1 | BF115: 1 | BG115: 1 | BH115: 1 | BI115: 1 | BJ115: 1 | BK115: 1 | BL115: 1 | BM115: 1 | BN115: 1 | BO115: 1 | BP115: 1 | BQ115: 1 | BR115: 1 | BS115: 1 | BT115: 1 | BU115: 1 | BV115: =BU118 -> 1 | BW115: 1 | BX115: 1 | BY115: 1 | BZ115: 1 | CA115: 1 | CB115: 1 | CC115: 1 | CD115: 1 | CE115: 1 | CF115: 1 | CG115: 1 | CH115: 1 | CI115: 1 | CJ115: 1 | CK115: 1 | CL115: 1 | CM115: 1 | CN115: 1 | CO115: 1 | CP115: 1 | CQ115: 1 | CR115: 1 | CS115: 1 | CT115: 1 | CU115: 1 | CV115: 1 | CW115: 1 | CX115: 1 | CY115: 1 | CZ115: 1 | DA115: 1 | DB115: 1 | DC115: 1 | DD115: 1 | DE115: 1 | DF115: 1 | DG115: 1 | DH115: 1 | DI115: 1 | DJ115: 1 | DK115: 1 | DL115: 1 | DM115: 1 | DN115: 1 | DO115: 1 | DP115: 1 | DQ115: 1 | DR115: 1 | DS115: 1 | DT115: 1 | DU115: 1 | DV115: 1 | DW115: 1 | DX115: 1
C116: Mean Reversion Adjustment | E116: Index | F116: =F107 -> 0 | J116: =(J115-1)*$F$116 -> 0 | K116: =(K115-1)*$F$116 -> 0 | L116: 0 | M116: 0 | N116: 0 | O116: 0 | P116: 0 | Q116: 0 | R116: 0 | S116: 0 | T116: 0 | U116: 0 | V116: 0 | W116: 0 | X116: 0 | Y116: 0 | Z116: 0 | AA116: 0 | AB116: 0 | AC116: 0 | AD116: 0 | AE116: 0 | AF116: 0 | AG116: 0 | AH116: 0 | AI116: 0 | AJ116: 0 | AK116: 0 | AL116: 0 | AM116: 0 | AN116: 0 | AO116: 0 | AP116: 0 | AQ116: 0 | AR116: 0 | AS116: 0 | AT116: 0 | AU116: 0 | AV116: 0 | AW116: 0 | AX116: 0 | AY116: 0 | AZ116: 0 | BA116: 0 | BB116: 0 | BC116: 0 | BD116: 0 | BE116: 0 | BF116: 0 | BG116: 0 | BH116: 0 | BI116: 0 | BJ116: 0 | BK116: 0 | BL116: 0 | BM116: 0 | BN116: 0 | BO116: 0 | BP116: 0 | BQ116: 0 | BR116: 0 | BS116: 0 | BT116: 0 | BU116: 0 | BV116: 0 | BW116: =(BW115-1)*$F$116 -> 0 | BX116: 0 | BY116: 0 | BZ116: 0 | CA116: 0 | CB116: 0 | CC116: 0 | CD116: 0 | CE116: 0 | CF116: 0 | CG116: 0 | CH116: 0 | CI116: 0 | CJ116: 0 | CK116: 0 | CL116: 0 | CM116: 0 | CN116: 0 | CO116: 0 | CP116: 0 | CQ116: 0 | CR116: 0 | CS116: 0 | CT116: 0 | CU116: 0 | CV116: 0 | CW116: 0 | CX116: 0 | CY116: 0 | CZ116: 0 | DA116: 0 | DB116: 0 | DC116: 0 | DD116: 0 | DE116: 0 | DF116: 0 | DG116: 0 | DH116: 0 | DI116: 0 | DJ116: 0 | DK116: 0 | DL116: 0 | DM116: 0 | DN116: 0 | DO116: 0 | DP116: 0 | DQ116: 0 | DR116: 0 | DS116: 0 | DT116: 0 | DU116: 0 | DV116: 0 | DW116: 0 | DX116: 0
C118: Random Index | E118: Index | F118: =F106 -> 0 | G118: =F107 -> 0 | H118: =AVERAGE(I118:DX118) -> 1 | I118: 1 | J118: =I118*(1+J113)-J116 -> 1 | K118: =J118*(1+K113)-K116 -> 1 | L118: 1 | M118: 1 | N118: 1 | O118: 1 | P118: 1 | Q118: 1 | R118: 1 | S118: 1 | T118: 1 | U118: 1 | V118: 1 | W118: 1 | X118: 1 | Y118: 1 | Z118: 1 | AA118: 1 | AB118: 1 | AC118: 1 | AD118: 1 | AE118: 1 | AF118: 1 | AG118: 1 | AH118: 1 | AI118: 1 | AJ118: 1 | AK118: 1 | AL118: 1 | AM118: 1 | AN118: 1 | AO118: 1 | AP118: 1 | AQ118: 1 | AR118: 1 | AS118: 1 | AT118: 1 | AU118: 1 | AV118: 1 | AW118: 1 | AX118: 1 | AY118: 1 | AZ118: 1 | BA118: 1 | BB118: 1 | BC118: 1 | BD118: 1 | BE118: 1 | BF118: 1 | BG118: 1 | BH118: 1 | BI118: 1 | BJ118: 1 | BK118: 1 | BL118: 1 | BM118: 1 | BN118: 1 | BO118: 1 | BP118: 1 | BQ118: 1 | BR118: 1 | BS118: 1 | BT118: 1 | BU118: 1 | BV118: 1 | BW118: =BV118*(1+BW113)-BW116 -> 1 | BX118: 1 | BY118: 1 | BZ118: 1 | CA118: 1 | CB118: 1 | CC118: 1 | CD118: 1 | CE118: 1 | CF118: 1 | CG118: 1 | CH118: 1 | CI118: 1 | CJ118: 1 | CK118: 1 | CL118: 1 | CM118: 1 | CN118: 1 | CO118: 1 | CP118: 1 | CQ118: 1 | CR118: 1 | CS118: 1 | CT118: 1 | CU118: 1 | CV118: 1 | CW118: 1 | CX118: 1 | CY118: 1 | CZ118: 1 | DA118: 1 | DB118: 1 | DC118: 1 | DD118: 1 | DE118: 1 | DF118: 1 | DG118: 1 | DH118: 1 | DI118: 1 | DJ118: 1 | DK118: 1 | DL118: 1 | DM118: 1 | DN118: 1 | DO118: 1 | DP118: 1 | DQ118: 1 | DR118: 1 | DS118: 1 | DT118: 1 | DU118: 1 | DV118: 1 | DW118: 1 | DX118: 1
C119: Adjusted Revenue | E119: Euro | I119: =I109*I118 -> 0 | J119: =J109*J118 -> 61.2 | K119: 62.424 | L119: 63.67248 | M119: 64.9459296 | N119: 66.24484819 | O119: 67.56974516 | P119: 68.92114006 | Q119: 70.29956286 | R119: 71.70555412 | S119: 73.1396652 | T119: 74.6024585 | U119: 76.09450767 | V119: 77.61639783 | W119: 79.16872578 | X119: 80.7521003 | Y119: 82.36714231 | Z119: 84.01448515 | AA119: 85.69477485 | AB119: 87.40867035 | AC119: 89.15684376 | AD119: 90.93998063 | AE119: 92.75878025 | AF119: 94.61395585 | AG119: 96.50623497 | AH119: 98.43635967 | AI119: 100.4050869 | AJ119: 102.4131886 | AK119: 104.4614524 | AL119: 106.5506814 | AM119: 108.681695 | AN119: 0 | AO119: 0 | AP119: 0 | AQ119: 0 | AR119: 0 | AS119: 0 | AT119: 0 | AU119: 0 | AV119: 0 | AW119: 0 | AX119: 0 | AY119: 0 | AZ119: 0 | BA119: 0 | BB119: 0 | BC119: 0 | BD119: 0 | BE119: 0 | BF119: 0 | BG119: 0 | BH119: 0 | BI119: 0 | BJ119: 0 | BK119: 0 | BL119: 0 | BM119: 0 | BN119: 0 | BO119: 0 | BP119: 0 | BQ119: 0 | BR119: 0 | BS119: 0 | BT119: 0 | BU119: 0 | BV119: =BV109*BV118 -> 0 | BW119: 0 | BX119: 0 | BY119: 0 | BZ119: 0 | CA119: 0 | CB119: 0 | CC119: 0 | CD119: 0 | CE119: 0 | CF119: 0 | CG119: 0 | CH119: 0 | CI119: 0 | CJ119: 0 | CK119: 0 | CL119: 0 | CM119: 0 | CN119: 0 | CO119: 0 | CP119: 0 | CQ119: 0 | CR119: 0 | CS119: 0 | CT119: 0 | CU119: 0 | CV119: 0 | CW119: 0 | CX119: 0 | CY119: 0 | CZ119: 0 | DA119: 0 | DB119: 0 | DC119: 0 | DD119: 0 | DE119: 0 | DF119: 0 | DG119: 0 | DH119: 0 | DI119: 0 | DJ119: 0 | DK119: 0 | DL119: 0 | DM119: 0 | DN119: 0 | DO119: 0 | DP119: 0 | DQ119: 0 | DR119: 0 | DS119: 0 | DT119: 0 | DU119: 0 | DV119: 0 | DW119: 0 | DX119: 0
C120: Operating Expense | E120: Euro | I120: =I11 -> 0 | J120: 10.2 | K120: 10.404 | L120: 10.61208 | M120: 10.8243216 | N120: 11.04080803 | O120: 11.26162419 | P120: 11.48685668 | Q120: 11.71659381 | R120: 11.95092569 | S120: 12.1899442 | T120: 12.43374308 | U120: 12.68241795 | V120: 12.9360663 | W120: 13.19478763 | X120: 13.45868338 | Y120: 13.72785705 | Z120: 14.00241419 | AA120: 14.28246248 | AB120: 14.56811173 | AC120: 14.85947396 | AD120: 15.15666344 | AE120: 15.45979671 | AF120: 15.76899264 | AG120: 16.08437249 | AH120: 16.40605994 | AI120: 16.73418114 | AJ120: 17.06886477 | AK120: 17.41024206 | AL120: 17.7584469 | AM120: 18.11361584 | AN120: 0 | AO120: =AO11 -> 0 | AP120: 0 | AQ120: 0 | AR120: 0 | AS120: 0 | AT120: 0 | AU120: 0 | AV120: 0 | AW120: 0 | AX120: 0 | AY120: 0 | AZ120: 0 | BA120: 0 | BB120: 0 | BC120: 0 | BD120: 0 | BE120: 0 | BF120: 0 | BG120: 0 | BH120: 0 | BI120: 0 | BJ120: 0 | BK120: 0 | BL120: 0 | BM120: 0 | BN120: 0 | BO120: 0 | BP120: 0 | BQ120: 0 | BR120: 0 | BS120: 0 | BT120: 0 | BU120: =BU11 -> 0 | BV120: 0 | BW120: 0 | BX120: 0 | BY120: 0 | BZ120: 0 | CA120: 0 | CB120: 0 | CC120: 0 | CD120: 0 | CE120: 0 | CF120: 0 | CG120: 0 | CH120: 0 | CI120: 0 | CJ120: 0 | CK120: 0 | CL120: 0 | CM120: 0 | CN120: 0 | CO120: 0 | CP120: 0 | CQ120: 0 | CR120: 0 | CS120: 0 | CT120: 0 | CU120: 0 | CV120: 0 | CW120: 0 | CX120: 0 | CY120: 0 | CZ120: 0 | DA120: =DA11 -> 0 | DB120: 0 | DC120: 0 | DD120: 0 | DE120: 0 | DF120: 0 | DG120: 0 | DH120: 0 | DI120: 0 | DJ120: 0 | DK120: 0 | DL120: 0 | DM120: 0 | DN120: 0 | DO120: 0 | DP120: 0 | DQ120: 0 | DR120: 0 | DS120: 0 | DT120: 0 | DU120: 0 | DV120: 0 | DW120: 0 | DX120: 0
C121: Adjusted EBITDA | E121: Euro | I121: =I119-I120 -> 0 | J121: =J119-J120 -> 51 | K121: 52.02 | L121: 53.0604 | M121: 54.121608 | N121: 55.20404016 | O121: 56.30812096 | P121: 57.43428338 | Q121: 58.58296905 | R121: 59.75462843 | S121: 60.949721 | T121: 62.16871542 | U121: 63.41208973 | V121: 64.68033152 | W121: 65.97393815 | X121: 67.29341692 | Y121: 68.63928525 | Z121: 70.01207096 | AA121: 71.41231238 | AB121: 72.84055863 | AC121: 74.2973698 | AD121: 75.78331719 | AE121: 77.29898354 | AF121: 78.84496321 | AG121: 80.42186247 | AH121: 82.03029972 | AI121: 83.67090572 | AJ121: 85.34432383 | AK121: 87.05121031 | AL121: 88.79223451 | AM121: 90.56807921 | AN121: 0 | AO121: 0 | AP121: 0 | AQ121: 0 | AR121: 0 | AS121: 0 | AT121: 0 | AU121: 0 | AV121: 0 | AW121: 0 | AX121: 0 | AY121: 0 | AZ121: 0 | BA121: 0 | BB121: 0 | BC121: 0 | BD121: 0 | BE121: 0 | BF121: 0 | BG121: 0 | BH121: 0 | BI121: 0 | BJ121: 0 | BK121: 0 | BL121: 0 | BM121: 0 | BN121: 0 | BO121: 0 | BP121: 0 | BQ121: 0 | BR121: 0 | BS121: 0 | BT121: 0 | BU121: 0 | BV121: =BV119-BV120 -> 0 | BW121: 0 | BX121: 0 | BY121: 0 | BZ121: 0 | CA121: 0 | CB121: 0 | CC121: 0 | CD121: 0 | CE121: 0 | CF121: 0 | CG121: 0 | CH121: 0 | CI121: 0 | CJ121: 0 | CK121: 0 | CL121: 0 | CM121: 0 | CN121: 0 | CO121: 0 | CP121: 0 | CQ121: 0 | CR121: 0 | CS121: 0 | CT121: 0 | CU121: 0 | CV121: 0 | CW121: 0 | CX121: 0 | CY121: 0 | CZ121: 0 | DA121: 0 | DB121: 0 | DC121: 0 | DD121: 0 | DE121: 0 | DF121: 0 | DG121: 0 | DH121: 0 | DI121: 0 | DJ121: 0 | DK121: 0 | DL121: 0 | DM121: 0 | DN121: 0 | DO121: 0 | DP121: 0 | DQ121: 0 | DR121: 0 | DS121: 0 | DT121: 0 | DU121: 0 | DV121: 0 | DW121: 0 | DX121: 0
B123: Adjusted Senior Debt Schedule
C124: Base Debt
D125: Opening Debt | E125: Euro | I125: =H129 -> 0 | J125: =I129 -> 464.6568074 | K125: 456.4235066 | L125: 447.2368501 | M125: 437.0422798 | N125: 425.7825493 | O125: 413.3975982 | P125: 399.824421 | Q125: 384.9969294 | R125: 368.8458089 | S125: 351.2983684 | T125: 332.2783829 | U125: 311.7059299 | V125: 289.4972169 | W125: 265.5644023 | X125: 239.8154071 | Y125: 212.1537194 | Z125: 182.478188 | AA125: 150.6828088 | AB125: 116.6564995 | AC125: 80.28286565 | AD125: 41.43995472 | AE125: 7.602807273e-13 | AF125: 7.9449336e-13 | AG125: 8.302455612e-13 | AH125: 8.676066114e-13 | AI125: 9.06648909e-13 | AJ125: 9.474481099e-13 | AK125: 9.900832748e-13 | AL125: 1.034637022e-12 | AM125: 1.081195688e-12 | AN125: 1.129849494e-12 | AO125: 1.180692721e-12 | AP125: 1.233823894e-12 | AQ125: 1.289345969e-12 | AR125: 1.347366538e-12 | AS125: 1.407998032e-12 | AT125: 1.471357943e-12 | AU125: 1.537569051e-12 | AV125: 1.606759658e-12 | AW125: 1.679063843e-12 | AX125: 1.754621716e-12 | AY125: 1.833579693e-12 | AZ125: 1.916090779e-12 | BA125: 2.002314864e-12 | BB125: 2.092419033e-12 | BC125: 2.186577889e-12 | BD125: 2.284973894e-12 | BE125: 2.38779772e-12 | BF125: 2.495248617e-12 | BG125: 2.607534805e-12 | BH125: 2.724873871e-12 | BI125: 2.847493195e-12 | BJ125: 2.975630389e-12 | BK125: 3.109533756e-12 | BL125: 3.249462775e-12 | BM125: 3.3956886e-12 | BN125: 3.548494587e-12 | BO125: 3.708176844e-12 | BP125: 3.875044802e-12 | BQ125: 4.049421818e-12 | BR125: 4.2316458e-12 | BS125: 4.422069861e-12 | BT125: 4.621063004e-12 | BU125: 4.82901084e-12 | BV125: =BU129 -> 5.046316327e-12 | BW125: 5.273400562e-12 | BX125: 5.510703587e-12 | BY125: 5.758685249e-12 | BZ125: 6.017826085e-12 | CA125: 6.288628259e-12 | CB125: 6.571616531e-12 | CC125: 6.867339274e-12 | CD125: 7.176369542e-12 | CE125: 7.499306171e-12 | CF125: 7.836774949e-12 | CG125: 8.189429822e-12 | CH125: 8.557954163e-12 | CI125: 8.943062101e-12 | CJ125: 9.345499895e-12 | CK125: 9.766047391e-12 | CL125: 1.020551952e-11 | CM125: 1.06647679e-11 | CN125: 1.114468246e-11 | CO125: 1.164619317e-11 | CP125: 1.217027186e-11 | CQ125: 1.271793409e-11 | CR125: 1.329024113e-11 | CS125: 1.388830198e-11 | CT125: 1.451327557e-11 | CU125: 1.516637297e-11 | CV125: 1.584885975e-11 | CW125: 1.656205844e-11 | CX125: 1.730735107e-11 | CY125: 1.808618187e-11 | CZ125: 1.890006005e-11 | DA125: 1.975056276e-11 | DB125: 2.063933808e-11 | DC125: 2.156810829e-11 | DD125: 2.253867317e-11 | DE125: 2.355291346e-11 | DF125: 2.461279456e-11 | DG125: 2.572037032e-11 | DH125: 2.687778698e-11 | DI125: 2.80872874e-11 | DJ125: 2.935121533e-11 | DK125: 3.067202002e-11 | DL125: 3.205226092e-11 | DM125: 3.349461266e-11 | DN125: 3.500187023e-11 | DO125: 3.65769544e-11 | DP125: 3.822291734e-11 | DQ125: 3.994294862e-11 | DR125: 4.174038131e-11 | DS125: 4.361869847e-11 | DT125: 4.55815399e-11 | DU125: 4.76327092e-11 | DV125: 4.977618111e-11 | DW125: 5.201610926e-11 | DX125: 5.435683418e-11
D126: Add: Debt Issue | E126: Euro | I126: =I41 -> 464.6568074 | J126: 0 | K126: 0 | L126: 0 | M126: 0 | N126: 0 | O126: 0 | P126: 0 | Q126: 0 | R126: 0 | S126: 0 | T126: 0 | U126: 0 | V126: 0 | W126: 0 | X126: 0 | Y126: 0 | Z126: 0 | AA126: 0 | AB126: 0 | AC126: 0 | AD126: 0 | AE126: 0 | AF126: 0 | AG126: 0 | AH126: 0 | AI126: 0 | AJ126: 0 | AK126: 0 | AL126: 0 | AM126: 0 | AN126: 0 | AO126: =AO41 -> 0 | AP126: 0 | AQ126: 0 | AR126: 0 | AS126: 0 | AT126: 0 | AU126: 0 | AV126: 0 | AW126: 0 | AX126: 0 | AY126: 0 | AZ126: 0 | BA126: 0 | BB126: 0 | BC126: 0 | BD126: 0 | BE126: 0 | BF126: 0 | BG126: 0 | BH126: 0 | BI126: 0 | BJ126: 0 | BK126: 0 | BL126: 0 | BM126: 0 | BN126: 0 | BO126: 0 | BP126: 0 | BQ126: 0 | BR126: 0 | BS126: 0 | BT126: 0 | BU126: =BU41 -> 0 | BV126: 0 | BW126: 0 | BX126: 0 | BY126: 0 | BZ126: 0 | CA126: 0 | CB126: 0 | CC126: 0 | CD126: 0 | CE126: 0 | CF126: 0 | CG126: 0 | CH126: 0 | CI126: 0 | CJ126: 0 | CK126: 0 | CL126: 0 | CM126: 0 | CN126: 0 | CO126: 0 | CP126: 0 | CQ126: 0 | CR126: 0 | CS126: 0 | CT126: 0 | CU126: 0 | CV126: 0 | CW126: 0 | CX126: 0 | CY126: 0 | CZ126: 0 | DA126: =DA41 -> 0 | DB126: 0 | DC126: 0 | DD126: 0 | DE126: 0 | DF126: 0 | DG126: 0 | DH126: 0 | DI126: 0 | DJ126: 0 | DK126: 0 | DL126: 0 | DM126: 0 | DN126: 0 | DO126: 0 | DP126: 0 | DQ126: 0 | DR126: 0 | DS126: 0 | DT126: 0 | DU126: 0 | DV126: 0 | DW126: 0 | DX126: 0
D127: Less: Scheduled | E127: Euro | I127: =I81 -> 0 | J127: 8.233300808 | K127: 9.186656488 | L127: 10.19457032 | M127: 11.25973055 | N127: 12.38495109 | O127: 13.5731772 | P127: 14.82749156 | Q127: 16.15112049 | R127: 17.54744056 | S127: 19.01998542 | T127: 20.57245301 | U127: 22.208713 | V127: 23.93281468 | W127: 25.74899513 | X127: 27.66168777 | Y127: 29.67553135 | Z127: 31.79537923 | AA127: 34.02630925 | AB127: 36.37363388 | AC127: 38.84291093 | AD127: 41.43995472 | AE127: -3.421263273e-14 | AF127: -3.57522012e-14 | AG127: -3.736105025e-14 | AH127: -3.904229751e-14 | AI127: -4.07992009e-14 | AJ127: -4.263516494e-14 | AK127: -4.455374737e-14 | AL127: -4.6558666e-14 | AM127: -4.865380597e-14 | AN127: -5.084322724e-14 | AO127: =AO81 -> -5.313117246e-14 | AP127: -5.552207522e-14 | AQ127: -5.802056861e-14 | AR127: -6.063149419e-14 | AS127: -6.335991143e-14 | AT127: -6.621110745e-14 | AU127: -6.919060728e-14 | AV127: -7.230418461e-14 | AW127: -7.555787292e-14 | AX127: -7.89579772e-14 | AY127: -8.251108617e-14 | AZ127: -8.622408505e-14 | BA127: -9.010416888e-14 | BB127: -9.415885648e-14 | BC127: -9.839600502e-14 | BD127: -1.028238252e-13 | BE127: -1.074508974e-13 | BF127: -1.122861878e-13 | BG127: -1.173390662e-13 | BH127: -1.226193242e-13 | BI127: -1.281371938e-13 | BJ127: -1.339033675e-13 | BK127: -1.39929019e-13 | BL127: -1.462258249e-13 | BM127: -1.52805987e-13 | BN127: -1.596822564e-13 | BO127: -1.66867958e-13 | BP127: -1.743770161e-13 | BQ127: -1.822239818e-13 | BR127: -1.90424061e-13 | BS127: -1.989931437e-13 | BT127: -2.079478352e-13 | BU127: =BU81 -> -2.173054878e-13 | BV127: -2.270842347e-13 | BW127: -2.373030253e-13 | BX127: -2.479816614e-13 | BY127: -2.591408362e-13 | BZ127: -2.708021738e-13 | CA127: -2.829882716e-13 | CB127: -2.957227439e-13 | CC127: -3.090302673e-13 | CD127: -3.229366294e-13 | CE127: -3.374687777e-13 | CF127: -3.526548727e-13 | CG127: -3.68524342e-13 | CH127: -3.851079374e-13 | CI127: -4.024377945e-13 | CJ127: -4.205474953e-13 | CK127: -4.394721326e-13 | CL127: -4.592483785e-13 | CM127: -4.799145556e-13 | CN127: -5.015107106e-13 | CO127: -5.240786926e-13 | CP127: -5.476622337e-13 | CQ127: -5.723070342e-13 | CR127: -5.980608508e-13 | CS127: -6.249735891e-13 | CT127: -6.530974006e-13 | CU127: -6.824867836e-13 | CV127: -7.131986889e-13 | CW127: -7.452926299e-13 | CX127: -7.788307982e-13 | CY127: -8.138781841e-13 | CZ127: -8.505027024e-13 | DA127: =DA81 -> -8.88775324e-13 | DB127: -9.287702136e-13 | DC127: -9.705648732e-13 | DD127: -1.014240293e-12 | DE127: -1.059881106e-12 | DF127: -1.107575755e-12 | DG127: -1.157416664e-12 | DH127: -1.209500414e-12 | DI127: -1.263927933e-12 | DJ127: -1.32080469e-12 | DK127: -1.380240901e-12 | DL127: -1.442351742e-12 | DM127: -1.50725757e-12 | DN127: -1.575084161e-12 | DO127: -1.645962948e-12 | DP127: -1.72003128e-12 | DQ127: -1.797432688e-12 | DR127: -1.878317159e-12 | DS127: -1.962841431e-12 | DT127: -2.051169296e-12 | DU127: -2.143471914e-12 | DV127: -2.23992815e-12 | DW127: -2.340724917e-12 | DX127: -2.446057538e-12
D128: Less: Cash Sweep | E128: Euro
D129: Closing Balance | E129: Euro | I129: =I125+I126-I127-I128 -> 464.6568074 | J129: =J125+J126-J127-J128 -> 456.4235066 | K129: 447.2368501 | L129: 437.0422798 | M129: 425.7825493 | N129: 413.3975982 | O129: 399.824421 | P129: 384.9969294 | Q129: 368.8458089 | R129: 351.2983684 | S129: 332.2783829 | T129: 311.7059299 | U129: 289.4972169 | V129: 265.5644023 | W129: 239.8154071 | X129: 212.1537194 | Y129: 182.478188 | Z129: 150.6828088 | AA129: 116.6564995 | AB129: 80.28286565 | AC129: 41.43995472 | AD129: 7.602807273e-13 | AE129: 7.9449336e-13 | AF129: 8.302455612e-13 | AG129: 8.676066114e-13 | AH129: 9.06648909e-13 | AI129: 9.474481099e-13 | AJ129: 9.900832748e-13 | AK129: 1.034637022e-12 | AL129: 1.081195688e-12 | AM129: 1.129849494e-12 | AN129: 1.180692721e-12 | AO129: 1.233823894e-12 | AP129: 1.289345969e-12 | AQ129: 1.347366538e-12 | AR129: 1.407998032e-12 | AS129: 1.471357943e-12 | AT129: 1.537569051e-12 | AU129: 1.606759658e-12 | AV129: 1.679063843e-12 | AW129: 1.754621716e-12 | AX129: 1.833579693e-12 | AY129: 1.916090779e-12 | AZ129: 2.002314864e-12 | BA129: 2.092419033e-12 | BB129: 2.186577889e-12 | BC129: 2.284973894e-12 | BD129: 2.38779772e-12 | BE129: 2.495248617e-12 | BF129: 2.607534805e-12 | BG129: 2.724873871e-12 | BH129: 2.847493195e-12 | BI129: 2.975630389e-12 | BJ129: 3.109533756e-12 | BK129: 3.249462775e-12 | BL129: 3.3956886e-12 | BM129: 3.548494587e-12 | BN129: 3.708176844e-12 | BO129: 3.875044802e-12 | BP129: 4.049421818e-12 | BQ129: 4.2316458e-12 | BR129: 4.422069861e-12 | BS129: 4.621063004e-12 | BT129: 4.82901084e-12 | BU129: 5.046316327e-12 | BV129: =BV125+BV126-BV127-BV128 -> 5.273400562e-12 | BW129: 5.510703587e-12 | BX129: 5.758685249e-12 | BY129: 6.017826085e-12 | BZ129: 6.288628259e-12 | CA129: 6.571616531e-12 | CB129: 6.867339274e-12 | CC129: 7.176369542e-12 | CD129: 7.499306171e-12 | CE129: 7.836774949e-12 | CF129: 8.189429822e-12 | CG129: 8.557954163e-12 | CH129: 8.943062101e-12 | CI129: 9.345499895e-12 | CJ129: 9.766047391e-12 | CK129: 1.020551952e-11 | CL129: 1.06647679e-11 | CM129: 1.114468246e-11 | CN129: 1.164619317e-11 | CO129: 1.217027186e-11 | CP129: 1.271793409e-11 | CQ129: 1.329024113e-11 | CR129: 1.388830198e-11 | CS129: 1.451327557e-11 | CT129: 1.516637297e-11 | CU129: 1.584885975e-11 | CV129: 1.656205844e-11 | CW129: 1.730735107e-11 | CX129: 1.808618187e-11 | CY129: 1.890006005e-11 | CZ129: 1.975056276e-11 | DA129: 2.063933808e-11 | DB129: 2.156810829e-11 | DC129: 2.253867317e-11 | DD129: 2.355291346e-11 | DE129: 2.461279456e-11 | DF129: 2.572037032e-11 | DG129: 2.687778698e-11 | DH129: 2.80872874e-11 | DI129: 2.935121533e-11 | DJ129: 3.067202002e-11 | DK129: 3.205226092e-11 | DL129: 3.349461266e-11 | DM129: 3.500187023e-11 | DN129: 3.65769544e-11 | DO129: 3.822291734e-11 | DP129: 3.994294862e-11 | DQ129: 4.174038131e-11 | DR129: 4.361869847e-11 | DS129: 4.55815399e-11 | DT129: 4.76327092e-11 | DU129: 4.977618111e-11 | DV129: 5.201610926e-11 | DW129: 5.435683418e-11 | DX129: 5.680289172e-11
D130: Interest | E130: Euro | F130: =$F$44 -> 0.045 | I130: =I125*$F$130 -> 0 | J130: =J125*$F$130 -> 20.90955633 | K130: 20.5390578 | L130: 20.12565826 | M130: 19.66690259 | N130: 19.16021472 | O130: 18.60289192 | P130: 17.99209894 | Q130: 17.32486182 | R130: 16.5980614 | S130: 15.80842658 | T130: 14.95252723 | U130: 14.02676685 | V130: 13.02737476 | W130: 11.9503981 | X130: 10.79169332 | Y130: 9.546917371 | Z130: 8.21151846 | AA130: 6.780726395 | AB130: 5.249542479 | AC130: 3.612728954 | AD130: 1.864797962 | AE130: 3.421263273e-14 | AF130: 3.57522012e-14 | AG130: 3.736105025e-14 | AH130: 3.904229751e-14 | AI130: 4.07992009e-14 | AJ130: 4.263516494e-14 | AK130: 4.455374737e-14 | AL130: 4.6558666e-14 | AM130: 4.865380597e-14 | AN130: 5.084322724e-14 | AO130: 5.313117246e-14 | AP130: 5.552207522e-14 | AQ130: 5.802056861e-14 | AR130: 6.063149419e-14 | AS130: 6.335991143e-14 | AT130: 6.621110745e-14 | AU130: 6.919060728e-14 | AV130: 7.230418461e-14 | AW130: 7.555787292e-14 | AX130: 7.89579772e-14 | AY130: 8.251108617e-14 | AZ130: 8.622408505e-14 | BA130: 9.010416888e-14 | BB130: 9.415885648e-14 | BC130: 9.839600502e-14 | BD130: 1.028238252e-13 | BE130: 1.074508974e-13 | BF130: 1.122861878e-13 | BG130: 1.173390662e-13 | BH130: 1.226193242e-13 | BI130: 1.281371938e-13 | BJ130: 1.339033675e-13 | BK130: 1.39929019e-13 | BL130: 1.462258249e-13 | BM130: 1.52805987e-13 | BN130: 1.596822564e-13 | BO130: 1.66867958e-13 | BP130: 1.743770161e-13 | BQ130: 1.822239818e-13 | BR130: 1.90424061e-13 | BS130: 1.989931437e-13 | BT130: 2.079478352e-13 | BU130: 2.173054878e-13 | BV130: =BV125*$F$130 -> 2.270842347e-13 | BW130: 2.373030253e-13 | BX130: 2.479816614e-13 | BY130: 2.591408362e-13 | BZ130: 2.708021738e-13 | CA130: 2.829882716e-13 | CB130: 2.957227439e-13 | CC130: 3.090302673e-13 | CD130: 3.229366294e-13 | CE130: 3.374687777e-13 | CF130: 3.526548727e-13 | CG130: 3.68524342e-13 | CH130: 3.851079374e-13 | CI130: 4.024377945e-13 | CJ130: 4.205474953e-13 | CK130: 4.394721326e-13 | CL130: 4.592483785e-13 | CM130: 4.799145556e-13 | CN130: 5.015107106e-13 | CO130: 5.240786926e-13 | CP130: 5.476622337e-13 | CQ130: 5.723070342e-13 | CR130: 5.980608508e-13 | CS130: 6.249735891e-13 | CT130: 6.530974006e-13 | CU130: 6.824867836e-13 | CV130: 7.131986889e-13 | CW130: 7.452926299e-13 | CX130: 7.788307982e-13 | CY130: 8.138781841e-13 | CZ130: 8.505027024e-13 | DA130: 8.88775324e-13 | DB130: 9.287702136e-13 | DC130: 9.705648732e-13 | DD130: 1.014240293e-12 | DE130: 1.059881106e-12 | DF130: 1.107575755e-12 | DG130: 1.157416664e-12 | DH130: 1.209500414e-12 | DI130: 1.263927933e-12 | DJ130: 1.32080469e-12 | DK130: 1.380240901e-12 | DL130: 1.442351742e-12 | DM130: 1.50725757e-12 | DN130: 1.575084161e-12 | DO130: 1.645962948e-12 | DP130: 1.72003128e-12 | DQ130: 1.797432688e-12 | DR130: 1.878317159e-12 | DS130: 1.962841431e-12 | DT130: 2.051169296e-12 | DU130: 2.143471914e-12 | DV130: 2.23992815e-12 | DW130: 2.340724917e-12 | DX130: 2.446057538e-12
C132: Defaulted Senior Debt
D133: Opening Balance | E133: Euro | I133: =H136 -> 0 | J133: =I136 -> 0 | K133: 0 | L133: 0 | M133: 0 | N133: 0 | O133: 0 | P133: 0 | Q133: 0 | R133: 0 | S133: 0 | T133: 0 | U133: 0 | V133: 0 | W133: 0 | X133: 0 | Y133: 0 | Z133: 0 | AA133: 0 | AB133: 0 | AC133: 0 | AD133: 0 | AE133: 0 | AF133: 0 | AG133: 0 | AH133: 0 | AI133: 0 | AJ133: 0 | AK133: 0 | AL133: 0 | AM133: 0 | AN133: 0 | AO133: 0 | AP133: 0 | AQ133: 0 | AR133: 0 | AS133: 0 | AT133: 0 | AU133: 0 | AV133: 0 | AW133: 0 | AX133: 0 | AY133: 0 | AZ133: 0 | BA133: 0 | BB133: 0 | BC133: 0 | BD133: 0 | BE133: 0 | BF133: 0 | BG133: 0 | BH133: 0 | BI133: 0 | BJ133: 0 | BK133: 0 | BL133: 0 | BM133: 0 | BN133: 0 | BO133: 0 | BP133: 0 | BQ133: 0 | BR133: 0 | BS133: 0 | BT133: 0 | BU133: 0 | BV133: =BU136 -> 0 | BW133: 0 | BX133: 0 | BY133: 0 | BZ133: 0 | CA133: 0 | CB133: 0 | CC133: 0 | CD133: 0 | CE133: 0 | CF133: 0 | CG133: 0 | CH133: 0 | CI133: 0 | CJ133: 0 | CK133: 0 | CL133: 0 | CM133: 0 | CN133: 0 | CO133: 0 | CP133: 0 | CQ133: 0 | CR133: 0 | CS133: 0 | CT133: 0 | CU133: 0 | CV133: 0 | CW133: 0 | CX133: 0 | CY133: 0 | CZ133: 0 | DA133: 0 | DB133: 0 | DC133: 0 | DD133: 0 | DE133: 0 | DF133: 0 | DG133: 0 | DH133: 0 | DI133: 0 | DJ133: 0 | DK133: 0 | DL133: 0 | DM133: 0 | DN133: 0 | DO133: 0 | DP133: 0 | DQ133: 0 | DR133: 0 | DS133: 0 | DT133: 0 | DU133: 0 | DV133: 0 | DW133: 0 | DX133: 0
D134: Add: Default | E134: Euro
D135: Less: Repayment of Default | E135: Euro
D136: Closing Balance | E136: Euro | I136: =I133+I134-I135 -> 0 | J136: =J133+J134-J135 -> 0 | K136: 0 | L136: 0 | M136: 0 | N136: 0 | O136: 0 | P136: 0 | Q136: 0 | R136: 0 | S136: 0 | T136: 0 | U136: 0 | V136: 0 | W136: 0 | X136: 0 | Y136: 0 | Z136: 0 | AA136: 0 | AB136: 0 | AC136: 0 | AD136: 0 | AE136: 0 | AF136: 0 | AG136: 0 | AH136: 0 | AI136: 0 | AJ136: 0 | AK136: 0 | AL136: 0 | AM136: 0 | AN136: 0 | AO136: 0 | AP136: 0 | AQ136: 0 | AR136: 0 | AS136: 0 | AT136: 0 | AU136: 0 | AV136: 0 | AW136: 0 | AX136: 0 | AY136: 0 | AZ136: 0 | BA136: 0 | BB136: 0 | BC136: 0 | BD136: 0 | BE136: 0 | BF136: 0 | BG136: 0 | BH136: 0 | BI136: 0 | BJ136: 0 | BK136: 0 | BL136: 0 | BM136: 0 | BN136: 0 | BO136: 0 | BP136: 0 | BQ136: 0 | BR136: 0 | BS136: 0 | BT136: 0 | BU136: 0 | BV136: =BV133+BV134-BV135 -> 0 | BW136: 0 | BX136: 0 | BY136: 0 | BZ136: 0 | CA136: 0 | CB136: 0 | CC136: 0 | CD136: 0 | CE136: 0 | CF136: 0 | CG136: 0 | CH136: 0 | CI136: 0 | CJ136: 0 | CK136: 0 | CL136: 0 | CM136: 0 | CN136: 0 | CO136: 0 | CP136: 0 | CQ136: 0 | CR136: 0 | CS136: 0 | CT136: 0 | CU136: 0 | CV136: 0 | CW136: 0 | CX136: 0 | CY136: 0 | CZ136: 0 | DA136: 0 | DB136: 0 | DC136: 0 | DD136: 0 | DE136: 0 | DF136: 0 | DG136: 0 | DH136: 0 | DI136: 0 | DJ136: 0 | DK136: 0 | DL136: 0 | DM136: 0 | DN136: 0 | DO136: 0 | DP136: 0 | DQ136: 0 | DR136: 0 | DS136: 0 | DT136: 0 | DU136: 0 | DV136: 0 | DW136: 0 | DX136: 0
D137: Interest | E137: Euro | F137: =$F$44 -> 0.045 | I137: =I133*$F$137 -> 0 | J137: =J133*$F$137 -> 0 | K137: 0 | L137: 0 | M137: 0 | N137: 0 | O137: 0 | P137: 0 | Q137: 0 | R137: 0 | S137: 0 | T137: 0 | U137: 0 | V137: 0 | W137: 0 | X137: 0 | Y137: 0 | Z137: 0 | AA137: 0 | AB137: 0 | AC137: 0 | AD137: 0 | AE137: 0 | AF137: 0 | AG137: 0 | AH137: 0 | AI137: 0 | AJ137: 0 | AK137: 0 | AL137: 0 | AM137: 0 | AN137: 0 | AO137: 0 | AP137: 0 | AQ137: 0 | AR137: 0 | AS137: 0 | AT137: 0 | AU137: 0 | AV137: 0 | AW137: 0 | AX137: 0 | AY137: 0 | AZ137: 0 | BA137: 0 | BB137: 0 | BC137: 0 | BD137: 0 | BE137: 0 | BF137: 0 | BG137: 0 | BH137: 0 | BI137: 0 | BJ137: 0 | BK137: 0 | BL137: 0 | BM137: 0 | BN137: 0 | BO137: 0 | BP137: 0 | BQ137: 0 | BR137: 0 | BS137: 0 | BT137: 0 | BU137: 0 | BV137: =BV133*$F$137 -> 0 | BW137: 0 | BX137: 0 | BY137: 0 | BZ137: 0 | CA137: 0 | CB137: 0 | CC137: 0 | CD137: 0 | CE137: 0 | CF137: 0 | CG137: 0 | CH137: 0 | CI137: 0 | CJ137: 0 | CK137: 0 | CL137: 0 | CM137: 0 | CN137: 0 | CO137: 0 | CP137: 0 | CQ137: 0 | CR137: 0 | CS137: 0 | CT137: 0 | CU137: 0 | CV137: 0 | CW137: 0 | CX137: 0 | CY137: 0 | CZ137: 0 | DA137: 0 | DB137: 0 | DC137: 0 | DD137: 0 | DE137: 0 | DF137: 0 | DG137: 0 | DH137: 0 | DI137: 0 | DJ137: 0 | DK137: 0 | DL137: 0 | DM137: 0 | DN137: 0 | DO137: 0 | DP137: 0 | DQ137: 0 | DR137: 0 | DS137: 0 | DT137: 0 | DU137: 0 | DV137: 0 | DW137: 0 | DX137: 0
D139: Senior Interest | E139: Euro | I139: =I137+I130 -> 0 | J139: =J137+J130 -> 20.90955633 | K139: 20.5390578 | L139: 20.12565826 | M139: 19.66690259 | N139: 19.16021472 | O139: 18.60289192 | P139: 17.99209894 | Q139: 17.32486182 | R139: 16.5980614 | S139: 15.80842658 | T139: 14.95252723 | U139: 14.02676685 | V139: 13.02737476 | W139: 11.9503981 | X139: 10.79169332 | Y139: 9.546917371 | Z139: 8.21151846 | AA139: 6.780726395 | AB139: 5.249542479 | AC139: 3.612728954 | AD139: 1.864797962 | AE139: 3.421263273e-14 | AF139: 3.57522012e-14 | AG139: 3.736105025e-14 | AH139: 3.904229751e-14 | AI139: 4.07992009e-14 | AJ139: 4.263516494e-14 | AK139: 4.455374737e-14 | AL139: 4.6558666e-14 | AM139: 4.865380597e-14 | AN139: 5.084322724e-14 | AO139: 5.313117246e-14 | AP139: 5.552207522e-14 | AQ139: 5.802056861e-14 | AR139: 6.063149419e-14 | AS139: 6.335991143e-14 | AT139: 6.621110745e-14 | AU139: 6.919060728e-14 | AV139: 7.230418461e-14 | AW139: 7.555787292e-14 | AX139: 7.89579772e-14 | AY139: 8.251108617e-14 | AZ139: 8.622408505e-14 | BA139: 9.010416888e-14 | BB139: 9.415885648e-14 | BC139: 9.839600502e-14 | BD139: 1.028238252e-13 | BE139: 1.074508974e-13 | BF139: 1.122861878e-13 | BG139: 1.173390662e-13 | BH139: 1.226193242e-13 | BI139: 1.281371938e-13 | BJ139: 1.339033675e-13 | BK139: 1.39929019e-13 | BL139: 1.462258249e-13 | BM139: 1.52805987e-13 | BN139: 1.596822564e-13 | BO139: 1.66867958e-13 | BP139: 1.743770161e-13 | BQ139: 1.822239818e-13 | BR139: 1.90424061e-13 | BS139: 1.989931437e-13 | BT139: 2.079478352e-13 | BU139: 2.173054878e-13 | BV139: =BV137+BV130 -> 2.270842347e-13 | BW139: 2.373030253e-13 | BX139: 2.479816614e-13 | BY139: 2.591408362e-13 | BZ139: 2.708021738e-13 | CA139: 2.829882716e-13 | CB139: 2.957227439e-13 | CC139: 3.090302673e-13 | CD139: 3.229366294e-13 | CE139: 3.374687777e-13 | CF139: 3.526548727e-13 | CG139: 3.68524342e-13 | CH139: 3.851079374e-13 | CI139: 4.024377945e-13 | CJ139: 4.205474953e-13 | CK139: 4.394721326e-13 | CL139: 4.592483785e-13 | CM139: 4.799145556e-13 | CN139: 5.015107106e-13 | CO139: 5.240786926e-13 | CP139: 5.476622337e-13 | CQ139: 5.723070342e-13 | CR139: 5.980608508e-13 | CS139: 6.249735891e-13 | CT139: 6.530974006e-13 | CU139: 6.824867836e-13 | CV139: 7.131986889e-13 | CW139: 7.452926299e-13 | CX139: 7.788307982e-13 | CY139: 8.138781841e-13 | CZ139: 8.505027024e-13 | DA139: 8.88775324e-13 | DB139: 9.287702136e-13 | DC139: 9.705648732e-13 | DD139: 1.014240293e-12 | DE139: 1.059881106e-12 | DF139: 1.107575755e-12 | DG139: 1.157416664e-12 | DH139: 1.209500414e-12 | DI139: 1.263927933e-12 | DJ139: 1.32080469e-12 | DK139: 1.380240901e-12 | DL139: 1.442351742e-12 | DM139: 1.50725757e-12 | DN139: 1.575084161e-12 | DO139: 1.645962948e-12 | DP139: 1.72003128e-12 | DQ139: 1.797432688e-12 | DR139: 1.878317159e-12 | DS139: 1.962841431e-12 | DT139: 2.051169296e-12 | DU139: 2.143471914e-12 | DV139: 2.23992815e-12 | DW139: 2.340724917e-12 | DX139: 2.446057538e-12
B141: Adjusted Subordinated Debt Schedule
C142: Base Debt
D143: Opening Debt | E143: Euro
D144: Add: Debt Issue | E144: Euro
D145: Less: Scheduled | E145: Euro
D146: Less: Cash Sweep | E146: Euro
D147: Closing Balance | E147: Euro
D148: Interest | E148: Euro
C151: Defaulted Senior Debt
D152: Opening Balance | E152: Euro
D153: Add: Default | E153: Euro
D154: Less: Repayment of Default | E154: Euro
D155: Closing Balance | E155: Euro
D156: Interest | E156: Euro
D158: Senior Interest | E158: Euro
B162: Adjusted Cash Waterfall
C163: Adjusted Revenues | E163: Euro | I163: =I109*I118 -> 0 | J163: 61.2 | K163: 62.424 | L163: 63.67248 | M163: 64.9459296 | N163: 66.24484819 | O163: 67.56974516 | P163: 68.92114006 | Q163: 70.29956286 | R163: 71.70555412 | S163: 73.1396652 | T163: 74.6024585 | U163: 76.09450767 | V163: 77.61639783 | W163: 79.16872578 | X163: 80.7521003 | Y163: 82.36714231 | Z163: 84.01448515 | AA163: 85.69477485 | AB163: 87.40867035 | AC163: 89.15684376 | AD163: 90.93998063 | AE163: 92.75878025 | AF163: 94.61395585 | AG163: 96.50623497 | AH163: 98.43635967 | AI163: 100.4050869 | AJ163: 102.4131886 | AK163: 104.4614524 | AL163: 106.5506814 | AM163: 108.681695 | AN163: 0 | AO163: =AO109*AO118 -> 0 | AP163: 0 | AQ163: 0 | AR163: 0 | AS163: 0 | AT163: 0 | AU163: 0 | AV163: 0 | AW163: 0 | AX163: 0 | AY163: 0 | AZ163: 0 | BA163: 0 | BB163: 0 | BC163: 0 | BD163: 0 | BE163: 0 | BF163: 0 | BG163: 0 | BH163: 0 | BI163: 0 | BJ163: 0 | BK163: 0 | BL163: 0 | BM163: 0 | BN163: 0 | BO163: 0 | BP163: 0 | BQ163: 0 | BR163: 0 | BS163: 0 | BT163: 0 | BU163: =BU109*BU118 -> 0 | BV163: 0 | BW163: 0 | BX163: 0 | BY163: 0 | BZ163: 0 | CA163: 0 | CB163: 0 | CC163: 0 | CD163: 0 | CE163: 0 | CF163: 0 | CG163: 0 | CH163: 0 | CI163: 0 | CJ163: 0 | CK163: 0 | CL163: 0 | CM163: 0 | CN163: 0 | CO163: 0 | CP163: 0 | CQ163: 0 | CR163: 0 | CS163: 0 | CT163: 0 | CU163: 0 | CV163: 0 | CW163: 0 | CX163: 0 | CY163: 0 | CZ163: 0 | DA163: =DA109*DA118 -> 0 | DB163: 0 | DC163: 0 | DD163: 0 | DE163: 0 | DF163: 0 | DG163: 0 | DH163: 0 | DI163: 0 | DJ163: 0 | DK163: 0 | DL163: 0 | DM163: 0 | DN163: 0 | DO163: 0 | DP163: 0 | DQ163: 0 | DR163: 0 | DS163: 0 | DT163: 0 | DU163: 0 | DV163: 0 | DW163: 0 | DX163: 0
C164: Less Operating Expense | E164: Euro | I164: =I11 -> 0 | J164: 10.2 | K164: 10.404 | L164: 10.61208 | M164: 10.8243216 | N164: 11.04080803 | O164: 11.26162419 | P164: 11.48685668 | Q164: 11.71659381 | R164: 11.95092569 | S164: 12.1899442 | T164: 12.43374308 | U164: 12.68241795 | V164: 12.9360663 | W164: 13.19478763 | X164: 13.45868338 | Y164: 13.72785705 | Z164: 14.00241419 | AA164: 14.28246248 | AB164: 14.56811173 | AC164: 14.85947396 | AD164: 15.15666344 | AE164: 15.45979671 | AF164: 15.76899264 | AG164: 16.08437249 | AH164: 16.40605994 | AI164: 16.73418114 | AJ164: 17.06886477 | AK164: 17.41024206 | AL164: 17.7584469 | AM164: 18.11361584 | AN164: 0 | AO164: =AO11 -> 0 | AP164: 0 | AQ164: 0 | AR164: 0 | AS164: 0 | AT164: 0 | AU164: 0 | AV164: 0 | AW164: 0 | AX164: 0 | AY164: 0 | AZ164: 0 | BA164: 0 | BB164: 0 | BC164: 0 | BD164: 0 | BE164: 0 | BF164: 0 | BG164: 0 | BH164: 0 | BI164: 0 | BJ164: 0 | BK164: 0 | BL164: 0 | BM164: 0 | BN164: 0 | BO164: 0 | BP164: 0 | BQ164: 0 | BR164: 0 | BS164: 0 | BT164: 0 | BU164: =BU11 -> 0 | BV164: 0 | BW164: 0 | BX164: 0 | BY164: 0 | BZ164: 0 | CA164: 0 | CB164: 0 | CC164: 0 | CD164: 0 | CE164: 0 | CF164: 0 | CG164: 0 | CH164: 0 | CI164: 0 | CJ164: 0 | CK164: 0 | CL164: 0 | CM164: 0 | CN164: 0 | CO164: 0 | CP164: 0 | CQ164: 0 | CR164: 0 | CS164: 0 | CT164: 0 | CU164: 0 | CV164: 0 | CW164: 0 | CX164: 0 | CY164: 0 | CZ164: 0 | DA164: =DA11 -> 0 | DB164: 0 | DC164: 0 | DD164: 0 | DE164: 0 | DF164: 0 | DG164: 0 | DH164: 0 | DI164: 0 | DJ164: 0 | DK164: 0 | DL164: 0 | DM164: 0 | DN164: 0 | DO164: 0 | DP164: 0 | DQ164: 0 | DR164: 0 | DS164: 0 | DT164: 0 | DU164: 0 | DV164: 0 | DW164: 0 | DX164: 0
C165: EBITDA | I165: =I163-I164 -> 0 | J165: =J163-J164 -> 51 | K165: 52.02 | L165: 53.0604 | M165: 54.121608 | N165: 55.20404016 | O165: 56.30812096 | P165: 57.43428338 | Q165: 58.58296905 | R165: 59.75462843 | S165: 60.949721 | T165: 62.16871542 | U165: 63.41208973 | V165: 64.68033152 | W165: 65.97393815 | X165: 67.29341692 | Y165: 68.63928525 | Z165: 70.01207096 | AA165: 71.41231238 | AB165: 72.84055863 | AC165: 74.2973698 | AD165: 75.78331719 | AE165: 77.29898354 | AF165: 78.84496321 | AG165: 80.42186247 | AH165: 82.03029972 | AI165: 83.67090572 | AJ165: 85.34432383 | AK165: 87.05121031 | AL165: 88.79223451 | AM165: 90.56807921 | AN165: 0 | AO165: 0 | AP165: 0 | AQ165: 0 | AR165: 0 | AS165: 0 | AT165: 0 | AU165: 0 | AV165: 0 | AW165: 0 | AX165: 0 | AY165: 0 | AZ165: 0 | BA165: 0 | BB165: 0 | BC165: 0 | BD165: 0 | BE165: 0 | BF165: 0 | BG165: 0 | BH165: 0 | BI165: 0 | BJ165: 0 | BK165: 0 | BL165: 0 | BM165: 0 | BN165: 0 | BO165: 0 | BP165: 0 | BQ165: 0 | BR165: 0 | BS165: 0 | BT165: 0 | BU165: 0 | BV165: =BV163-BV164 -> 0 | BW165: 0 | BX165: 0 | BY165: 0 | BZ165: 0 | CA165: 0 | CB165: 0 | CC165: 0 | CD165: 0 | CE165: 0 | CF165: 0 | CG165: 0 | CH165: 0 | CI165: 0 | CJ165: 0 | CK165: 0 | CL165: 0 | CM165: 0 | CN165: 0 | CO165: 0 | CP165: 0 | CQ165: 0 | CR165: 0 | CS165: 0 | CT165: 0 | CU165: 0 | CV165: 0 | CW165: 0 | CX165: 0 | CY165: 0 | CZ165: 0 | DA165: 0 | DB165: 0 | DC165: 0 | DD165: 0 | DE165: 0 | DF165: 0 | DG165: 0 | DH165: 0 | DI165: 0 | DJ165: 0 | DK165: 0 | DL165: 0 | DM165: 0 | DN165: 0 | DO165: 0 | DP165: 0 | DQ165: 0 | DR165: 0 | DS165: 0 | DT165: 0 | DU165: 0 | DV165: 0 | DW165: 0 | DX165: 0
C167: Less: Interest | E167: Euro | I167: =I139 -> 0 | J167: =J139 -> 20.90955633 | K167: 20.5390578 | L167: 20.12565826 | M167: 19.66690259 | N167: 19.16021472 | O167: 18.60289192 | P167: 17.99209894 | Q167: 17.32486182 | R167: 16.5980614 | S167: 15.80842658 | T167: 14.95252723 | U167: 14.02676685 | V167: 13.02737476 | W167: 11.9503981 | X167: 10.79169332 | Y167: 9.546917371 | Z167: 8.21151846 | AA167: 6.780726395 | AB167: 5.249542479 | AC167: 3.612728954 | AD167: 1.864797962 | AE167: 3.421263273e-14 | AF167: 3.57522012e-14 | AG167: 3.736105025e-14 | AH167: 3.904229751e-14 | AI167: 4.07992009e-14 | AJ167: 4.263516494e-14 | AK167: 4.455374737e-14 | AL167: 4.6558666e-14 | AM167: 4.865380597e-14 | AN167: 5.084322724e-14 | AO167: 5.313117246e-14 | AP167: 5.552207522e-14 | AQ167: 5.802056861e-14 | AR167: 6.063149419e-14 | AS167: 6.335991143e-14 | AT167: 6.621110745e-14 | AU167: 6.919060728e-14 | AV167: 7.230418461e-14 | AW167: 7.555787292e-14 | AX167: 7.89579772e-14 | AY167: 8.251108617e-14 | AZ167: 8.622408505e-14 | BA167: 9.010416888e-14 | BB167: 9.415885648e-14 | BC167: 9.839600502e-14 | BD167: 1.028238252e-13 | BE167: 1.074508974e-13 | BF167: 1.122861878e-13 | BG167: 1.173390662e-13 | BH167: 1.226193242e-13 | BI167: 1.281371938e-13 | BJ167: 1.339033675e-13 | BK167: 1.39929019e-13 | BL167: 1.462258249e-13 | BM167: 1.52805987e-13 | BN167: 1.596822564e-13 | BO167: 1.66867958e-13 | BP167: 1.743770161e-13 | BQ167: 1.822239818e-13 | BR167: 1.90424061e-13 | BS167: 1.989931437e-13 | BT167: 2.079478352e-13 | BU167: 2.173054878e-13 | BV167: =BV139 -> 2.270842347e-13 | BW167: 2.373030253e-13 | BX167: 2.479816614e-13 | BY167: 2.591408362e-13 | BZ167: 2.708021738e-13 | CA167: 2.829882716e-13 | CB167: 2.957227439e-13 | CC167: 3.090302673e-13 | CD167: 3.229366294e-13 | CE167: 3.374687777e-13 | CF167: 3.526548727e-13 | CG167: 3.68524342e-13 | CH167: 3.851079374e-13 | CI167: 4.024377945e-13 | CJ167: 4.205474953e-13 | CK167: 4.394721326e-13 | CL167: 4.592483785e-13 | CM167: 4.799145556e-13 | CN167: 5.015107106e-13 | CO167: 5.240786926e-13 | CP167: 5.476622337e-13 | CQ167: 5.723070342e-13 | CR167: 5.980608508e-13 | CS167: 6.249735891e-13 | CT167: 6.530974006e-13 | CU167: 6.824867836e-13 | CV167: 7.131986889e-13 | CW167: 7.452926299e-13 | CX167: 7.788307982e-13 | CY167: 8.138781841e-13 | CZ167: 8.505027024e-13 | DA167: 8.88775324e-13 | DB167: 9.287702136e-13 | DC167: 9.705648732e-13 | DD167: 1.014240293e-12 | DE167: 1.059881106e-12 | DF167: 1.107575755e-12 | DG167: 1.157416664e-12 | DH167: 1.209500414e-12 | DI167: 1.263927933e-12 | DJ167: 1.32080469e-12 | DK167: 1.380240901e-12 | DL167: 1.442351742e-12 | DM167: 1.50725757e-12 | DN167: 1.575084161e-12 | DO167: 1.645962948e-12 | DP167: 1.72003128e-12 | DQ167: 1.797432688e-12 | DR167: 1.878317159e-12 | DS167: 1.962841431e-12 | DT167: 2.051169296e-12 | DU167: 2.143471914e-12 | DV167: 2.23992815e-12 | DW167: 2.340724917e-12 | DX167: 2.446057538e-12
C168: Less: Debt Repayment Scheduled | E168: Euro | I168: =I127 -> 0 | J168: =J127 -> 8.233300808 | K168: 9.186656488 | L168: 10.19457032 | M168: 11.25973055 | N168: 12.38495109 | O168: 13.5731772 | P168: 14.82749156 | Q168: 16.15112049 | R168: 17.54744056 | S168: 19.01998542 | T168: 20.57245301 | U168: 22.208713 | V168: 23.93281468 | W168: 25.74899513 | X168: 27.66168777 | Y168: 29.67553135 | Z168: 31.79537923 | AA168: 34.02630925 | AB168: 36.37363388 | AC168: 38.84291093 | AD168: 41.43995472 | AE168: -3.421263273e-14 | AF168: -3.57522012e-14 | AG168: -3.736105025e-14 | AH168: -3.904229751e-14 | AI168: -4.07992009e-14 | AJ168: -4.263516494e-14 | AK168: -4.455374737e-14 | AL168: -4.6558666e-14 | AM168: -4.865380597e-14 | AN168: -5.084322724e-14 | AO168: -5.313117246e-14 | AP168: -5.552207522e-14 | AQ168: -5.802056861e-14 | AR168: -6.063149419e-14 | AS168: -6.335991143e-14 | AT168: -6.621110745e-14 | AU168: -6.919060728e-14 | AV168: -7.230418461e-14 | AW168: -7.555787292e-14 | AX168: -7.89579772e-14 | AY168: -8.251108617e-14 | AZ168: -8.622408505e-14 | BA168: -9.010416888e-14 | BB168: -9.415885648e-14 | BC168: -9.839600502e-14 | BD168: -1.028238252e-13 | BE168: -1.074508974e-13 | BF168: -1.122861878e-13 | BG168: -1.173390662e-13 | BH168: -1.226193242e-13 | BI168: -1.281371938e-13 | BJ168: -1.339033675e-13 | BK168: -1.39929019e-13 | BL168: -1.462258249e-13 | BM168: -1.52805987e-13 | BN168: -1.596822564e-13 | BO168: -1.66867958e-13 | BP168: -1.743770161e-13 | BQ168: -1.822239818e-13 | BR168: -1.90424061e-13 | BS168: -1.989931437e-13 | BT168: -2.079478352e-13 | BU168: -2.173054878e-13 | BV168: =BV127 -> -2.270842347e-13 | BW168: -2.373030253e-13 | BX168: -2.479816614e-13 | BY168: -2.591408362e-13 | BZ168: -2.708021738e-13 | CA168: -2.829882716e-13 | CB168: -2.957227439e-13 | CC168: -3.090302673e-13 | CD168: -3.229366294e-13 | CE168: -3.374687777e-13 | CF168: -3.526548727e-13 | CG168: -3.68524342e-13 | CH168: -3.851079374e-13 | CI168: -4.024377945e-13 | CJ168: -4.205474953e-13 | CK168: -4.394721326e-13 | CL168: -4.592483785e-13 | CM168: -4.799145556e-13 | CN168: -5.015107106e-13 | CO168: -5.240786926e-13 | CP168: -5.476622337e-13 | CQ168: -5.723070342e-13 | CR168: -5.980608508e-13 | CS168: -6.249735891e-13 | CT168: -6.530974006e-13 | CU168: -6.824867836e-13 | CV168: -7.131986889e-13 | CW168: -7.452926299e-13 | CX168: -7.788307982e-13 | CY168: -8.138781841e-13 | CZ168: -8.505027024e-13 | DA168: -8.88775324e-13 | DB168: -9.287702136e-13 | DC168: -9.705648732e-13 | DD168: -1.014240293e-12 | DE168: -1.059881106e-12 | DF168: -1.107575755e-12 | DG168: -1.157416664e-12 | DH168: -1.209500414e-12 | DI168: -1.263927933e-12 | DJ168: -1.32080469e-12 | DK168: -1.380240901e-12 | DL168: -1.442351742e-12 | DM168: -1.50725757e-12 | DN168: -1.575084161e-12 | DO168: -1.645962948e-12 | DP168: -1.72003128e-12 | DQ168: -1.797432688e-12 | DR168: -1.878317159e-12 | DS168: -1.962841431e-12 | DT168: -2.051169296e-12 | DU168: -2.143471914e-12 | DV168: -2.23992815e-12 | DW168: -2.340724917e-12 | DX168: -2.446057538e-12
C169: Cash Flow After Scheduled Debt Service | E169: Euro | I169: =I165-I167-I168 -> 0 | J169: =J165-J167-J168 -> 21.85714286 | K169: 22.29428571 | L169: 22.74017143 | M169: 23.19497486 | N169: 23.65887435 | O169: 24.13205184 | P169: 24.61469288 | Q169: 25.10698674 | R169: 25.60912647 | S169: 26.121309 | T169: 26.64373518 | U169: 27.17660988 | V169: 27.72014208 | W169: 28.27454492 | X169: 28.84003582 | Y169: 29.41683654 | Z169: 30.00517327 | AA169: 30.60527673 | AB169: 31.21738227 | AC169: 31.84172991 | AD169: 32.47856451 | AE169: 77.29898354 | AF169: 78.84496321 | AG169: 80.42186247 | AH169: 82.03029972 | AI169: 83.67090572 | AJ169: 85.34432383 | AK169: 87.05121031 | AL169: 88.79223451 | AM169: 90.56807921 | AN169: 0 | AO169: 0 | AP169: 0 | AQ169: 0 | AR169: 0 | AS169: 0 | AT169: 0 | AU169: 0 | AV169: 0 | AW169: 0 | AX169: 0 | AY169: 0 | AZ169: 0 | BA169: 0 | BB169: 0 | BC169: 0 | BD169: 0 | BE169: 0 | BF169: 0 | BG169: 0 | BH169: 0 | BI169: 0 | BJ169: 0 | BK169: 0 | BL169: 0 | BM169: 0 | BN169: 0 | BO169: 0 | BP169: 0 | BQ169: 0 | BR169: 0 | BS169: 0 | BT169: 0 | BU169: 0 | BV169: =BV165-BV167-BV168 -> 0 | BW169: 0 | BX169: 0 | BY169: 0 | BZ169: 0 | CA169: 0 | CB169: 0 | CC169: 0 | CD169: 0 | CE169: 0 | CF169: 0 | CG169: 0 | CH169: 0 | CI169: 0 | CJ169: 0 | CK169: 0 | CL169: 0 | CM169: 0 | CN169: 0 | CO169: 0 | CP169: 0 | CQ169: 0 | CR169: 0 | CS169: 0 | CT169: 0 | CU169: 0 | CV169: 0 | CW169: 0 | CX169: 0 | CY169: 0 | CZ169: 0 | DA169: 0 | DB169: 0 | DC169: 0 | DD169: 0 | DE169: 0 | DF169: 0 | DG169: 0 | DH169: 0 | DI169: 0 | DJ169: 0 | DK169: 0 | DL169: 0 | DM169: 0 | DN169: 0 | DO169: 0 | DP169: 0 | DQ169: 0 | DR169: 0 | DS169: 0 | DT169: 0 | DU169: 0 | DV169: 0 | DW169: 0 | DX169: 0
C171: Cash Sweep | E171: % | F171: =G171/100 -> 0 | G171: 0 | I171: =$F$171 -> 0 | J171: =$F$171 -> 0 | K171: 0 | L171: 0 | M171: 0 | N171: 0 | O171: 0 | P171: 0 | Q171: 0 | R171: 0 | S171: 0 | T171: 0 | U171: 0 | V171: 0 | W171: 0 | X171: 0 | Y171: 0 | Z171: 0 | AA171: 0 | AB171: 0 | AC171: 0 | AD171: 0 | AE171: 0 | AF171: 0 | AG171: 0 | AH171: 0 | AI171: 0 | AJ171: 0 | AK171: 0 | AL171: 0 | AM171: 0 | AN171: 0 | AO171: 0 | AP171: 0 | AQ171: 0 | AR171: 0 | AS171: 0 | AT171: 0 | AU171: 0 | AV171: 0 | AW171: 0 | AX171: 0 | AY171: 0 | AZ171: 0 | BA171: 0 | BB171: 0 | BC171: 0 | BD171: 0 | BE171: 0 | BF171: 0 | BG171: 0 | BH171: 0 | BI171: 0 | BJ171: 0 | BK171: 0 | BL171: 0 | BM171: 0 | BN171: 0 | BO171: 0 | BP171: 0 | BQ171: 0 | BR171: 0 | BS171: 0 | BT171: 0 | BU171: 0 | BV171: =$F$171 -> 0 | BW171: 0 | BX171: 0 | BY171: 0 | BZ171: 0 | CA171: 0 | CB171: 0 | CC171: 0 | CD171: 0 | CE171: 0 | CF171: 0 | CG171: 0 | CH171: 0 | CI171: 0 | CJ171: 0 | CK171: 0 | CL171: 0 | CM171: 0 | CN171: 0 | CO171: 0 | CP171: 0 | CQ171: 0 | CR171: 0 | CS171: 0 | CT171: 0 | CU171: 0 | CV171: 0 | CW171: 0 | CX171: 0 | CY171: 0 | CZ171: 0 | DA171: 0 | DB171: 0 | DC171: 0 | DD171: 0 | DE171: 0 | DF171: 0 | DG171: 0 | DH171: 0 | DI171: 0 | DJ171: 0 | DK171: 0 | DL171: 0 | DM171: 0 | DN171: 0 | DO171: 0 | DP171: 0 | DQ171: 0 | DR171: 0 | DS171: 0 | DT171: 0 | DU171: 0 | DV171: 0 | DW171: 0 | DX171: 0
C172: Cash Swept Before Constraint | E172: Euro | I172: =MAX(I169,0)*I171 -> 0 | J172: =MAX(J169,0)*J171 -> 0 | K172: 0 | L172: 0 | M172: 0 | N172: 0 | O172: 0 | P172: 0 | Q172: 0 | R172: 0 | S172: 0 | T172: 0 | U172: 0 | V172: 0 | W172: 0 | X172: 0 | Y172: 0 | Z172: 0 | AA172: 0 | AB172: 0 | AC172: 0 | AD172: 0 | AE172: 0 | AF172: 0 | AG172: 0 | AH172: 0 | AI172: 0 | AJ172: 0 | AK172: 0 | AL172: 0 | AM172: 0 | AN172: 0 | AO172: 0 | AP172: 0 | AQ172: 0 | AR172: 0 | AS172: 0 | AT172: 0 | AU172: 0 | AV172: 0 | AW172: 0 | AX172: 0 | AY172: 0 | AZ172: 0 | BA172: 0 | BB172: 0 | BC172: 0 | BD172: 0 | BE172: 0 | BF172: 0 | BG172: 0 | BH172: 0 | BI172: 0 | BJ172: 0 | BK172: 0 | BL172: 0 | BM172: 0 | BN172: 0 | BO172: 0 | BP172: 0 | BQ172: 0 | BR172: 0 | BS172: 0 | BT172: 0 | BU172: 0 | BV172: =MAX(BV169,0)*BV171 -> 0 | BW172: 0 | BX172: 0 | BY172: 0 | BZ172: 0 | CA172: 0 | CB172: 0 | CC172: 0 | CD172: 0 | CE172: 0 | CF172: 0 | CG172: 0 | CH172: 0 | CI172: 0 | CJ172: 0 | CK172: 0 | CL172: 0 | CM172: 0 | CN172: 0 | CO172: 0 | CP172: 0 | CQ172: 0 | CR172: 0 | CS172: 0 | CT172: 0 | CU172: 0 | CV172: 0 | CW172: 0 | CX172: 0 | CY172: 0 | CZ172: 0 | DA172: 0 | DB172: 0 | DC172: 0 | DD172: 0 | DE172: 0 | DF172: 0 | DG172: 0 | DH172: 0 | DI172: 0 | DJ172: 0 | DK172: 0 | DL172: 0 | DM172: 0 | DN172: 0 | DO172: 0 | DP172: 0 | DQ172: 0 | DR172: 0 | DS172: 0 | DT172: 0 | DU172: 0 | DV172: 0 | DW172: 0 | DX172: 0
C173: Cash Swept After Constraint | I173: =MIN(I172,I125-I127) -> 0 | J173: =MIN(J172,J125-J127) -> 0 | K173: 0 | L173: 0 | M173: 0 | N173: 0 | O173: 0 | P173: 0 | Q173: 0 | R173: 0 | S173: 0 | T173: 0 | U173: 0 | V173: 0 | W173: 0 | X173: 0 | Y173: 0 | Z173: 0 | AA173: 0 | AB173: 0 | AC173: 0 | AD173: 0 | AE173: 0 | AF173: 0 | AG173: 0 | AH173: 0 | AI173: 0 | AJ173: 0 | AK173: 0 | AL173: 0 | AM173: 0 | AN173: 0 | AO173: 0 | AP173: 0 | AQ173: 0 | AR173: 0 | AS173: 0 | AT173: 0 | AU173: 0 | AV173: 0 | AW173: 0 | AX173: 0 | AY173: 0 | AZ173: 0 | BA173: 0 | BB173: 0 | BC173: 0 | BD173: 0 | BE173: 0 | BF173: 0 | BG173: 0 | BH173: 0 | BI173: 0 | BJ173: 0 | BK173: 0 | BL173: 0 | BM173: 0 | BN173: 0 | BO173: 0 | BP173: 0 | BQ173: 0 | BR173: 0 | BS173: 0 | BT173: 0 | BU173: 0 | BV173: =MIN(BV172,BV125-BV127) -> 0 | BW173: 0 | BX173: 0 | BY173: 0 | BZ173: 0 | CA173: 0 | CB173: 0 | CC173: 0 | CD173: 0 | CE173: 0 | CF173: 0 | CG173: 0 | CH173: 0 | CI173: 0 | CJ173: 0 | CK173: 0 | CL173: 0 | CM173: 0 | CN173: 0 | CO173: 0 | CP173: 0 | CQ173: 0 | CR173: 0 | CS173: 0 | CT173: 0 | CU173: 0 | CV173: 0 | CW173: 0 | CX173: 0 | CY173: 0 | CZ173: 0 | DA173: 0 | DB173: 0 | DC173: 0 | DD173: 0 | DE173: 0 | DF173: 0 | DG173: 0 | DH173: 0 | DI173: 0 | DJ173: 0 | DK173: 0 | DL173: 0 | DM173: 0 | DN173: 0 | DO173: 0 | DP173: 0 | DQ173: 0 | DR173: 0 | DS173: 0 | DT173: 0 | DU173: 0 | DV173: 0 | DW173: 0 | DX173: 0
C175: Cash Flow Before Default | E175: Euro | I175: =I169-I173 -> 0 | J175: =J169-J173 -> 21.85714286 | K175: 22.29428571 | L175: 22.74017143 | M175: 23.19497486 | N175: 23.65887435 | O175: 24.13205184 | P175: 24.61469288 | Q175: 25.10698674 | R175: 25.60912647 | S175: 26.121309 | T175: 26.64373518 | U175: 27.17660988 | V175: 27.72014208 | W175: 28.27454492 | X175: 28.84003582 | Y175: 29.41683654 | Z175: 30.00517327 | AA175: 30.60527673 | AB175: 31.21738227 | AC175: 31.84172991 | AD175: 32.47856451 | AE175: 77.29898354 | AF175: 78.84496321 | AG175: 80.42186247 | AH175: 82.03029972 | AI175: 83.67090572 | AJ175: 85.34432383 | AK175: 87.05121031 | AL175: 88.79223451 | AM175: 90.56807921 | AN175: 0 | AO175: 0 | AP175: 0 | AQ175: 0 | AR175: 0 | AS175: 0 | AT175: 0 | AU175: 0 | AV175: 0 | AW175: 0 | AX175: 0 | AY175: 0 | AZ175: 0 | BA175: 0 | BB175: 0 | BC175: 0 | BD175: 0 | BE175: 0 | BF175: 0 | BG175: 0 | BH175: 0 | BI175: 0 | BJ175: 0 | BK175: 0 | BL175: 0 | BM175: 0 | BN175: 0 | BO175: 0 | BP175: 0 | BQ175: 0 | BR175: 0 | BS175: 0 | BT175: 0 | BU175: 0 | BV175: =BV169-BV173 -> 0 | BW175: 0 | BX175: 0 | BY175: 0 | BZ175: 0 | CA175: 0 | CB175: 0 | CC175: 0 | CD175: 0 | CE175: 0 | CF175: 0 | CG175: 0 | CH175: 0 | CI175: 0 | CJ175: 0 | CK175: 0 | CL175: 0 | CM175: 0 | CN175: 0 | CO175: 0 | CP175: 0 | CQ175: 0 | CR175: 0 | CS175: 0 | CT175: 0 | CU175: 0 | CV175: 0 | CW175: 0 | CX175: 0 | CY175: 0 | CZ175: 0 | DA175: 0 | DB175: 0 | DC175: 0 | DD175: 0 | DE175: 0 | DF175: 0 | DG175: 0 | DH175: 0 | DI175: 0 | DJ175: 0 | DK175: 0 | DL175: 0 | DM175: 0 | DN175: 0 | DO175: 0 | DP175: 0 | DQ175: 0 | DR175: 0 | DS175: 0 | DT175: 0 | DU175: 0 | DV175: 0 | DW175: 0 | DX175: 0
C176: Add: Repayment not Made from Default | E176: Euro | I176: =MAX(-I175,0) -> 0 | J176: =MAX(-J175,0) -> 0 | K176: 0 | L176: 0 | M176: 0 | N176: 0 | O176: 0 | P176: 0 | Q176: 0 | R176: 0 | S176: 0 | T176: 0 | U176: 0 | V176: 0 | W176: 0 | X176: 0 | Y176: 0 | Z176: 0 | AA176: 0 | AB176: 0 | AC176: 0 | AD176: 0 | AE176: 0 | AF176: 0 | AG176: 0 | AH176: 0 | AI176: 0 | AJ176: 0 | AK176: 0 | AL176: 0 | AM176: 0 | AN176: 0 | AO176: 0 | AP176: 0 | AQ176: 0 | AR176: 0 | AS176: 0 | AT176: 0 | AU176: 0 | AV176: 0 | AW176: 0 | AX176: 0 | AY176: 0 | AZ176: 0 | BA176: 0 | BB176: 0 | BC176: 0 | BD176: 0 | BE176: 0 | BF176: 0 | BG176: 0 | BH176: 0 | BI176: 0 | BJ176: 0 | BK176: 0 | BL176: 0 | BM176: 0 | BN176: 0 | BO176: 0 | BP176: 0 | BQ176: 0 | BR176: 0 | BS176: 0 | BT176: 0 | BU176: 0 | BV176: =MAX(-BV175,0) -> 0 | BW176: 0 | BX176: 0 | BY176: 0 | BZ176: 0 | CA176: 0 | CB176: 0 | CC176: 0 | CD176: 0 | CE176: 0 | CF176: 0 | CG176: 0 | CH176: 0 | CI176: 0 | CJ176: 0 | CK176: 0 | CL176: 0 | CM176: 0 | CN176: 0 | CO176: 0 | CP176: 0 | CQ176: 0 | CR176: 0 | CS176: 0 | CT176: 0 | CU176: 0 | CV176: 0 | CW176: 0 | CX176: 0 | CY176: 0 | CZ176: 0 | DA176: 0 | DB176: 0 | DC176: 0 | DD176: 0 | DE176: 0 | DF176: 0 | DG176: 0 | DH176: 0 | DI176: 0 | DJ176: 0 | DK176: 0 | DL176: 0 | DM176: 0 | DN176: 0 | DO176: 0 | DP176: 0 | DQ176: 0 | DR176: 0 | DS176: 0 | DT176: 0 | DU176: 0 | DV176: 0 | DW176: 0 | DX176: 0
C177: Less: Repayment of Default | E177: Euro | I177: =MIN(MAX(I169,0),I133) -> 0 | J177: =MIN(MAX(J169,0),J133) -> 0 | K177: 0 | L177: 0 | M177: 0 | N177: 0 | O177: 0 | P177: 0 | Q177: 0 | R177: 0 | S177: 0 | T177: 0 | U177: 0 | V177: 0 | W177: 0 | X177: 0 | Y177: 0 | Z177: 0 | AA177: 0 | AB177: 0 | AC177: 0 | AD177: 0 | AE177: 0 | AF177: 0 | AG177: 0 | AH177: 0 | AI177: 0 | AJ177: 0 | AK177: 0 | AL177: 0 | AM177: 0 | AN177: 0 | AO177: 0 | AP177: 0 | AQ177: 0 | AR177: 0 | AS177: 0 | AT177: 0 | AU177: 0 | AV177: 0 | AW177: 0 | AX177: 0 | AY177: 0 | AZ177: 0 | BA177: 0 | BB177: 0 | BC177: 0 | BD177: 0 | BE177: 0 | BF177: 0 | BG177: 0 | BH177: 0 | BI177: 0 | BJ177: 0 | BK177: 0 | BL177: 0 | BM177: 0 | BN177: 0 | BO177: 0 | BP177: 0 | BQ177: 0 | BR177: 0 | BS177: 0 | BT177: 0 | BU177: 0 | BV177: =MIN(MAX(BV169,0),BV133) -> 0 | BW177: 0 | BX177: 0 | BY177: 0 | BZ177: 0 | CA177: 0 | CB177: 0 | CC177: 0 | CD177: 0 | CE177: 0 | CF177: 0 | CG177: 0 | CH177: 0 | CI177: 0 | CJ177: 0 | CK177: 0 | CL177: 0 | CM177: 0 | CN177: 0 | CO177: 0 | CP177: 0 | CQ177: 0 | CR177: 0 | CS177: 0 | CT177: 0 | CU177: 0 | CV177: 0 | CW177: 0 | CX177: 0 | CY177: 0 | CZ177: 0 | DA177: 0 | DB177: 0 | DC177: 0 | DD177: 0 | DE177: 0 | DF177: 0 | DG177: 0 | DH177: 0 | DI177: 0 | DJ177: 0 | DK177: 0 | DL177: 0 | DM177: 0 | DN177: 0 | DO177: 0 | DP177: 0 | DQ177: 0 | DR177: 0 | DS177: 0 | DT177: 0 | DU177: 0 | DV177: 0 | DW177: 0 | DX177: 0
C179: Cash Flow After Sweep | E179: Euro | I179: =I175+I176-I177 -> 0 | J179: =J175+J176-J177 -> 21.85714286 | K179: 22.29428571 | L179: 22.74017143 | M179: 23.19497486 | N179: 23.65887435 | O179: 24.13205184 | P179: 24.61469288 | Q179: 25.10698674 | R179: 25.60912647 | S179: 26.121309 | T179: 26.64373518 | U179: 27.17660988 | V179: 27.72014208 | W179: 28.27454492 | X179: 28.84003582 | Y179: 29.41683654 | Z179: 30.00517327 | AA179: 30.60527673 | AB179: 31.21738227 | AC179: 31.84172991 | AD179: 32.47856451 | AE179: 77.29898354 | AF179: 78.84496321 | AG179: 80.42186247 | AH179: 82.03029972 | AI179: 83.67090572 | AJ179: 85.34432383 | AK179: 87.05121031 | AL179: 88.79223451 | AM179: 90.56807921 | AN179: 0 | AO179: 0 | AP179: 0 | AQ179: 0 | AR179: 0 | AS179: 0 | AT179: 0 | AU179: 0 | AV179: 0 | AW179: 0 | AX179: 0 | AY179: 0 | AZ179: 0 | BA179: 0 | BB179: 0 | BC179: 0 | BD179: 0 | BE179: 0 | BF179: 0 | BG179: 0 | BH179: 0 | BI179: 0 | BJ179: 0 | BK179: 0 | BL179: 0 | BM179: 0 | BN179: 0 | BO179: 0 | BP179: 0 | BQ179: 0 | BR179: 0 | BS179: 0 | BT179: 0 | BU179: 0 | BV179: =BV175+BV176-BV177 -> 0 | BW179: 0 | BX179: 0 | BY179: 0 | BZ179: 0 | CA179: 0 | CB179: 0 | CC179: 0 | CD179: 0 | CE179: 0 | CF179: 0 | CG179: 0 | CH179: 0 | CI179: 0 | CJ179: 0 | CK179: 0 | CL179: 0 | CM179: 0 | CN179: 0 | CO179: 0 | CP179: 0 | CQ179: 0 | CR179: 0 | CS179: 0 | CT179: 0 | CU179: 0 | CV179: 0 | CW179: 0 | CX179: 0 | CY179: 0 | CZ179: 0 | DA179: 0 | DB179: 0 | DC179: 0 | DD179: 0 | DE179: 0 | DF179: 0 | DG179: 0 | DH179: 0 | DI179: 0 | DJ179: 0 | DK179: 0 | DL179: 0 | DM179: 0 | DN179: 0 | DO179: 0 | DP179: 0 | DQ179: 0 | DR179: 0 | DS179: 0 | DT179: 0 | DU179: 0 | DV179: 0 | DW179: 0 | DX179: 0
C181: Less: Interest - Subordinated
C182: Less: Debt Repayment Subordinated
C183: Cash Flow After Subordinated Debt
C185: Dividends | I185: =I179 -> 0 | J185: 21.85714286 | K185: 22.29428571 | L185: 22.74017143 | M185: 23.19497486 | N185: 23.65887435 | O185: 24.13205184 | P185: 24.61469288 | Q185: 25.10698674 | R185: 25.60912647 | S185: 26.121309 | T185: 26.64373518 | U185: 27.17660988 | V185: 27.72014208 | W185: 28.27454492 | X185: 28.84003582 | Y185: 29.41683654 | Z185: 30.00517327 | AA185: 30.60527673 | AB185: 31.21738227 | AC185: 31.84172991 | AD185: 32.47856451 | AE185: 77.29898354 | AF185: 78.84496321 | AG185: 80.42186247 | AH185: 82.03029972 | AI185: 83.67090572 | AJ185: 85.34432383 | AK185: 87.05121031 | AL185: 88.79223451 | AM185: 90.56807921 | AN185: 0 | AO185: =AO179 -> 0 | AP185: 0 | AQ185: 0 | AR185: 0 | AS185: 0 | AT185: 0 | AU185: 0 | AV185: 0 | AW185: 0 | AX185: 0 | AY185: 0 | AZ185: 0 | BA185: 0 | BB185: 0 | BC185: 0 | BD185: 0 | BE185: 0 | BF185: 0 | BG185: 0 | BH185: 0 | BI185: 0 | BJ185: 0 | BK185: 0 | BL185: 0 | BM185: 0 | BN185: 0 | BO185: 0 | BP185: 0 | BQ185: 0 | BR185: 0 | BS185: 0 | BT185: 0 | BU185: =BU179 -> 0 | BV185: 0 | BW185: 0 | BX185: 0 | BY185: 0 | BZ185: 0 | CA185: 0 | CB185: 0 | CC185: 0 | CD185: 0 | CE185: 0 | CF185: 0 | CG185: 0 | CH185: 0 | CI185: 0 | CJ185: 0 | CK185: 0 | CL185: 0 | CM185: 0 | CN185: 0 | CO185: 0 | CP185: 0 | CQ185: 0 | CR185: 0 | CS185: 0 | CT185: 0 | CU185: 0 | CV185: 0 | CW185: 0 | CX185: 0 | CY185: 0 | CZ185: 0 | DA185: =DA179 -> 0 | DB185: 0 | DC185: 0 | DD185: 0 | DE185: 0 | DF185: 0 | DG185: 0 | DH185: 0 | DI185: 0 | DJ185: 0 | DK185: 0 | DL185: 0 | DM185: 0 | DN185: 0 | DO185: 0 | DP185: 0 | DQ185: 0 | DR185: 0 | DS185: 0 | DT185: 0 | DU185: 0 | DV185: 0 | DW185: 0 | DX185: 0
B187: Ratios
C188: Equity Cash Flow | I188: =I185-I75 -> -535.3431926 | J188: 21.85714286 | K188: 22.29428571 | L188: 22.74017143 | M188: 23.19497486 | N188: 23.65887435 | O188: 24.13205184 | P188: 24.61469288 | Q188: 25.10698674 | R188: 25.60912647 | S188: 26.121309 | T188: 26.64373518 | U188: 27.17660988 | V188: 27.72014208 | W188: 28.27454492 | X188: 28.84003582 | Y188: 29.41683654 | Z188: 30.00517327 | AA188: 30.60527673 | AB188: 31.21738227 | AC188: 31.84172991 | AD188: 32.47856451 | AE188: 77.29898354 | AF188: 78.84496321 | AG188: 80.42186247 | AH188: 82.03029972 | AI188: 83.67090572 | AJ188: 85.34432383 | AK188: 87.05121031 | AL188: 88.79223451 | AM188: 90.56807921 | AN188: 0 | AO188: =AO185-AO75 -> 0 | AP188: 0 | AQ188: 0 | AR188: 0 | AS188: 0 | AT188: 0 | AU188: 0 | AV188: 0 | AW188: 0 | AX188: 0 | AY188: 0 | AZ188: 0 | BA188: 0 | BB188: 0 | BC188: 0 | BD188: 0 | BE188: 0 | BF188: 0 | BG188: 0 | BH188: 0 | BI188: 0 | BJ188: 0 | BK188: 0 | BL188: 0 | BM188: 0 | BN188: 0 | BO188: 0 | BP188: 0 | BQ188: 0 | BR188: 0 | BS188: 0 | BT188: 0 | BU188: =BU185-BU75 -> 0 | BV188: 0 | BW188: 0 | BX188: 0 | BY188: 0 | BZ188: 0 | CA188: 0 | CB188: 0 | CC188: 0 | CD188: 0 | CE188: 0 | CF188: 0 | CG188: 0 | CH188: 0 | CI188: 0 | CJ188: 0 | CK188: 0 | CL188: 0 | CM188: 0 | CN188: 0 | CO188: 0 | CP188: 0 | CQ188: 0 | CR188: 0 | CS188: 0 | CT188: 0 | CU188: 0 | CV188: 0 | CW188: 0 | CX188: 0 | CY188: 0 | CZ188: 0 | DA188: =DA185-DA75 -> 0 | DB188: 0 | DC188: 0 | DD188: 0 | DE188: 0 | DF188: 0 | DG188: 0 | DH188: 0 | DI188: 0 | DJ188: 0 | DK188: 0 | DL188: 0 | DM188: 0 | DN188: 0 | DO188: 0 | DP188: 0 | DQ188: 0 | DR188: 0 | DS188: 0 | DT188: 0 | DU188: 0 | DV188: 0 | DW188: 0 | DX188: 0
C189: Equity IRR | F189: =IRR(I188:DX188) -> 0.05111733101
C191: DSCR | I191: =IFERROR(I165/(I167+I168),FALSE) -> FALSE | J191: 1.75 | K191: 1.75 | L191: 1.75 | M191: 1.75 | N191: 1.75 | O191: 1.75 | P191: 1.75 | Q191: 1.75 | R191: 1.75 | S191: 1.75 | T191: 1.75 | U191: 1.75 | V191: 1.75 | W191: 1.75 | X191: 1.75 | Y191: 1.75 | Z191: 1.75 | AA191: 1.75 | AB191: 1.75 | AC191: 1.75 | AD191: 1.75 | AE191: FALSE | AF191: FALSE | AG191: FALSE | AH191: FALSE | AI191: FALSE | AJ191: FALSE | AK191: FALSE | AL191: FALSE | AM191: FALSE | AN191: FALSE | AO191: =IFERROR(AO165/(AO167+AO168),FALSE) -> FALSE | AP191: FALSE | AQ191: FALSE | AR191: FALSE | AS191: FALSE | AT191: FALSE | AU191: FALSE | AV191: FALSE | AW191: FALSE | AX191: FALSE | AY191: FALSE | AZ191: FALSE | BA191: FALSE | BB191: FALSE | BC191: FALSE | BD191: FALSE | BE191: FALSE | BF191: FALSE | BG191: FALSE | BH191: FALSE | BI191: FALSE | BJ191: FALSE | BK191: FALSE | BL191: FALSE | BM191: FALSE | BN191: FALSE | BO191: FALSE | BP191: FALSE | BQ191: FALSE | BR191: FALSE | BS191: FALSE | BT191: FALSE | BU191: =IFERROR(BU165/(BU167+BU168),FALSE) -> FALSE | BV191: FALSE | BW191: FALSE | BX191: FALSE | BY191: FALSE | BZ191: FALSE | CA191: FALSE | CB191: FALSE | CC191: FALSE | CD191: FALSE | CE191: FALSE | CF191: FALSE | CG191: FALSE | CH191: FALSE | CI191: FALSE | CJ191: FALSE | CK191: FALSE | CL191: FALSE | CM191: FALSE | CN191: FALSE | CO191: FALSE | CP191: FALSE | CQ191: FALSE | CR191: FALSE | CS191: FALSE | CT191: FALSE | CU191: FALSE | CV191: FALSE | CW191: FALSE | CX191: FALSE | CY191: FALSE | CZ191: FALSE | DA191: =IFERROR(DA165/(DA167+DA168),FALSE) -> FALSE | DB191: FALSE | DC191: FALSE | DD191: FALSE | DE191: FALSE | DF191: FALSE | DG191: FALSE | DH191: FALSE | DI191: FALSE | DJ191: FALSE | DK191: FALSE | DL191: FALSE | DM191: FALSE | DN191: FALSE | DO191: FALSE | DP191: FALSE | DQ191: FALSE | DR191: FALSE | DS191: FALSE | DT191: FALSE | DU191: FALSE | DV191: FALSE | DW191: FALSE | DX191: FALSE
C193: CFADS for Loan Life | I193: =IF(I35,I165) -> FALSE | J193: 51 | K193: 52.02 | L193: 53.0604 | M193: 54.121608 | N193: 55.20404016 | O193: 56.30812096 | P193: 57.43428338 | Q193: 58.58296905 | R193: 59.75462843 | S193: 60.949721 | T193: 62.16871542 | U193: 63.41208973 | V193: 64.68033152 | W193: 65.97393815 | X193: 67.29341692 | Y193: 68.63928525 | Z193: 70.01207096 | AA193: 71.41231238 | AB193: 72.84055863 | AC193: 74.2973698 | AD193: 75.78331719 | AE193: FALSE | AF193: FALSE | AG193: FALSE | AH193: FALSE | AI193: FALSE | AJ193: FALSE | AK193: FALSE | AL193: FALSE | AM193: FALSE | AN193: FALSE | AO193: =IF(AO35,AO165) -> FALSE | AP193: FALSE | AQ193: FALSE | AR193: FALSE | AS193: FALSE | AT193: FALSE | AU193: FALSE | AV193: FALSE | AW193: FALSE | AX193: FALSE | AY193: FALSE | AZ193: FALSE | BA193: FALSE | BB193: FALSE | BC193: FALSE | BD193: FALSE | BE193: FALSE | BF193: FALSE | BG193: FALSE | BH193: FALSE | BI193: FALSE | BJ193: FALSE | BK193: FALSE | BL193: FALSE | BM193: FALSE | BN193: FALSE | BO193: FALSE | BP193: FALSE | BQ193: FALSE | BR193: FALSE | BS193: FALSE | BT193: FALSE | BU193: =IF(BU35,BU165) -> FALSE | BV193: FALSE | BW193: FALSE | BX193: FALSE | BY193: FALSE | BZ193: FALSE | CA193: FALSE | CB193: FALSE | CC193: FALSE | CD193: FALSE | CE193: FALSE | CF193: FALSE | CG193: FALSE | CH193: FALSE | CI193: FALSE | CJ193: FALSE | CK193: FALSE | CL193: FALSE | CM193: FALSE | CN193: FALSE | CO193: FALSE | CP193: FALSE | CQ193: FALSE | CR193: FALSE | CS193: FALSE | CT193: FALSE | CU193: FALSE | CV193: FALSE | CW193: FALSE | CX193: FALSE | CY193: FALSE | CZ193: FALSE | DA193: =IF(DA35,DA165) -> FALSE | DB193: FALSE | DC193: FALSE | DD193: FALSE | DE193: FALSE | DF193: FALSE | DG193: FALSE | DH193: FALSE | DI193: FALSE | DJ193: FALSE | DK193: FALSE | DL193: FALSE | DM193: FALSE | DN193: FALSE | DO193: FALSE | DP193: FALSE | DQ193: FALSE | DR193: FALSE | DS193: FALSE | DT193: FALSE | DU193: FALSE | DV193: FALSE | DW193: FALSE | DX193: FALSE
C194: NPV of CFADS | F194: =F137 -> 0.045 | G194: =NPV(F194,I193:DX193) -> 813.149413
C195: Debt Balance | G195: =F41 -> 464.6568074
C196: LLCR | G196: =G194/G195 -> 1.75
C198: CFADS for Life | F198: =F194 -> 0.045 | G198: =NPV(F198,I198:DX198) -> 1053.387515 | I198: =IF(I5,I165) -> FALSE | J198: 51 | K198: 52.02 | L198: 53.0604 | M198: 54.121608 | N198: 55.20404016 | O198: 56.30812096 | P198: 57.43428338 | Q198: 58.58296905 | R198: 59.75462843 | S198: 60.949721 | T198: 62.16871542 | U198: 63.41208973 | V198: 64.68033152 | W198: 65.97393815 | X198: 67.29341692 | Y198: 68.63928525 | Z198: 70.01207096 | AA198: 71.41231238 | AB198: 72.84055863 | AC198: 74.2973698 | AD198: 75.78331719 | AE198: 77.29898354 | AF198: 78.84496321 | AG198: 80.42186247 | AH198: 82.03029972 | AI198: 83.67090572 | AJ198: 85.34432383 | AK198: 87.05121031 | AL198: 88.79223451 | AM198: 90.56807921 | AN198: FALSE | AO198: =IF(AO5,AO165) -> FALSE | AP198: FALSE | AQ198: FALSE | AR198: FALSE | AS198: FALSE | AT198: FALSE | AU198: FALSE | AV198: FALSE | AW198: FALSE | AX198: FALSE | AY198: FALSE | AZ198: FALSE | BA198: FALSE | BB198: FALSE | BC198: FALSE | BD198: FALSE | BE198: FALSE | BF198: FALSE | BG198: FALSE | BH198: FALSE | BI198: FALSE | BJ198: FALSE | BK198: FALSE | BL198: FALSE | BM198: FALSE | BN198: FALSE | BO198: FALSE | BP198: FALSE | BQ198: FALSE | BR198: FALSE | BS198: FALSE | BT198: FALSE | BU198: =IF(BU5,BU165) -> FALSE | BV198: FALSE | BW198: FALSE | BX198: FALSE | BY198: FALSE | BZ198: FALSE | CA198: FALSE | CB198: FALSE | CC198: FALSE | CD198: FALSE | CE198: FALSE | CF198: FALSE | CG198: FALSE | CH198: FALSE | CI198: FALSE | CJ198: FALSE | CK198: FALSE | CL198: FALSE | CM198: FALSE | CN198: FALSE | CO198: FALSE | CP198: FALSE | CQ198: FALSE | CR198: FALSE | CS198: FALSE | CT198: FALSE | CU198: FALSE | CV198: FALSE | CW198: FALSE | CX198: FALSE | CY198: FALSE | CZ198: FALSE | DA198: =IF(DA5,DA165) -> FALSE | DB198: FALSE | DC198: FALSE | DD198: FALSE | DE198: FALSE | DF198: FALSE | DG198: FALSE | DH198: FALSE | DI198: FALSE | DJ198: FALSE | DK198: FALSE | DL198: FALSE | DM198: FALSE | DN198: FALSE | DO198: FALSE | DP198: FALSE | DQ198: FALSE | DR198: FALSE | DS198: FALSE | DT198: FALSE | DU198: FALSE | DV198: FALSE | DW198: FALSE | DX198: FALSE
C199: Debt Balance | G199: =G195 -> 464.6568074
C200: PLCR | G200: =G198/G199 -> 2.267022668
B202: Graphs
I203: =I93 ->  | J203: 2 | K203: 3 | L203: 4 | M203: 5 | N203: 6 | O203: 7 | P203: 8 | Q203: 9 | R203: 10 | S203: 11 | T203: 12 | U203: 13 | V203: 14 | W203: 15 | X203: 16 | Y203: 17 | Z203: 18 | AA203: 19 | AB203: 20 | AC203: 21 | AD203: 22 | AE203: 23 | AF203: 24 | AG203: 25 | AH203: 26 | AI203: 27 | AJ203: 28 | AK203: 29 | AL203: 30 | AM203: 31 | AO203: =AO93 ->  | BU203: =BU93 ->  | DA203: =DA93 -> 
D204: Scheduled Debt Service - Senior | I204: =I167+I168 -> 0 | J204: 29.14285714 | K204: 29.72571429 | L204: 30.32022857 | M204: 30.92663314 | N204: 31.54516581 | O204: 32.17606912 | P204: 32.8195905 | Q204: 33.47598231 | R204: 34.14550196 | S204: 34.828412 | T204: 35.52498024 | U204: 36.23547984 | V204: 36.96018944 | W204: 37.69939323 | X204: 38.45338109 | Y204: 39.22244872 | Z204: 40.00689769 | AA204: 40.80703565 | AB204: 41.62317636 | AC204: 42.45563989 | AD204: 43.30475268 | AE204: 0 | AF204: 0 | AG204: 0 | AH204: 0 | AI204: 0 | AJ204: 0 | AK204: 0 | AL204: 0 | AM204: 0 | AN204: 0 | AO204: =AO167+AO168 -> 0 | AP204: 0 | AQ204: 0 | AR204: 0 | AS204: 0 | AT204: 0 | AU204: 0 | AV204: 0 | AW204: 0 | AX204: 0 | AY204: 0 | AZ204: 0 | BA204: 0 | BB204: 0 | BC204: 0 | BD204: 0 | BE204: 0 | BF204: 0 | BG204: 0 | BH204: 0 | BI204: 0 | BJ204: 0 | BK204: 0 | BL204: 0 | BM204: 0 | BN204: 0 | BO204: 0 | BP204: 0 | BQ204: 0 | BR204: 0 | BS204: 0 | BT204: 0 | BU204: =BU167+BU168 -> 0 | BV204: 0 | BW204: 0 | BX204: 0 | BY204: 0 | BZ204: 0 | CA204: 0 | CB204: 0 | CC204: 0 | CD204: 0 | CE204: 0 | CF204: 0 | CG204: 0 | CH204: 0 | CI204: 0 | CJ204: 0 | CK204: 0 | CL204: 0 | CM204: 0 | CN204: 0 | CO204: 0 | CP204: 0 | CQ204: 0 | CR204: 0 | CS204: 0 | CT204: 0 | CU204: 0 | CV204: 0 | CW204: 0 | CX204: 0 | CY204: 0 | CZ204: 0 | DA204: =DA167+DA168 -> 0 | DB204: 0 | DC204: 0 | DD204: 0 | DE204: 0 | DF204: 0 | DG204: 0 | DH204: 0 | DI204: 0 | DJ204: 0 | DK204: 0 | DL204: 0 | DM204: 0 | DN204: 0 | DO204: 0 | DP204: 0 | DQ204: 0 | DR204: 0 | DS204: 0 | DT204: 0 | DU204: 0 | DV204: 0 | DW204: 0 | DX204: 0
D205: Scheduled Debt Service - Subordinated
D206: Sweep | I206: =I173 -> 0 | J206: 0 | K206: 0 | L206: 0 | M206: 0 | N206: 0 | O206: 0 | P206: 0 | Q206: 0 | R206: 0 | S206: 0 | T206: 0 | U206: 0 | V206: 0 | W206: 0 | X206: 0 | Y206: 0 | Z206: 0 | AA206: 0 | AB206: 0 | AC206: 0 | AD206: 0 | AE206: 0 | AF206: 0 | AG206: 0 | AH206: 0 | AI206: 0 | AJ206: 0 | AK206: 0 | AL206: 0 | AM206: 0 | AN206: 0 | AO206: =AO173 -> 0 | AP206: 0 | AQ206: 0 | AR206: 0 | AS206: 0 | AT206: 0 | AU206: 0 | AV206: 0 | AW206: 0 | AX206: 0 | AY206: 0 | AZ206: 0 | BA206: 0 | BB206: 0 | BC206: 0 | BD206: 0 | BE206: 0 | BF206: 0 | BG206: 0 | BH206: 0 | BI206: 0 | BJ206: 0 | BK206: 0 | BL206: 0 | BM206: 0 | BN206: 0 | BO206: 0 | BP206: 0 | BQ206: 0 | BR206: 0 | BS206: 0 | BT206: 0 | BU206: =BU173 -> 0 | BV206: 0 | BW206: 0 | BX206: 0 | BY206: 0 | BZ206: 0 | CA206: 0 | CB206: 0 | CC206: 0 | CD206: 0 | CE206: 0 | CF206: 0 | CG206: 0 | CH206: 0 | CI206: 0 | CJ206: 0 | CK206: 0 | CL206: 0 | CM206: 0 | CN206: 0 | CO206: 0 | CP206: 0 | CQ206: 0 | CR206: 0 | CS206: 0 | CT206: 0 | CU206: 0 | CV206: 0 | CW206: 0 | CX206: 0 | CY206: 0 | CZ206: 0 | DA206: =DA173 -> 0 | DB206: 0 | DC206: 0 | DD206: 0 | DE206: 0 | DF206: 0 | DG206: 0 | DH206: 0 | DI206: 0 | DJ206: 0 | DK206: 0 | DL206: 0 | DM206: 0 | DN206: 0 | DO206: 0 | DP206: 0 | DQ206: 0 | DR206: 0 | DS206: 0 | DT206: 0 | DU206: 0 | DV206: 0 | DW206: 0 | DX206: 0
D207: Repayment of Default | I207: =I177 -> 0 | J207: 0 | K207: 0 | L207: 0 | M207: 0 | N207: 0 | O207: 0 | P207: 0 | Q207: 0 | R207: 0 | S207: 0 | T207: 0 | U207: 0 | V207: 0 | W207: 0 | X207: 0 | Y207: 0 | Z207: 0 | AA207: 0 | AB207: 0 | AC207: 0 | AD207: 0 | AE207: 0 | AF207: 0 | AG207: 0 | AH207: 0 | AI207: 0 | AJ207: 0 | AK207: 0 | AL207: 0 | AM207: 0 | AN207: 0 | AO207: =AO177 -> 0 | AP207: 0 | AQ207: 0 | AR207: 0 | AS207: 0 | AT207: 0 | AU207: 0 | AV207: 0 | AW207: 0 | AX207: 0 | AY207: 0 | AZ207: 0 | BA207: 0 | BB207: 0 | BC207: 0 | BD207: 0 | BE207: 0 | BF207: 0 | BG207: 0 | BH207: 0 | BI207: 0 | BJ207: 0 | BK207: 0 | BL207: 0 | BM207: 0 | BN207: 0 | BO207: 0 | BP207: 0 | BQ207: 0 | BR207: 0 | BS207: 0 | BT207: 0 | BU207: =BU177 -> 0 | BV207: 0 | BW207: 0 | BX207: 0 | BY207: 0 | BZ207: 0 | CA207: 0 | CB207: 0 | CC207: 0 | CD207: 0 | CE207: 0 | CF207: 0 | CG207: 0 | CH207: 0 | CI207: 0 | CJ207: 0 | CK207: 0 | CL207: 0 | CM207: 0 | CN207: 0 | CO207: 0 | CP207: 0 | CQ207: 0 | CR207: 0 | CS207: 0 | CT207: 0 | CU207: 0 | CV207: 0 | CW207: 0 | CX207: 0 | CY207: 0 | CZ207: 0 | DA207: =DA177 -> 0 | DB207: 0 | DC207: 0 | DD207: 0 | DE207: 0 | DF207: 0 | DG207: 0 | DH207: 0 | DI207: 0 | DJ207: 0 | DK207: 0 | DL207: 0 | DM207: 0 | DN207: 0 | DO207: 0 | DP207: 0 | DQ207: 0 | DR207: 0 | DS207: 0 | DT207: 0 | DU207: 0 | DV207: 0 | DW207: 0 | DX207: 0
D208: Default | I208: =-I176 -> 0 | J208: 0 | K208: 0 | L208: 0 | M208: 0 | N208: 0 | O208: 0 | P208: 0 | Q208: 0 | R208: 0 | S208: 0 | T208: 0 | U208: 0 | V208: 0 | W208: 0 | X208: 0 | Y208: 0 | Z208: 0 | AA208: 0 | AB208: 0 | AC208: 0 | AD208: 0 | AE208: 0 | AF208: 0 | AG208: 0 | AH208: 0 | AI208: 0 | AJ208: 0 | AK208: 0 | AL208: 0 | AM208: 0 | AN208: 0 | AO208: =-AO176 -> 0 | AP208: 0 | AQ208: 0 | AR208: 0 | AS208: 0 | AT208: 0 | AU208: 0 | AV208: 0 | AW208: 0 | AX208: 0 | AY208: 0 | AZ208: 0 | BA208: 0 | BB208: 0 | BC208: 0 | BD208: 0 | BE208: 0 | BF208: 0 | BG208: 0 | BH208: 0 | BI208: 0 | BJ208: 0 | BK208: 0 | BL208: 0 | BM208: 0 | BN208: 0 | BO208: 0 | BP208: 0 | BQ208: 0 | BR208: 0 | BS208: 0 | BT208: 0 | BU208: =-BU176 -> 0 | BV208: 0 | BW208: 0 | BX208: 0 | BY208: 0 | BZ208: 0 | CA208: 0 | CB208: 0 | CC208: 0 | CD208: 0 | CE208: 0 | CF208: 0 | CG208: 0 | CH208: 0 | CI208: 0 | CJ208: 0 | CK208: 0 | CL208: 0 | CM208: 0 | CN208: 0 | CO208: 0 | CP208: 0 | CQ208: 0 | CR208: 0 | CS208: 0 | CT208: 0 | CU208: 0 | CV208: 0 | CW208: 0 | CX208: 0 | CY208: 0 | CZ208: 0 | DA208: =-DA176 -> 0 | DB208: 0 | DC208: 0 | DD208: 0 | DE208: 0 | DF208: 0 | DG208: 0 | DH208: 0 | DI208: 0 | DJ208: 0 | DK208: 0 | DL208: 0 | DM208: 0 | DN208: 0 | DO208: 0 | DP208: 0 | DQ208: 0 | DR208: 0 | DS208: 0 | DT208: 0 | DU208: 0 | DV208: 0 | DW208: 0 | DX208: 0
D209: Dividend | I209: =I185 -> 0 | J209: =J185 -> 21.85714286 | K209: 22.29428571 | L209: 22.74017143 | M209: 23.19497486 | N209: 23.65887435 | O209: 24.13205184 | P209: 24.61469288 | Q209: 25.10698674 | R209: 25.60912647 | S209: 26.121309 | T209: 26.64373518 | U209: 27.17660988 | V209: 27.72014208 | W209: 28.27454492 | X209: 28.84003582 | Y209: 29.41683654 | Z209: 30.00517327 | AA209: 30.60527673 | AB209: 31.21738227 | AC209: 31.84172991 | AD209: 32.47856451 | AE209: 77.29898354 | AF209: 78.84496321 | AG209: 80.42186247 | AH209: 82.03029972 | AI209: 83.67090572 | AJ209: 85.34432383 | AK209: 87.05121031 | AL209: 88.79223451 | AM209: 90.56807921 | AN209: 0 | AO209: 0 | AP209: 0 | AQ209: 0 | AR209: 0 | AS209: 0 | AT209: 0 | AU209: 0 | AV209: 0 | AW209: 0 | AX209: 0 | AY209: 0 | AZ209: 0 | BA209: 0 | BB209: 0 | BC209: 0 | BD209: 0 | BE209: 0 | BF209: 0 | BG209: 0 | BH209: 0 | BI209: 0 | BJ209: 0 | BK209: 0 | BL209: 0 | BM209: 0 | BN209: 0 | BO209: 0 | BP209: 0 | BQ209: 0 | BR209: 0 | BS209: 0 | BT209: 0 | BU209: 0 | BV209: =BV185 -> 0 | BW209: 0 | BX209: 0 | BY209: 0 | BZ209: 0 | CA209: 0 | CB209: 0 | CC209: 0 | CD209: 0 | CE209: 0 | CF209: 0 | CG209: 0 | CH209: 0 | CI209: 0 | CJ209: 0 | CK209: 0 | CL209: 0 | CM209: 0 | CN209: 0 | CO209: 0 | CP209: 0 | CQ209: 0 | CR209: 0 | CS209: 0 | CT209: 0 | CU209: 0 | CV209: 0 | CW209: 0 | CX209: 0 | CY209: 0 | CZ209: 0 | DA209: 0 | DB209: 0 | DC209: 0 | DD209: 0 | DE209: 0 | DF209: 0 | DG209: 0 | DH209: 0 | DI209: 0 | DJ209: 0 | DK209: 0 | DL209: 0 | DM209: 0 | DN209: 0 | DO209: 0 | DP209: 0 | DQ209: 0 | DR209: 0 | DS209: 0 | DT209: 0 | DU209: 0 | DV209: 0 | DW209: 0 | DX209: 0
D211: Equity IRR | F211: =F189 -> 0.05111733101 | G211: Percent of Cash Flow | I211: =F109 -> 1 | J211: Cash Sweep Percent | L211: =F171 -> 0 | M211: Unpaid Debt at Project Life | P211: =DX136 -> 0 | Q211: Unpaid Debt at Loan Life

Sheet Sheet1
B2: Timing
C3: Period
C4: Construction Periods | E4: Years | F4: 1
C5: Operating Life | E5: Life | F5: 40
B7: Operating Cash Flow
C8: Inflation Index | E8: % | F8: 0.02
C10: Revenues | E10: Annual Euro | F10: 60
C11: Operating Expense | E11: Annual Euro | F11: 10
C12: Capital Expenditure | E12: One Time | F12: 1000
C14: EBITDA | E14: Euro
C15: Free Cash Flow | E15: Euro
C16: PIRR | E16: % p.a.
C18: Opening Balance | E18: Euro
C19: Add: Re-Investment | E19: Euro
C20: Add: Dividends | E20: Euro
C21: Closing Balance | E21: Euro
C23: Ending Balance | E23: Euro
C24: Investment | E24: Euro
C25: Growth Ratio | E25: x
C26: Annual Growth | E26: % p.a.
B28: Debt Structuring
C29: Tenure of Debt | E29: Years | F29: 30
C30: Interest Rate | E30: % p.a. | F30: 0.045
C31: DSCR for Sizing | E31: x | F31: 1.3
C33: Flag for Tenure | E33: Flag | F33: =F29 -> 30
C34: CFADS for Tenure | E34: Euro
C35: Target Debt Service =CFADS/DSCR | E35: Euro | F35: =F31 -> 1.3
C36: PV of Debt =Debt | E36: Euro | F36: =NPV(F30,I35:DX35) -> 0
C38: Opening Balance | E38: Euro
C39: Add: Debt Draws | E39: Euro | F39: =F36 -> 0
C40: Less: Debt Repayment =DS - Int | E40: Euro
C41: Closing Balance | E41: Euro
C42: Interest Opening Balance x Int Rate | E42: Euro | F42: =F30 -> 0.045
B44: Cash Flow Statement
C45: Cash Before COD - Uses and Source
D46: Uses
D47: Cap Exp | E47: Euro
D49: Source
D50: Debt | E50: Euro
D51: Equity Investment | E51: Euro
D52: Total
C54: Cash Flow After
D55: EBITDA | E55: Euro
D56: Less: Interest | E56: Euro
D57: Less: Repayment | E57: Euro
D58: Dividends | E58: Euro
B60: Summary Analysis
D62: Equity Net Cash Flow | E62: Euro
D63: Equity IRR | E63: =IRR(I62:DX62) -> 
D66: Cash Flow | E66: Euro
D67: Debt Service | E67: Euro
D69: Equity IRR | E69: =E63 ->  | F69: DSCR
D71: DSCR
B73: Risk Analysis
C74: Scheduled Debt Repayment
C76: Volatility | E76: % | F76: 0
C77: Mean Reversion | E77: % | F77: 0
C79: Base Revenue Estimate | E79: Euro | F79: =G79/100 -> 0
C81: Random Number - Probability | E81: %
C82: Cash Flow Change Before Volatilty | E82: Factor
C83: Cash Flow Change After Volatilty | E83: Factor | F83: =F76 -> 0
C85: Last Period | E85: Index
C86: Mean Reversion Adjustment | E86: Index | F86: =F77 -> 0
C88: Random Index | E88: Index | F88: =F76 -> 0
C89: Adjusted Revenue | E89: Euro
C90: Operating Expense | E90: Euro
C91: Adjusted EBITDA | E91: Euro
B93: Adjusted Debt Schedule
C94: Base Debt
D95: Opening Debt | E95: Euro
D96: Add: Debt Issue | E96: Euro
D97: Less: Scheduled | E97: Euro
D98: Less: Cash Sweep | E98: Euro
D99: Closing Balance | E99: Euro
D100: Interest | E100: Euro | F100: =$F$42 -> 0.045
C102: Defaulted Debt
D103: Opening Balance | E103: Euro
D104: Add: Default | E104: Euro
D105: Less: Repayment of Default | E105: Euro
D106: Closing Balance | E106: Euro
D107: Interest | E107: Euro | F107: =$F$42 -> 0.045
D109: Total Interest | E109: Euro
B111: Adjusted Cash Waterfall
C112: Adjusted Revenues | E112: Euro
C113: Less Operating Expense | E113: Euro
C114: EBITDA
C116: Less: Interest | E116: Euro
C117: Less: Debt Repayment Scheduled | E117: Euro
C118: Cash Flow After Scheduled Debt Service | E118: Euro
C120: Cash Sweep | E120: % | F120: =G120/100 -> 0
C121: Cash Swept Before Constraint | E121: Euro
C122: Cash Swept After Constraint
C124: Cash Flow Before Default | E124: Euro
C125: Add: Repayment not Made from Default | E125: Euro
C126: Less: Repayment of Default | E126: Euro
C128: Cash Flow After Sweep | E128: Euro
C130: Dividends
B132: Ratios
C133: Equity Cash Flow
C134: Equity IRR | F134: =IRR(I133:DX133) -> 
C136: DSCR
C138: CFADS for Loan Life
C139: NPV of CFADS | F139: =F107 -> 0.045
C140: Debt Balance
C141: LLCR
C143: CFADS for Life | F143: =F139 -> 0.045
C144: Debt Balance
C145: PLCR
B147: Graphs
D149: Scheduled Debt Service
D150: Sweep
D151: Repayment of Default
D152: Default
D153: Dividend
D155: Equity IRR | F155: =F134 -> 
